Workbook

Sheet Approved LG IPFs
A1: VOTE | B1: LOCAL GOVERNMENT | C1: IFMS Recurrent Costs | D1: IPPS Recurrent Costs | E1: Pension for Teachers | F1: Pension and Gratuity for Local Governments | G1: District Unconditional Grant | H1: Urban Unconditional Grant | I1: Urban Unconditional Grant - Wage | J1: District Unconditional Grant - Wage | K1: Urban Equalization Grant | L1: District Equalisation grant | M1: Tertiary Salary | N1: Primary Teachers Salary | O1: Secondary Teachers Salary | P1: PHC Wage | Q1: Agricultural Extension Workers Salary | R1: DSC Chairperson's Salary | S1: UPE | T1: PHC Non-Wage | U1: District Hospitals | V1: PHC NGO Hospitals (Nwage) | W1: Secondary Capitation Grant | X1: Functional Adult Literacy | Y1: Boards and Commissions including PRDP Component | AB1: Urban Water Operation and Maintenance Grant | AC1: PAF Monitoring and Accoutability Grant incl. PRDP | AG1: Public Libraries Board | AH1: Health Training Institutions | AI1: Comm Development Workers- Nwage | AJ1: Start up Costs | AK1: Environment and Natural Resources incl. PRDP | AN1: Women, Youth and Disability Councls | AO1: DSC Operational Costs | AP1: Salary and Gratuity for LG Elected Political Leaders | AQ1: LLGs Ex-Gratia and District Monthly Councillor's Allowances | AR1: Special Grant for PWDs | AS1: School Inspection Grant | AV1: Production and Marketing Grant (PMG) incl. PRDP | BA1: Sanitation and Hygiene Grant - Water Component | BB1: Hard to Reach Allowances | BC1: Community Polytechnics (Non- Wage) | BD1: Technical and Farm Schools (Non-wage) | BE1: Technical Institutes (Non-Wage) | BF1: Primary Teacher's Colleges (PTCs) | BG1: TOTAL RECURRENT | BH1: Local Govt Management and Service Delivery (LGMSD) incl. PRDP | BK1: Rural Water and Sanitation incl. PRDP | BN1: Construction of Secondary Schools | BO1: Conditional Grant to LRDP | BP1: Municipal Infrastructure Development | BS1: Sanitation and Hygiene Grant - Health Component | BT1: General Hospitals Rehabilitation | BU1: PHC Development incl. PRDP | BX1: School Facilities Grant (SFG) incl. PRDP | CC1: Rural Transport Infrastructure (RTI) incl. PRDP | CF1: TOTAL DEVELOPMENT | CG1: GRAND TOTAL
Y2: Normal | Z2: PRDP | AA2: Total | AC2: Normal Monitoring | AD2: Payroll Printing | AE2: PRDP | AF2: Total | AK2: Normal | AL2: PRDP | AM2: Total | AS2: DEOs Facilitation Component | AT2: School Inspection Grant Component | AU2: Total | AV2: Normal | AW2: DATICs | AX2: Trade and Commercial Services | AY2: PRDP | AZ2: Total | BH2: Normal | BI2: PRDP | BJ2: Total | BK2: Normal | BL2: PRDP | BM2: Total | BP2: Capacity Building Grants | BQ2: Municipal Development Grants | BR2: Total | BU2: Normal | BV2: PRDP | BW2: Total | BX2: Normal | BY2: Teacher's Houses | BZ2: Presidential Pledges for FY 2015/16 | CA2: PRDP | CB2: Total | CC2: Normal | CD2: PRDP | CE2: Total | CI2: Wage | CJ2: Non Wage Recurrent | CK2: GoU Development | CL2: External Financing
C3: 221016 | D3: 221020 | E3: 212103 | F3: 212105 | G3: 321401 | H3: 321402 | I3: 321450 | J3: 321451 | K3: 321463 | L3: 321403 | M3: 321404 | N3: 321405 | O3: 321406 | P3: 321407 | Q3: 321408 | R3: 321410 | S3: 321411 | T3: 321413 | U3: 321417 | V3: 321418 | W3: 321419 | X3: 321420 | Y3: 321422 | AB3: 321424 | AC3: 321427 | AG3: 321430 | AH3: 321432 | AI3: 321434 | AJ3: 321435 | AK3: 321436 | AN3: 321437 | AO3: 321439 | AP3: 321444 | AQ3: 321445 | AR3: 321446 | AS3: 321447 | AV3: 321448 | BA3: 321449 | BB3: 321453 | BC3: 321455 | BD3: 321457 | BE3: 321461 | BF3: 321462 | BH3: 321426 | BK3: 321428 | BN3: 321452 | BO3: 321471 | BP3: 321465 | BS3: 321449 | BT3: 321417 | BU3: 321431 | BX3: 321433 | CC3: 321412
A4: 501 | B4: Adjumani District | C4: 30000 | D4: 0 | E4: 168299.316 | F4: 689082.805 | G4: 448367.139 | H4: 130786.3032 | I4: 124640.796 | J4: 1434855.378 | K4: 35175.8114 | L4: 123483.7626 | M4: 40000 | N4: 4538539.596 | O4: 831089.496 | P4: 3290861.904 | Q4: 136162.512 | R4: 24336 | S4: 354955.8371 | T4: 185424.1107 | U4: 131634.0032 | V4: 148282.5846 | W4: 345420 | X4: 14363.35482 | Y4: 28120.48592 | Z4: 67859.06711 | AA4: =SUM(Y4:Z4) -> 95979.55304 | AB4: 0 | AC4: 30224.92471 | AD4: 8230.460659 | AE4: 37821.00072 | AF4: =SUM(AC4:AE4) -> 76276.3861 | AG4: 0 | AH4: 0 | AI4: 3638.509884 | AJ4: 0 | AK4: 7943.055764 | AL4: 39149.46176 | AM4: =SUM(AK4:AL4) -> 47092.51753 | AN4: 13101.63555 | AO4: 26274.57485 | AP4: 131414.4 | AQ4: 84834.54525 | AR4: 27353.3781 | AS4: 11433.34561 | AT4: 12596.44526 | AU4: =SUM(AS4:AT4) -> 24029.79087 | AV4: 101432.955 | AW4: 0 | AX4: 0 | AY4: 57049.02149 | AZ4: =SUM(AV4:AY4) -> 158481.9765 | BA4: 22000 | BB4: 1429454.348 | BC4: 0 | BD4: 0 | BE4: 134200 | BF4: 0 | BG4: =SUM(C4:X4,AA4,AB4,AF4,AG4:AI4,AM4,AN4:AR4,AU4,AZ4,BA4:BF4) -> 15499892.33 | BH4: 557128.0017 | BI4: 219758.979 | BJ4: =SUM(BH4:BI4) -> 776886.9807 | BK4: 428692.2449 | BL4: 107008.5289 | BM4: =SUM(BK4:BL4) -> 535700.7737 | BN4: 196605.225 | BP4: 0 | BQ4: 0 | BR4: =SUM(BP4:BQ4) -> 0 | BS4: 0 | BT4: 400000 | BU4: 10738.23189 | BV4: 325201.5292 | BW4: =SUM(BU4:BV4) -> 335939.7611 | BX4: 103368.4621 | BY4: 0 | BZ4: 0 | CA4: 322072.2357 | CB4: =SUM(BX4:CA4) -> 425440.6977 | CC4: 0 | CD4: 715130.2123 | CE4: =SUM(CC4:CD4) -> 715130.2123 | CF4: =SUM(BJ4,BM4,BN4:BO4,BR4,BS4:BT4,BW4,CB4,CE4) -> 3385703.651 | CG4: =BG4+CF4 -> 18885595.98 | CI4: =SUM(I4,J4,M4:R4,AP4) -> 10551900.08 | CJ4: =SUM(C4:H4,K4:L4,S4:X4,AA4,AB4,AF4,AG4:AI4,AM4,AN4:AO4,AQ4:AR4,AU4,AZ4,BA4:BF4) -> 4947992.244 | CK4: =SUM(BJ4,BM4,BN4:BO4,BT4,BW4,CB4,CE4) -> 3385703.651 | CL4: =SUM(BR4,BS4) -> 0
A5: 502 | B5: Apac District | C5: 30000 | D5: 0 | E5: 1312004.46 | F5: 3052460.119 | G5: 657841.1641 | H5: 132533.6201 | I5: 18042.132 | J5: 1902956.304 | K5: 0 | L5: 0 | M5: 266930.532 | N5: 9213757.008 | O5: 1516280.676 | P5: 3065343.072 | Q5: 120355.32 | R5: 24336 | S5: 969535.0336 | T5: 217080.8812 | U5: 131633.602 | V5: 30370.2786 | W5: 605022 | X5: 14393.99867 | Y5: 28120.48592 | Z5: 23608.25234 | AA5: =SUM(Y5:Z5) -> 51728.73826 | AB5: 0 | AC5: 52129.71428 | AD5: 16807.25258 | AE5: 25251.6698 | AF5: =SUM(AC5:AE5) -> 94188.63666 | AG5: 0 | AH5: 0 | AI5: 3646.272552 | AJ5: 0 | AK5: 7598.149833 | AL5: 23608.25234 | AM5: =SUM(AK5:AL5) -> 31206.40217 | AN5: 13129.58756 | AO5: 47033.29997 | AP5: 159681.6 | AQ5: 151853.836 | AR5: 27411.73584 | AS5: 16181.18011 | AT5: 18483.14147 | AU5: =SUM(AS5:AT5) -> 34664.32158 | AV5: 128359.1052 | AW5: 0 | AX5: 0 | AY5: 78694.17446 | AZ5: =SUM(AV5:AY5) -> 207053.2796 | BA5: 0 | BB5: 0 | BC5: 0 | BD5: 98000 | BE5: 0 | BF5: 0 | BG5: =SUM(C5:X5,AA5,AB5,AF5,AG5:AI5,AM5,AN5:AR5,AU5,AZ5,BA5:BF5) -> 24200473.91 | BH5: 607128.0019 | BI5: 112004.6316 | BJ5: =SUM(BH5:BI5) -> 719132.6335 | BK5: 662410.328 | BL5: 94433.00936 | BM5: =SUM(BK5:BL5) -> 756843.3374 | BN5: 486885.6 | BP5: 0 | BQ5: 0 | BR5: =SUM(BP5:BQ5) -> 0 | BS5: 250080.2243 | BT5: 500000 | BU5: 13677.62534 | BV5: 314776.6979 | BW5: =SUM(BU5:BV5) -> 328454.3232 | BX5: 169819.6163 | BY5: 0 | BZ5: 0 | CA5: 393470.8723 | CB5: =SUM(BX5:CA5) -> 563290.4886 | CC5: 512002.2805 | CD5: 196735.9304 | CE5: =SUM(CC5:CD5) -> 708738.2109 | CF5: =SUM(BJ5,BM5,BN5:BO5,BR5,BS5:BT5,BW5,CB5,CE5) -> 4313424.818 | CG5: =BG5+CF5 -> 28513898.73 | CI5: =SUM(I5,J5,M5:R5,AP5) -> 16287682.64 | CJ5: =SUM(C5:H5,K5:L5,S5:X5,AA5,AB5,AF5,AG5:AI5,AM5,AN5:AO5,AQ5:AR5,AU5,AZ5,BA5:BF5) -> 7912791.268 | CK5: =SUM(BJ5,BM5,BN5:BO5,BT5,BW5,CB5,CE5) -> 4063344.594 | CL5: =SUM(BR5,BS5) -> 250080.2243
A6: 503 | B6: Arua District | C6: 30000 | D6: 0 | E6: 1809726.96 | F6: 1780846.875 | G6: 1427954.051 | H6: 0 | I6: 0 | J6: 2153852.628 | K6: 0 | L6: 245485.2045 | M6: 867417.972 | N6: 19716309.49 | O6: 4090270.8 | P6: 4141569.264 | Q6: 121224.672 | R6: 24336 | S6: 1957342.78 | T6: 413012.3804 | U6: 0 | V6: 568325.3135 | W6: 1421907 | X6: 32835.23713 | Y6: 28120.48592 | Z6: 60418.13315 | AA6: 88538.61907 | AB6: 0 | AC6: 72596.87483 | AD6: 33607.71436 | AE6: 40278.75541 | AF6: 146483.3446 | AG6: 5000 | AH6: 557795.0122 | AI6: 37136.23142 | AJ6: 0 | AK6: 9183.781517 | AL6: 60418.13315 | AM6: 69601.91467 | AN6: 29950.89348 | AO6: 102368.3922 | AP6: 213169.788 | AQ6: 219963.8566 | AR6: 62530.98024 | AS6: 28615.98474 | AT6: 33900.67916 | AU6: 62516.6639 | AV6: 259269.8743 | AW6: 0 | AX6: 7200 | AY6: 201393.7764 | AZ6: 467863.6506 | BA6: 22000 | BB6: 0 | BC6: 0 | BD6: 196000 | BE6: 134200 | BF6: 422828 | BG6: 43640363.98 | BH6: 1211617.004 | BI6: 201393.7764 | BJ6: 1413010.78 | BK6: 587269.0619 | BL6: 201393.7764 | BM6: 788662.8383 | BN6: 0 | BP6: 0 | BQ6: 0 | BR6: 0 | BS6: 303531.2248 | BT6: 0 | BU6: 35700.88872 | BV6: 302090.6657 | BW6: 337791.5545 | BX6: 206736.9241 | BY6: 0 | BZ6: 0 | CA6: 342369.4212 | CB6: 549106.3453 | CC6: 0 | CD6: 604181.3331 | CE6: 604181.3331 | CF6: 3996284.076 | CG6: 47636648.05 | CI6: 31328150.62 | CJ6: 12312213.36 | CK6: 3692752.851 | CL6: 303531.2248
A7: 504 | B7: Bugiri District | C7: 30000 | D7: 0 | E7: 285487.2 | F7: 740263.962 | G7: 623928.4177 | H7: 105973.3132 | I7: 20548.728 | J7: 1411799.592 | K7: 0 | L7: 141336.0602 | M7: 144998.892 | N7: 8676100.812 | O7: 945223.728 | P7: 2526621.612 | Q7: 100593.432 | R7: 24336 | S7: 823522.3876 | T7: 232567.0006 | U7: 151840.0289 | V7: 63035.66678 | W7: 1349886 | X7: 19600.43569 | Y7: 28120.48592 | Z7: 0 | AA7: 28120.48592 | AB7: 0 | AC7: 34041.39008 | AD7: 14532.33153 | AE7: 0 | AF7: 48573.72161 | AG7: 0 | AH7: 0 | AI7: 4965.161684 | AJ7: 0 | AK7: 7209.239911 | AL7: 0 | AM7: 7209.239911 | AN7: 17878.67586 | AO7: 39733.15714 | AP7: 86925.4308 | AQ7: 106770.3348 | AR7: 37326.80389 | AS7: 20100.02763 | AT7: 23342.00183 | AU7: 43442.02946 | AV7: 115472.6339 | AW7: 0 | AX7: 0 | AY7: 0 | AZ7: 115472.6339 | BA7: 22000 | BB7: 16683.26816 | BC7: 0 | BD7: 98000 | BE7: 0 | BF7: 0 | BG7: 19090764.21 | BH7: 728061.0023 | BI7: 0 | BJ7: 728061.0023 | BK7: 674702.9155 | BL7: 0 | BM7: 674702.9155 | BN7: 190835.6 | BP7: 0 | BQ7: 0 | BR7: 0 | BS7: 0 | BT7: 700000 | BU7: 34705.89288 | BV7: 0 | BW7: 34705.89288 | BX7: 339639.2325 | BY7: 272000 | BZ7: 161500 | CA7: 0 | CB7: 773139.2325 | CC7: 0 | CD7: 0 | CE7: 0 | CF7: 3101444.643 | CG7: 22192208.85 | CI7: 13937148.23 | CJ7: 5153615.985 | CK7: 3101444.643 | CL7: 0
A8: 505 | B8: Bundibugyo District | C8: 30000 | D8: 0 | E8: 187899.24 | F8: 1080692.301 | G8: 352598.0453 | H8: 139685.5593 | I8: 52460.712 | J8: 1490336.988 | K8: 49142.77772 | L8: 99412.163 | M8: 298653.348 | N8: 6793249.176 | O8: 774483.936 | P8: 3099485.112 | Q8: 124322.568 | R8: 24336 | S8: 495554.5904 | T8: 144376.8655 | U8: 142628.2751 | V8: 21337.40638 | W8: 614922 | X8: 14184.90442 | Y8: 28120.48592 | Z8: 0 | AA8: 28120.48592 | AB8: 0 | AC8: 27213.62368 | AD8: 11415.35014 | AE8: 0 | AF8: 38628.97382 | AG8: 0 | AH8: 0 | AI8: 3593.305017 | AJ8: 0 | AK8: 7032.710946 | AL8: 0 | AM8: 7032.710946 | AN8: 12938.86076 | AO8: 31321.83381 | AP8: 79497.6 | AQ8: 141673.6906 | AR8: 27013.53958 | AS8: 15352.19313 | AT8: 17455.30562 | AU8: 32807.49875 | AV8: 63288.24449 | AW8: 0 | AX8: 0 | AY8: 0 | AZ8: 63288.24449 | BA8: 22000 | BB8: 1645300.388 | BC8: 89000 | BD8: 0 | BE8: 0 | BF8: 149479 | BG8: 18401458.1 | BH8: 367046.0011 | BI8: 0 | BJ8: 367046.0011 | BK8: 353098.6199 | BL8: 0 | BM8: 353098.6199 | BN8: 526612.553 | BO8: 271018.495 | BP8: 0 | BQ8: 0 | BR8: 0 | BS8: 0 | BT8: 300000 | BU8: 34207.45453 | BV8: 0 | BW8: 34207.45453 | BX8: 206736.9241 | BY8: 272000 | BZ8: 0 | CA8: 0 | CB8: 478736.9241 | CC8: 0 | CD8: 0 | CE8: 0 | CF8: 2330720.048 | CG8: 20732178.15 | CI8: 12736825.44 | CJ8: 5664632.66 | CK8: 2330720.048 | CL8: 0
A9: 506 | B9: Bushenyi District | C9: 47143 | D9: 25000 | E9: 0 | F9: 354136.462 | G9: 889740.5484 | H9: 0 | I9: 0 | J9: 1614591.36 | K9: 0 | L9: 0 | M9: 347325.756 | N9: 6440392.32 | O9: 1660587.54 | P9: 1166273.616 | Q9: 93000 | R9: 24336 | S9: 489282.1646 | T9: 124763.8557 | U9: 0 | V9: 728888.4574 | W9: 924768 | X9: 10126.82709 | Y9: 28120.48592 | Z9: 0 | AA9: 28120.48592 | AB9: 0 | AC9: 30621.07089 | AD9: 11551.16632 | AE9: 0 | AF9: 42172.23721 | AG9: 0 | AH9: 0 | AI9: 12939.95692 | AJ9: 0 | AK9: 8182.392717 | AL9: 0 | AM9: 8182.392717 | AN9: 9237.256861 | AO9: 49395.4584 | AP9: 135888.8232 | AQ9: 123737.2439 | AR9: 19285.39216 | AS9: 19572.49046 | AT9: 22687.92448 | AU9: 42260.41494 | AV9: 57072.35975 | AW9: 0 | AX9: 7200 | AY9: 0 | AZ9: 64272.35975 | BA9: 0 | BB9: 0 | BC9: 0 | BD9: 0 | BE9: 268400 | BF9: 334652 | BG9: 16078899.93 | BH9: 230132.0007 | BI9: 0 | BJ9: 230132.0007 | BK9: 356129.1629 | BL9: 0 | BM9: 356129.1629 | BN9: 0 | BP9: 0 | BQ9: 0 | BR9: 0 | BS9: 143829.526 | BT9: 0 | BU9: 35636.64841 | BV9: 0 | BW9: 35636.64841 | BX9: 140285.77 | BY9: 0 | BZ9: 0 | CA9: 0 | CB9: 140285.77 | CC9: 0 | CD9: 0 | CE9: 0 | CF9: 906013.108 | CG9: 16984913.04 | CI9: 11482395.42 | CJ9: 4596504.514 | CK9: 762183.582 | CL9: 143829.526
A10: 507 | B10: Busia District | C10: 30000 | D10: 0 | E10: 582507.624 | F10: 207136.955 | G10: 513156.0682 | H10: 0 | I10: 0 | J10: 954992.052 | K10: 0 | L10: 0 | M10: 385852.68 | N10: 7272230.352 | O10: 1526586.636 | P10: 1468052.772 | Q10: 134573.844 | R10: 24336 | S10: 772897.9824 | T10: 166936.6068 | U10: 109334.6134 | V10: 92177.80958 | W10: 1174113 | X10: 13484.81161 | Y10: 28120.48592 | Z10: 0 | AA10: 28120.48592 | AB10: 0 | AC10: 28157.14649 | AD10: 12963.65462 | AE10: 19230.43835 | AF10: 60351.23946 | AG10: 0 | AH10: 0 | AI10: 20707.02453 | AJ10: 0 | AK10: 4933.400366 | AL10: 15738.83489 | AM10: 20672.23526 | AN10: 12300.26616 | AO10: 41219.66021 | AP10: 107764.8 | AQ10: 150399.5295 | AR10: 25680.29234 | AS10: 16557.99237 | AT10: 18950.33958 | AU10: 35508.33195 | AV10: 94837.94701 | AW10: 0 | AX10: 7200 | AY10: 95377.33945 | AZ10: 197415.2865 | BA10: 22000 | BB10: 0 | BC10: 67400 | BD10: 0 | BE10: 134200 | BF10: 149479 | BG10: 16501587.96 | BH10: 243154.0008 | BI10: 118040.8265 | BJ10: 361194.8273 | BK10: 362440.6267 | BL10: 74368.35569 | BM10: 436808.9824 | BN10: 0 | BP10: 0 | BQ10: 0 | BR10: 0 | BS10: 0 | BT10: 0 | BU10: 30303.33592 | BV10: 127235.889 | BW10: 157539.225 | BX10: 206736.9241 | BY10: 0 | BZ10: 0 | CA10: 242701.4904 | CB10: 449438.4146 | CC10: 0 | CD10: 268828.7433 | CE10: 268828.7433 | CF10: 1673810.192 | CG10: 18175398.15 | CI10: 11874389.14 | CJ10: 4627198.823 | CK10: 1673810.192 | CL10: 0
A11: 508 | B11: Gulu District | C11: 30000 | D11: 0 | E11: 1371279.66 | F11: 1021105.315 | G11: 675203.2279 | H11: 0 | I11: 0 | J11: 2009182.62 | K11: 0 | L11: 80883.15349 | M11: 608305.536 | N11: 9652375.464 | O11: 2087456.376 | P11: 2686836.24 | Q11: 178246.044 | R11: 24336 | S11: 741175.2451 | T11: 182139.9365 | U11: 0 | V11: 781662.1883 | W11: 554853 | X11: 14508.60837 | Y11: 28120.48592 | Z11: 38005.62069 | AA11: 66126.10662 | AB11: 0 | AC11: 54840.675 | AD11: 17269.0276 | AE11: 38005.6192 | AF11: 110115.3218 | AG11: 0 | AH11: 271068.0059 | AI11: 16355.42063 | AJ11: 0 | AK11: 11968.61596 | AL11: 76011.23824 | AM11: 87979.8542 | AN11: 13234.1296 | AO11: 65940.43954 | AP11: 108700.8 | AQ11: 118525.9789 | AR11: 27629.99699 | AS11: 17010.16708 | AT11: 19510.97732 | AU11: 36521.1444 | AV11: 171942.6479 | AW11: 0 | AX11: 7200 | AY11: 76011.23824 | AZ11: 255153.8861 | BA11: 22000 | BB11: 3529090.327 | BC11: 98000 | BD11: 0 | BE11: 0 | BF11: 433254.207 | BG11: 27959244.23 | BH11: 436721.0014 | BI11: 114016.8574 | BJ11: 550737.8587 | BK11: 371088.9721 | BL11: 380056.192 | BM11: 751145.164 | BN11: 0 | BP11: 0 | BQ11: 0 | BR11: 0 | BS11: 0 | BT11: 0 | BU11: 18603.2858 | BV11: 380056.192 | BW11: 398659.4778 | BX11: 140285.77 | BY11: 0 | BZ11: 0 | CA11: 418061.8111 | CB11: 558347.581 | CC11: 512002.2805 | CD11: 380056.192 | CE11: 892058.4725 | CF11: 3150948.554 | CG11: 31110192.79 | CI11: 17355439.08 | CJ11: 10603805.15 | CK11: 3150948.554 | CL11: 0
A12: 509 | B12: Hoima District | C12: 0 | D12: 0 | E12: 2508948.252 | F12: 547897.486 | G12: 857561.9019 | H12: 52650.46174 | I12: 107487.168 | J12: 1307160.42 | K12: 0 | L12: 0 | M12: 40000 | N12: 6913282.608 | O12: 1162100.484 | P12: 2347954.668 | Q12: 148420.716 | R12: 24336 | S12: 685006.1405 | T12: 273818.8203 | U12: 0 | V12: 32972.8839 | W12: 933882 | X12: 19849.45786 | Y12: 28120.48592 | Z12: 0 | AA12: 28120.48592 | AB12: 0 | AC12: 43795.49402 | AD12: 12698.81306 | AE12: 0 | AF12: 56494.30708 | AG12: 15000 | AH12: 0 | AI12: 17708.35899 | AJ12: 0 | AK12: 8462.242661 | AL12: 0 | AM12: 8462.242661 | AN12: 18105.82319 | AO12: 48646.42591 | AP12: 189820.8 | AQ12: 132463.0828 | AR12: 37801.03832 | AS12: 21607.27667 | AT12: 25210.79428 | AU12: 46818.07095 | AV12: 177050.1811 | AW12: 0 | AX12: 0 | AY12: 0 | AZ12: 177050.1811 | BA12: 22000 | BB12: 0 | BC12: 66000 | BD12: 0 | BE12: 134200 | BF12: 399509 | BG12: 19361529.29 | BH12: 794522.0025 | BI12: 0 | BJ12: 794522.0025 | BK12: 383567.3172 | BL12: 0 | BM12: 383567.3172 | BN12: 0 | BP12: 0 | BQ12: 0 | BR12: 0 | BS12: 0 | BT12: 0 | BU12: 32672.52386 | BV12: 0 | BW12: 32672.52386 | BX12: 273188.0783 | BY12: 0 | BZ12: 20000 | CA12: 0 | CB12: 293188.0783 | CC12: 0 | CD12: 0 | CE12: 0 | CF12: 1503949.922 | CG12: 20865479.21 | CI12: 12240562.86 | CJ12: 7120966.421 | CK12: 1503949.922 | CL12: 0
A13: 510 | B13: Iganga District | C13: 30000 | D13: 0 | E13: 1562365.512 | F13: 1741162.169 | G13: 673001.7951 | H13: 74976.57635 | I13: 131288.436 | J13: 1403753.352 | K13: 0 | L13: 0 | M13: 749685.42 | N13: 13390848.62 | O13: 3314677.608 | P13: 4535982.674 | Q13: 136338.072 | R13: 24336 | S13: 1010257.442 | T13: 259131.9214 | U13: 167292.0024 | V13: 107425.5926 | W13: 2728866 | X13: 17824.77835 | Y13: 28120.48592 | Z13: 0 | AA13: 28120.48592 | AB13: 0 | AC13: 53614.34948 | AD13: 23367.1742 | AE13: 0 | AF13: 76981.52368 | AG13: 0 | AH13: 0 | AI13: 4515.35404 | AJ13: 0 | AK13: 9396.161474 | AL13: 0 | AM13: 9396.161474 | AN13: 16258.99748 | AO13: 77920.39413 | AP13: 150883.2 | AQ13: 134402.1581 | AR13: 33945.26613 | AS13: 23415.97553 | AT13: 27453.34522 | AU13: 50869.32075 | AV13: 139929.2315 | AW13: 0 | AX13: 0 | AY13: 0 | AZ13: 139929.2315 | BA13: 22000 | BB13: 0 | BC13: 94200 | BD13: 0 | BE13: 444200 | BF13: 601480 | BG13: 33944316.07 | BH13: 626236.0019 | BI13: 0 | BJ13: 626236.0019 | BK13: 674702.9155 | BL13: 0 | BM13: 674702.9155 | BN13: 0 | BP13: 0 | BQ13: 0 | BR13: 0 | BS13: 0 | BT13: 0 | BU13: 32411.36907 | BV13: 0 | BW13: 32411.36907 | BX13: 406090.3867 | BY13: 272000 | BZ13: 310000 | CA13: 0 | CB13: 988090.3867 | CC13: 0 | CD13: 0 | CE13: 0 | CF13: 2321440.673 | CG13: 36265756.74 | CI13: 23837793.39 | CJ13: 10106522.68 | CK13: 2321440.673 | CL13: 0
A14: 511 | B14: Jinja District | C14: 47143 | D14: 25000 | E14: 839611.056 | F14: 1254807.285 | G14: 754106.2967 | H14: 377547.7166 | I14: 399763.392 | J14: 1280165.112 | K14: 0 | L14: 0 | M14: 589437.288 | N14: 8141357.22 | O14: 4122359.484 | P14: 4933369.656 | Q14: 147387.528 | R14: 24336 | S14: 558522.7248 | T14: 240996.1722 | U14: 0 | V14: 177733.0956 | W14: 1860453 | X14: 15864.06468 | Y14: 28120.48592 | Z14: 0 | AA14: 28120.48592 | AB14: 0 | AC14: 41196.89776 | AD14: 17350.51731 | AE14: 0 | AF14: 58547.41507 | AG14: 0 | AH14: 1097253.904 | AI14: 4018.668124 | AJ14: 0 | AK14: 11177.65012 | AL14: 0 | AM14: 11177.65012 | AN14: 14470.51866 | AO14: 71665.8863 | AP14: 122304 | AQ14: 112345.1763 | AR14: 30211.30962 | AS14: 16557.99237 | AT14: 18950.33958 | AU14: 35508.33195 | AV14: 102400.3392 | AW14: 0 | AX14: 0 | AY14: 0 | AZ14: 102400.3392 | BA14: 22000 | BB14: 0 | BC14: 32000 | BD14: 0 | BE14: 134200 | BF14: 149479.425 | BG14: 27815663.2 | BH14: 667030.0021 | BI14: 0 | BJ14: 667030.0021 | BK14: 676875.5891 | BL14: 0 | BM14: 676875.5891 | BN14: 0 | BP14: 0 | BQ14: 0 | BR14: 0 | BS14: 0 | BT14: 0 | BU14: 33970.34822 | BV14: 0 | BW14: 33970.34822 | BX14: 273188.0783 | BY14: 0 | BZ14: 0 | CA14: 0 | CB14: 273188.0783 | CC14: 0 | CD14: 0 | CE14: 0 | CF14: 1651064.018 | CG14: 29466727.22 | CI14: 19760479.68 | CJ14: 8055183.522 | CK14: 1651064.018 | CL14: 0
A15: 512 | B15: Kabale District | C15: 30000 | D15: 0 | E15: 2257131.864 | F15: 4502229.19 | G15: 1681679.533 | H15: 254238.3198 | I15: 46853.832 | J15: 2532754.828 | K15: 0 | L15: 0 | M15: 570086.748 | N15: 19720128.96 | O15: 4209109.956 | P15: 5222884.008 | Q15: 187214.22 | R15: 24336 | S15: 1400660.27 | T15: 298620.897 | U15: 0 | V15: 494249.1468 | W15: 1810200 | X15: 20781.72388 | Y15: 28120.48592 | Z15: 0 | AA15: 28120.48592 | AB15: 360000 | AC15: 65524.35469 | AD15: 32826.77131 | AE15: 0 | AF15: 98351.126 | AG15: 0 | AH15: 537905.0318 | AI15: 5264.404362 | AJ15: 0 | AK15: 7924.084768 | AL15: 0 | AM15: 7924.084768 | AN15: 18956.19623 | AO15: 103984.9579 | AP15: 184953.6 | AQ15: 323320 | AR15: 39576.4331 | AS15: 32233.38245 | AT15: 38385.78104 | AU15: 70619.16348 | AV15: 134914.1607 | AW15: 0 | AX15: 0 | AY15: 0 | AZ15: 134914.1607 | BA15: 22000 | BB15: 0 | BC15: 58400 | BD15: 98000 | BE15: 0 | BF15: 368219.9 | BG15: 47723669.04 | BH15: 707607.0022 | BI15: 0 | BJ15: 707607.0022 | BK15: 356129.1629 | BL15: 0 | BM15: 356129.1629 | BN15: 246231.65 | BP15: 0 | BQ15: 0 | BR15: 0 | BS15: 0 | BT15: 0 | BU15: 41373.70472 | BV15: 0 | BW15: 41373.70472 | BX15: 206736.9241 | BY15: 0 | BZ15: 0 | CA15: 0 | CB15: 206736.9241 | CC15: 0 | CD15: 0 | CE15: 0 | CF15: 1558078.444 | CG15: 49281747.48 | CI15: 32698322.15 | CJ15: 15025346.89 | CK15: 1558078.444 | CL15: 0
A16: 513 | B16: Kabarole District | C16: 0 | D16: 0 | E16: 1496879.34 | F16: 1377350.032 | G16: 996341.1219 | H16: 386787.6119 | I16: 81721.44 | J16: 2541916.488 | K16: 0 | L16: 0 | M16: 295377.868 | N16: 8898492.6 | O16: 2021670.24 | P16: 3718980.792 | Q16: 134109.456 | R16: 24336 | S16: 717949.7389 | T16: 248728.3315 | U16: 0 | V16: 449161.4195 | W16: 1565304 | X16: 19885.77073 | Y16: 28120.48592 | Z16: 0 | AA16: 28120.48592 | AB16: 0 | AC16: 41748.19751 | AD16: 16134.96248 | AE16: 0 | AF16: 57883.15999 | AG16: 0 | AH16: 412122.369 | AI16: 5037.442455 | AJ16: 0 | AK16: 8272.953699 | AL16: 0 | AM16: 8272.953699 | AN16: 18138.94623 | AO16: 61373.2625 | AP16: 147638.4 | AQ16: 178394.9294 | AR16: 37870.19206 | AS16: 17462.3418 | AT16: 20071.61505 | AU16: 37533.95685 | AV16: 121341.4153 | AW16: 8200 | AX16: 7200 | AY16: 0 | AZ16: 136741.4153 | BA16: 22000 | BB16: 0 | BC16: 0 | BD16: 0 | BE16: 134200 | BF16: 370116 | BG16: 26630435.76 | BH16: 733673.0023 | BI16: 0 | BJ16: 733673.0023 | BK16: 467252.7183 | BL16: 0 | BM16: 467252.7183 | BN16: 0 | BO16: 441976.539 | BP16: 0 | BQ16: 0 | BR16: 0 | BS16: 0 | BT16: 350000 | BU16: 37641.17037 | BV16: 0 | BW16: 37641.17037 | BX16: 273188.0783 | BY16: 0 | BZ16: 573430.762 | CA16: 0 | CB16: 846618.8403 | CC16: 0 | CD16: 0 | CE16: 0 | CF16: 2877162.27 | CG16: 29507598.03 | CI16: 17864243.28 | CJ16: 8766192.48 | CK16: 2877162.27 | CL16: 0
A17: 514 | B17: Kaberamaido District | C17: 0 | D17: 0 | E17: 194747.808 | F17: 702777.327 | G17: 386966.1481 | H17: 36210.35702 | I17: 72558 | J17: 1428557.208 | K17: 0 | L17: 68476.77338 | M17: 175113.828 | N17: 4749880.14 | O17: 737008.752 | P17: 1504030.032 | Q17: 96796.716 | R17: 24336 | S17: 565833.0527 | T17: 136379.0135 | U17: 0 | V17: 212942.2655 | W17: 639078 | X17: 10385.16754 | Y17: 28120.48592 | Z17: 3934.708723 | AA17: 32055.19465 | AB17: 0 | AC17: 24283.46715 | AD17: 8780.516199 | AE17: 21875.17567 | AF17: 54939.15901 | AG17: 0 | AH17: 0 | AI17: 2630.759681 | AJ17: 0 | AK17: 6725.929008 | AL17: 4721.650468 | AM17: 11447.57948 | AN17: 9472.903926 | AO17: 24926.92798 | AP17: 30638.4 | AQ17: 119374.3244 | AR17: 19777.37221 | AS17: 14749.29351 | AT17: 16707.78864 | AU17: 31457.08216 | AV17: 76886.73212 | AW17: 0 | AX17: 0 | AY17: 196735.4362 | AZ17: 273622.1683 | BA17: 0 | BB17: 0 | BC17: 0 | BD17: 0 | BE17: 134200 | BF17: 0 | BG17: 12486618.46 | BH17: 380786.0012 | BI17: 164425.581 | BJ17: 545211.5822 | BK17: 351026.5263 | BL17: 0 | BM17: 351026.5263 | BN17: 0 | BP17: 0 | BQ17: 0 | BR17: 0 | BS17: 171482.9576 | BT17: 700000 | BU17: 25848.98601 | BV17: 177953.2552 | BW17: 203802.2412 | BX17: 169819.6163 | BY17: 0 | BZ17: 70787.742 | CA17: 327377.5404 | CB17: 567984.8986 | CC17: 512002.2805 | CD17: 196735.4362 | CE17: 708737.7167 | CF17: 3248245.923 | CG17: 15734864.38 | CI17: 8818919.076 | CJ17: 3667699.384 | CK17: 3076762.965 | CL17: 171482.9576
A18: 515 | B18: Kalangala District | C18: 30000 | D18: 0 | E18: 107533.788 | F18: 149986.02 | G18: 386316.4743 | H18: 42828.89492 | I18: 37009.26 | J18: 906705.264 | K18: 0 | L18: 0 | M18: 89612.028 | N18: 999684.036 | O18: 283222.416 | P18: 1519557.276 | Q18: 166616.088 | R18: 24336 | S18: 64030.424 | T18: 81001.07108 | U18: 0 | V18: 7641.550895 | W18: 102381 | X18: 8620.658899 | Y18: 28120.48592 | Z18: 0 | AA18: 28120.48592 | AB18: 16000 | AC18: 33091.09242 | AD18: 2933.629542 | AE18: 0 | AF18: 36024.72196 | AG18: 0 | AH18: 0 | AI18: 2183.776214 | AJ18: 0 | AK18: 3862.81558 | AL18: 0 | AM18: 3862.81558 | AN18: 7863.394906 | AO18: 11807.19389 | AP18: 14601.6 | AQ18: 54657.68558 | AR18: 16417.06588 | AS18: 25442.529 | AT18: 29748.675 | AU18: 55191.204 | AV18: 82590.73555 | AW18: 0 | AX18: 0 | AY18: 0 | AZ18: 82590.73555 | BA18: 22000 | BB18: 361656.1798 | BC18: 0 | BD18: 0 | BE18: 159040 | BF18: 0 | BG18: 5879099.109 | BH18: 399585.0012 | BI18: 0 | BJ18: 399585.0012 | BK18: 375059.9735 | BL18: 0 | BM18: 375059.9735 | BN18: 159485.708 | BP18: 0 | BQ18: 0 | BR18: 0 | BS18: 0 | BT18: 0 | BU18: 57956.33044 | BV18: 0 | BW18: 57956.33044 | BX18: 221885.5737 | BY18: 0 | BZ18: 0 | CA18: 0 | CB18: 221885.5737 | CC18: 0 | CD18: 0 | CE18: 0 | CF18: 1213972.587 | CG18: 7093071.696 | CI18: 4041343.968 | CJ18: 1837755.141 | CK18: 1213972.587 | CL18: 0
A19: 517 | B19: Kamuli District | C19: 0 | D19: 0 | E19: 1320546.324 | F19: 1735869.306 | G19: 809066.8962 | H19: 91395.87619 | I19: 50594.784 | J19: 1990557.984 | K19: 0 | L19: 0 | M19: 40000 | N19: 13098339.56 | O19: 2167980.768 | P19: 3369541.488 | Q19: 327886.536 | R19: 24336 | S19: 1099703.742 | T19: 282023.2354 | U19: 131633.602 | V19: 581826.8841 | W19: 2779425 | X19: 20525.93334 | Y19: 28120.48592 | Z19: 0 | AA19: 28120.48592 | AB19: 0 | AC19: 48086.4514 | AD19: 20005.72368 | AE19: 0 | AF19: 68092.17508 | AG19: 9195.8333 | AH19: 0 | AI19: 5199.607771 | AJ19: 0 | AK19: 7352.715882 | AL19: 0 | AM19: 7352.715882 | AN19: 18722.87508 | AO19: 58595.4074 | AP19: 50294.4 | AQ19: 149551.184 | AR19: 39089.30905 | AS19: 24471.04986 | AT19: 28761.49993 | AU19: 53232.54979 | AV19: 144334.1126 | AW19: 0 | AX19: 0 | AY19: 0 | AZ19: 144334.1126 | BA19: 22000 | BB19: 0 | BC19: 28200 | BD19: 0 | BE19: 134200 | BF19: 0 | BG19: 30737434.58 | BH19: 782538.0024 | BI19: 0 | BJ19: 782538.0024 | BK19: 665723.6855 | BL19: 0 | BM19: 665723.6855 | BN19: 70625 | BP19: 0 | BQ19: 0 | BR19: 0 | BS19: 0 | BT19: 0 | BU19: 22073.46314 | BV19: 0 | BW19: 22073.46314 | BX19: 273188.0783 | BY19: 272000 | BZ19: 0 | CA19: 0 | CB19: 545188.0783 | CC19: 0 | CD19: 0 | CE19: 0 | CF19: 2086148.229 | CG19: 32823582.81 | CI19: 21119531.52 | CJ19: 9617903.055 | CK19: 2086148.229 | CL19: 0
A20: 518 | B20: Kamwenge District | C20: 0 | D20: 0 | E20: 64811.724 | F20: 736126.339 | G20: 826916.8733 | H20: 80485.23331 | I20: 144393.216 | J20: 1359906.264 | K20: 0 | L20: 0 | M20: 487071.336 | N20: 8067354.264 | O20: 2047152.18 | P20: 1894002.012 | Q20: 154343.928 | R20: 24336 | S20: 698080.9316 | T20: 247695.5721 | U20: 0 | V20: 54540.46325 | W20: 902295 | X20: 15511.85909 | Y20: 28120.48592 | Z20: 0 | AA20: 28120.48592 | AB20: 14000 | AC20: 34167.97927 | AD20: 13364.31236 | AE20: 0 | AF20: 47532.29163 | AG20: 0 | AH20: 0 | AI20: 3929.447773 | AJ20: 0 | AK20: 7231.637907 | AL20: 0 | AM20: 7231.637907 | AN20: 14149.25183 | AO20: 36897.24143 | AP20: 106142.4 | AQ20: 151732.6438 | AR20: 29540.57405 | AS20: 22360.90119 | AT20: 26145.19051 | AU20: 48506.0917 | AV20: 118515.2879 | AW20: 0 | AX20: 0 | AY20: 0 | AZ20: 118515.2879 | BA20: 22000 | BB20: 0 | BC20: 0 | BD20: 98000 | BE20: 134200 | BF20: 0 | BG20: 18665520.55 | BH20: 568614.0018 | BI20: 0 | BJ20: 568614.0018 | BK20: 372291.1194 | BL20: 0 | BM20: 372291.1194 | BN20: 0 | BP20: 0 | BQ20: 0 | BR20: 0 | BS20: 0 | BT20: 250000 | BU20: 39214.98369 | BV20: 0 | BW20: 39214.98369 | BX20: 206736.9241 | BY20: 0 | BZ20: 350000 | CA20: 0 | CB20: 556736.9241 | CC20: 0 | CD20: 0 | CE20: 0 | CF20: 1786857.029 | CG20: 20452377.58 | CI20: 14284701.6 | CJ20: 4380818.95 | CK20: 1786857.029 | CL20: 0
A21: 519 | B21: Kanungu District | C21: 0 | D21: 0 | E21: 294034.032 | F21: 189490.596 | G21: 580121.349 | H21: 245806.8925 | I21: 411542.736 | J21: 1534483.464 | K21: 0 | L21: 0 | M21: 577906.116 | N21: 7659637.764 | O21: 2189691.912 | P21: 3134341.224 | Q21: 226271.484 | R21: 24336 | S21: 552042.2302 | T21: 162397.6997 | U21: 137576.6687 | V21: 198621.7931 | W21: 1246782 | X21: 11587.37795 | Y21: 28120.48592 | Z21: 0 | AA21: 28120.48592 | AB21: 12000 | AC21: 35346.5045 | AD21: 13635.94472 | AE21: 0 | AF21: 48982.44923 | AG21: 0 | AH21: 0 | AI21: 15615.41763 | AJ21: 0 | AK21: 4450.424462 | AL21: 0 | AM21: 4450.424462 | AN21: 10569.50864 | AO21: 39484.65793 | AP21: 128169.6 | AQ21: 106770.3348 | AR21: 22066.84541 | AS21: 25300.03683 | AT21: 29789.33578 | AU21: 55089.37261 | AV21: 66046.81481 | AW21: 0 | AX21: 7200 | AY21: 0 | AZ21: 73246.81481 | BA21: 22000 | BB21: 2354410.997 | BC21: 94400 | BD21: 98000 | BE21: 268400 | BF21: 0 | BG21: 22758448.25 | BH21: 390146.0012 | BI21: 0 | BJ21: 390146.0012 | BK21: 356129.1629 | BL21: 0 | BM21: 356129.1629 | BN21: 0 | BP21: 0 | BQ21: 0 | BR21: 0 | BS21: 0 | BT21: 0 | BU21: 35164.31436 | BV21: 0 | BW21: 35164.31436 | BX21: 206736.9241 | BY21: 272000 | BZ21: 0 | CA21: 0 | CB21: 478736.9241 | CC21: 0 | CD21: 0 | CE21: 0 | CF21: 1260176.403 | CG21: 24018624.65 | CI21: 15886380.3 | CJ21: 6872067.948 | CK21: 1260176.403 | CL21: 0
A22: 520 | B22: Kapchorwa District | C22: 30000 | D22: 0 | E22: 331630.932 | F22: 938516.238 | G22: 265125.7943 | H22: 60489.11299 | I22: 97233.672 | J22: 1220041.176 | K22: 0 | L22: 0 | M22: 331744.884 | N22: 3080970 | O22: 1367685.9 | P22: 2100707.216 | Q22: 109698.24 | R22: 24336 | S22: 247668.2472 | T22: 72126.58099 | U22: 137576.6687 | V22: 4587.725678 | W22: 572745 | X22: 7097.823835 | Y22: 28120.48592 | Z22: 53512.03864 | AA22: 81632.52456 | AB22: 16000 | AC22: 19691.77142 | AD22: 8352.695224 | AE22: 14204.03155 | AF22: 42248.49819 | AG22: 0 | AH22: 0 | AI22: 1798.013243 | AJ22: 0 | AK22: 5254.945301 | AL22: 6295.533957 | AM22: 11550.47926 | AN22: 6474.330146 | AO22: 25055.90118 | AP22: 142569.2424 | AQ22: 178712.049 | AR22: 13516.99944 | AS22: 10227.54637 | AT22: 11101.4113 | AU22: 21328.95768 | AV22: 26408.24465 | AW22: 0 | AX22: 0 | AY22: 35412.37851 | AZ22: 61820.62315 | BA22: 22000 | BB22: 0 | BC22: 0 | BD22: 98000 | BE22: 0 | BF22: 135971.4825 | BG22: 11858660.31 | BH22: 180745.0006 | BI22: 130081.4704 | BJ22: 310826.4709 | BK22: 373432.0176 | BL22: 88242.43612 | BM22: 461674.4537 | BN22: 120000 | BP22: 0 | BQ22: 0 | BR22: 0 | BS22: 0 | BT22: 300000 | BU22: 20556.09506 | BV22: 161323.0577 | BW22: 181879.1527 | BX22: 103368.4621 | BY22: 0 | BZ22: 0 | CA22: 138501.7471 | CB22: 241870.2091 | CC22: 0 | CD22: 82628.88319 | CE22: 82628.88319 | CF22: 1698879.17 | CG22: 13557539.48 | CI22: 8474986.33 | CJ22: 3383673.982 | CK22: 1698879.17 | CL22: 0
A23: 521 | B23: Kasese District | C23: 0 | D23: 0 | E23: 451155.252 | F23: 2928151.141 | G23: 1547822.508 | H23: 246230.352 | I23: 520706.172 | J23: 2381853.936 | K23: 0 | L23: 0 | M23: 333263.748 | N23: 16762555.51 | O23: 3702568.524 | P23: 6099957.168 | Q23: 285927.024 | R23: 24336 | S23: 1275472.811 | T23: 301154.3139 | U23: 137576.6687 | V23: 812806.6585 | W23: 2497290 | X23: 29862.77452 | Y23: 28120.48592 | Z23: 0 | AA23: 28120.48592 | AB23: 0 | AC23: 67421.11208 | AD23: 28786.23988 | AE23: 0 | AF23: 96207.35196 | AG23: 9195.8333 | AH23: 0 | AI23: 35230.51258 | AJ23: 0 | AK23: 9213.327511 | AL23: 0 | AM23: 9213.327511 | AN23: 27239.54071 | AO23: 95215.55649 | AP23: 204422.4 | AQ23: 230749.9631 | AR23: 56870.26275 | AS23: 34946.43073 | AT23: 41749.60745 | AU23: 76696.03817 | AV23: 215239.9446 | AW23: 0 | AX23: 7200 | AY23: 0 | AZ23: 222439.9446 | BA23: 22000 | BB23: 0 | BC23: 0 | BD23: 0 | BE23: 584187.8 | BF23: 149479 | BG23: 42185958.58 | BH23: 1117620.003 | BI23: 0 | BJ23: 1117620.003 | BK23: 551546.9968 | BL23: 0 | BM23: 551546.9968 | BN23: 300000 | BO23: 672550.232 | BP23: 0 | BQ23: 0 | BR23: 0 | BS23: 0 | BT23: 0 | BU23: 38470.31653 | BV23: 0 | BW23: 38470.31653 | BX23: 273188.0783 | BY23: 0 | BZ23: 211295.053 | CA23: 0 | CB23: 484483.1313 | CC23: 0 | CD23: 0 | CE23: 0 | CF23: 3164670.68 | CG23: 45350629.26 | CI23: 30315590.48 | CJ23: 11870368.1 | CK23: 3164670.68 | CL23: 0
A24: 522 | B24: Katakwi District | C24: 0 | D24: 0 | E24: 677017.344 | F24: 546288.136 | G24: 369679.3538 | H24: 45869.87359 | I24: 50002.548 | J24: 1180335.816 | K24: 0 | L24: 58519.44492 | M24: 168793.62 | N24: 4144984.62 | O24: 685312.104 | P24: 2501708.952 | Q24: 106074.396 | R24: 24336 | S24: 458636.098 | T24: 136992.749 | U24: 109249.995 | V24: 42479.14132 | W24: 392067 | X24: 10593.59134 | Y24: 28120.48592 | Z24: 0 | AA24: 28120.48592 | AB24: 0 | AC24: 35444.90511 | AD24: 8481.720597 | AE24: 21320.09352 | AF24: 65246.71923 | AG24: 0 | AH24: 0 | AI24: 2683.557379 | AJ24: 0 | AK24: 7258.487901 | AL24: 75152.93661 | AM24: 82411.42451 | AN24: 9663.019171 | AO24: 23483.24844 | AP24: 154814.4 | AQ24: 100589.5322 | AR24: 20174.29167 | AS24: 12036.24523 | AT24: 13343.96224 | AU24: 25380.20747 | AV24: 69272.37431 | AW24: 0 | AX24: 0 | AY24: 110171.8442 | AZ24: 179444.2186 | BA24: 0 | BB24: 0 | BC24: 0 | BD24: 98000 | BE24: 0 | BF24: 0 | BG24: 12498951.89 | BH24: 339072.0011 | BI24: 251053.8335 | BJ24: 590125.8346 | BK24: 468769.3833 | BL24: 62955.33957 | BM24: 531724.7229 | BN24: 56446 | BP24: 0 | BQ24: 0 | BR24: 0 | BS24: 123862.9753 | BT24: 0 | BU24: 20283.01928 | BV24: 141649.514 | BW24: 161932.5333 | BX24: 169819.6163 | BY24: 0 | BZ24: 150000 | CA24: 262051.601 | CB24: 581871.2172 | CC24: 512002.2805 | CD24: 141649.514 | CE24: 653651.7946 | CF24: 2699615.078 | CG24: 15198566.97 | CI24: 9016362.456 | CJ24: 3482589.432 | CK24: 2575752.103 | CL24: 123862.9753
A25: 523 | B25: Kayunga District | C25: 0 | D25: 0 | E25: 171760.74 | F25: 246781.14 | G25: 1312569.874 | H25: 95869.88889 | I25: 112230.396 | J25: 1088331.552 | K25: 0 | L25: 0 | M25: 92262.936 | N25: 9037737.276 | O25: 2379236.904 | P25: 2662102.836 | Q25: 101827.296 | R25: 24336 | S25: 793070.0086 | T25: 226695.4557 | U25: 131633.602 | V25: 29959.9992 | W25: 1377594 | X25: 13820.70029 | Y25: 28120.48592 | Z25: 0 | AA25: 28120.48592 | AB25: 0 | AC25: 36839.9217 | AD25: 16359.05918 | AE25: 0 | AF25: 53198.98088 | AG25: 0 | AH25: 0 | AI25: 13875.68498 | AJ25: 0 | AK25: 6421.041069 | AL25: 0 | AM25: 6421.041069 | AN25: 12606.64939 | AO25: 44892.41496 | AP25: 140212.8 | AQ25: 96711.38158 | AR25: 26319.95418 | AS25: 28540.62228 | AT25: 33807.23954 | AU25: 62347.86183 | AV25: 98584.30897 | AW25: 0 | AX25: 7200 | AY25: 0 | AZ25: 105784.309 | BA25: 22000 | BB25: 0 | BC25: 0 | BD25: 0 | BE25: 134200 | BF25: 0 | BG25: 20644512.17 | BH25: 791445.0025 | BI25: 0 | BJ25: 791445.0025 | BK25: 520052.3559 | BL25: 0 | BM25: 520052.3559 | BN25: 100000 | BO25: 246922.937 | BP25: 0 | BQ25: 0 | BR25: 0 | BS25: 0 | BT25: 0 | BU25: 39744.54456 | BV25: 0 | BW25: 39744.54456 | BX25: 273188.0783 | BY25: 0 | BZ25: 0 | CA25: 0 | CB25: 273188.0783 | CC25: 0 | CD25: 0 | CE25: 0 | CF25: 1971352.918 | CG25: 22615865.09 | CI25: 15638278 | CJ25: 5006234.172 | CK25: 1971352.918 | CL25: 0
A26: 524 | B26: Kibale District | C26: 0 | D26: 0 | E26: 339278.184 | F26: 452000.5734 | G26: 1262021.032 | H26: 255098.5276 | I26: 78435.336 | J26: 2133314.088 | K26: 0 | L26: 0 | M26: 97656.108 | N26: 11622994.78 | O26: 1768626.192 | P26: 2962303.62 | Q26: 158249.916 | R26: 24336 | S26: 1265632.027 | T26: 403316.5758 | U26: 131633.602 | V26: 97134.89161 | W26: 1881225 | X26: 36082.2515 | Y26: 28120.48592 | Z26: 0 | AA26: 28120.48592 | AB26: 0 | AC26: 58949.14012 | AD26: 21078.67152 | AE26: 0 | AF26: 80027.81165 | AG26: 9195.8333 | AH26: 0 | AI26: 47180.66369 | AJ26: 0 | AK26: 8723.440609 | AL26: 0 | AM26: 8723.440609 | AN26: 32912.68057 | AO26: 56827.49951 | AP26: 233625.6 | AQ26: 322371.2719 | AR26: 68714.55037 | AS26: 56424.72963 | AT26: 68379.89983 | AU26: 124804.6295 | AV26: 216490.2424 | AW26: 0 | AX26: 0 | AY26: 0 | AZ26: 216490.2424 | BA26: 22000 | BB26: 0 | BC26: 0 | BD26: 0 | BE26: 134200 | BF26: 0 | BG26: 26354533.41 | BH26: 1151134.004 | BI26: 0 | BJ26: 1151134.004 | BK26: 472906.0166 | BL26: 0 | BM26: 472906.0166 | BN26: 0 | BP26: 0 | BQ26: 0 | BR26: 0 | BS26: 0 | BT26: 0 | BU26: 40338.80633 | BV26: 0 | BW26: 40338.80633 | BX26: 273188.0783 | BY26: 272000 | BZ26: 0 | CA26: 0 | CB26: 545188.0783 | CC26: 2230000 | CD26: 0 | CE26: 2230000 | CF26: 4439566.905 | CG26: 30794100.32 | CI26: 19079541.64 | CJ26: 7274991.775 | CK26: 4439566.905 | CL26: 0
A27: 525 | B27: Kiboga District | C27: 0 | D27: 0 | E27: 138215.328 | F27: 334639.107 | G27: 340268.6396 | H27: 151693.641 | I27: 203300.892 | J27: 1113421.368 | K27: 0 | L27: 0 | M27: 40000 | N27: 4717886.088 | O27: 480446.16 | P27: 1841510.64 | Q27: 121382.34 | R27: 24336 | S27: 303628.7946 | T27: 97352.79381 | U27: 131633.602 | V27: 23822.68387 | W27: 463230 | X27: 8344.97409 | Y27: 28120.48592 | Z27: 0 | AA27: 28120.48592 | AB27: 0 | AC27: 21270.48244 | AD27: 7327.283046 | AE27: 0 | AF27: 28597.76549 | AG27: 9195.8333 | AH27: 0 | AI27: 2113.94003 | AJ27: 0 | AK27: 6218.920109 | AL27: 0 | AM27: 6218.920109 | AN27: 7611.927061 | AO27: 24739.65604 | AP27: 105456 | AQ27: 71866.97904 | AR27: 15892.05547 | AS27: 15578.28049 | AT27: 17735.62449 | AU27: 33313.90498 | AV27: 46309.30522 | AW27: 0 | AX27: 0 | AY27: 0 | AZ27: 46309.30522 | BA27: 22000 | BB27: 0 | BC27: 0 | BD27: 0 | BE27: 134200 | BF27: 0 | BG27: 11070749.82 | BH27: 425935.0013 | BI27: 0 | BJ27: 425935.0013 | BK27: 414560.0176 | BL27: 0 | BM27: 414560.0176 | BN27: 0 | BO27: 312608.423 | BP27: 0 | BQ27: 0 | BR27: 0 | BS27: 0 | BT27: 300000 | BU27: 20904.94757 | BV27: 0 | BW27: 20904.94757 | BX27: 206736.9241 | BY27: 272000 | BZ27: 0 | CA27: 0 | CB27: 478736.9241 | CC27: 0 | CD27: 0 | CE27: 0 | CF27: 1952745.314 | CG27: 13023495.14 | CI27: 8647739.488 | CJ27: 2423010.337 | CK27: 1952745.314 | CL27: 0
A28: 526 | B28: Kisoro District | C28: 30000 | D28: 0 | E28: 524736.732 | F28: 208402.704 | G28: 542472.1506 | H28: 79513.72899 | I28: 170255.652 | J28: 2201904.372 | K28: 0 | L28: 0 | M28: 341654.76 | N28: 8908374.336 | O28: 1924120.452 | P28: 3515435.904 | Q28: 122889.528 | R28: 24336 | S28: 711935.8352 | T28: 178633.5158 | U28: 137331.122 | V28: 353304.2989 | W28: 826851 | X28: 13947.02136 | Y28: 28120.48592 | Z28: 0 | AA28: 28120.48592 | AB28: 0 | AC28: 38892.12848 | AD28: 16814.04339 | AE28: 0 | AF28: 55706.17188 | AG28: 9195.8333 | AH28: 0 | AI28: 3533.044731 | AJ28: 0 | AK28: 5752.554202 | AL28: 0 | AM28: 5752.554202 | AN28: 12721.87404 | AO28: 47197.34638 | AP28: 84364.8 | AQ28: 120101.4776 | AR28: 26560.51831 | AS28: 19421.76556 | AT28: 22501.04523 | AU28: 41922.81079 | AV28: 78786.99895 | AW28: 0 | AX28: 7200 | AY28: 0 | AZ28: 85986.99895 | BA28: 22000 | BB28: 3242243.653 | BC28: 0 | BD28: 0 | BE28: 134200 | BF28: 149479 | BG28: 24885185.68 | BH28: 421060.0013 | BI28: 0 | BJ28: 421060.0013 | BK28: 772428.2645 | BL28: 0 | BM28: 772428.2645 | BN28: 0 | BP28: 0 | BQ28: 0 | BR28: 0 | BS28: 0 | BT28: 0 | BU28: 20904.94757 | BV28: 0 | BW28: 20904.94757 | BX28: 206736.9241 | BY28: 0 | BZ28: 0 | CA28: 0 | CB28: 206736.9241 | CC28: 0 | CD28: 0 | CE28: 0 | CF28: 1421130.138 | CG28: 26306315.82 | CI28: 17293335.8 | CJ28: 7591849.878 | CK28: 1421130.138 | CL28: 0
A29: 527 | B29: Kitgum District | C29: 30000 | D29: 0 | E29: 855141.228 | F29: 898650.557 | G29: 368354.371 | H29: 124470.5248 | I29: 231475.746 | J29: 1180646.7 | K29: 36101.57342 | L29: 135535.6747 | M29: 466438.284 | N29: 6502085.928 | O29: 1278946.752 | P29: 3463957.813 | Q29: 143993.832 | R29: 24336 | S29: 535768.101 | T29: 131813.803 | U29: 256929.0962 | V29: 428234.757 | W29: 1797015 | X29: 17811.93226 | Y29: 28120.48592 | Z29: 39347.08723 | AA29: 67467.57316 | AB29: 0 | AC29: 40670.02314 | AD29: 11782.05383 | AE29: 33430.02497 | AF29: 85882.10194 | AG29: 0 | AH29: 0 | AI29: 4512.099883 | AJ29: 0 | AK29: 8095.401734 | AL29: 62955.33957 | AM29: 71050.74131 | AN29: 16247.27983 | AO29: 34053.62163 | AP29: 149947.2 | AQ29: 111496.8309 | AR29: 33920.80222 | AS29: 14523.20616 | AT29: 16427.46978 | AU29: 30950.67593 | AV29: 103592.0138 | AW29: 0 | AX29: 7200 | AY29: 118041.2617 | AZ29: 228833.2755 | BA29: 22000 | BB29: 1929715.607 | BC29: 50000 | BD29: 0 | BE29: 134200 | BF29: 279045 | BG29: 22157030.48 | BH29: 623441.0019 | BI29: 323841.527 | BJ29: 947282.529 | BK29: 351026.5263 | BL29: 220343.6885 | BM29: 571370.2148 | BN29: 0 | BP29: 0 | BQ29: 0 | BR29: 0 | BS29: 0 | BT29: 500000 | BU29: 27732.80384 | BV29: 354123.7851 | BW29: 381856.5889 | BX29: 103368.4621 | BY29: 0 | BZ29: 0 | CA29: 259690.7757 | CB29: 363059.2378 | CC29: 512002.2805 | CD29: 259727.7588 | CE29: 771730.0394 | CF29: 3535298.61 | CG29: 25692329.09 | CI29: 13441828.26 | CJ29: 8715202.228 | CK29: 3535298.61 | CL29: 0
A30: 528 | B30: Kotido District | C30: 0 | D30: 0 | E30: 107309.256 | F30: 128246.964 | G30: 383804.0885 | H30: 66838.9494 | I30: 145386.834 | J30: 842809.044 | K30: 18186.7324 | L30: 66221.0679 | M30: 194896.66 | N30: 1497889.812 | O30: 180758.916 | P30: 1145896.608 | Q30: 181361.58 | R30: 24336 | S30: 116416.1765 | T30: 149096.7007 | U30: 0 | V30: 137551.2629 | W30: 271710 | X30: 10725.44584 | Y30: 28120.48592 | Z30: 33380.95686 | AA30: 61501.44278 | AB30: 0 | AC30: 21456.28838 | AD30: 4013.368193 | AE30: 33380.95694 | AF30: 58850.61351 | AG30: 0 | AH30: 0 | AI30: 2716.958621 | AJ30: 0 | AK30: 6610.965031 | AL30: 33380.95686 | AM30: 39991.92189 | AN30: 9783.291182 | AO30: 12228.00766 | AP30: 106766.4 | AQ30: 53082.18688 | AR30: 20425.39359 | AS30: 7439.13564 | AT30: 7644.145273 | AU30: 15083.28091 | AV30: 99369.04153 | AW30: 0 | AX30: 0 | AY30: 50071.43568 | AZ30: 149440.4772 | BA30: 22000 | BB30: 439238.1124 | BC30: 0 | BD30: 0 | BE30: 134200 | BF30: 99653 | BG30: 6894403.185 | BH30: 476391.0015 | BI30: 200285.7412 | BJ30: 676676.7426 | BK30: 470414.2107 | BL30: 417261.9619 | BM30: 887676.1726 | BN30: 0 | BP30: 0 | BQ30: 0 | BR30: 0 | BS30: 0 | BT30: 0 | BU30: 20962.87098 | BV30: 333809.5694 | BW30: 354772.4404 | BX30: 103368.4621 | BY30: 0 | BZ30: 0 | CA30: 400571.4831 | CB30: 503939.9452 | CC30: 0 | CD30: 166904.7851 | CE30: 166904.7851 | CF30: 2589970.086 | CG30: 9484373.271 | CI30: 4320101.854 | CJ30: 2574301.331 | CK30: 2589970.086 | CL30: 0
A31: 529 | B31: Kumi District | C31: 30000 | D31: 0 | E31: 1427534.712 | F31: 1179867.351 | G31: 473103.626 | H31: 55232.07502 | I31: 158677.704 | J31: 881961.42 | K31: 0 | L31: 0 | M31: 212133.792 | N31: 5607174.276 | O31: 964109.472 | P31: 1972543.68 | Q31: 135768.312 | R31: 24336 | S31: 685103.4883 | T31: 153483.2602 | U31: 153622.9489 | V31: 312101.4661 | W31: 710151 | X31: 10281.17989 | Y31: 28120.48592 | Z31: 11804.12617 | AA31: 39924.61209 | AB31: 16000 | AC31: 25158.07305 | AD31: 10301.65744 | AE31: 18706.02373 | AF31: 54165.75422 | AG31: 0 | AH31: 0 | AI31: 2604.41764 | AJ31: 0 | AK31: 10204.67231 | AL31: 7869.417446 | AM31: 18074.08976 | AN31: 9378.050861 | AO31: 28174.0554 | AP31: 107078.4 | AQ31: 68837.17386 | AR31: 19579.33954 | AS31: 12186.97013 | AT31: 13530.84148 | AU31: 25717.81162 | AV31: 74487.7894 | AW31: 0 | AX31: 0 | AY31: 66890.04829 | AZ31: 141377.8377 | BA31: 0 | BB31: 0 | BC31: 0 | BD31: 98000 | BE31: 0 | BF31: 0 | BG31: 15776097.31 | BH31: 478219.0015 | BI31: 139919.0732 | BJ31: 618138.0747 | BK31: 361921.0223 | BL31: 201421.6742 | BM31: 563342.6966 | BN31: 0 | BP31: 0 | BQ31: 0 | BR31: 0 | BS31: 208048.3012 | BT31: 600000 | BU31: 23947.76444 | BV31: 192800.7274 | BW31: 216748.4919 | BX31: 206736.9241 | BY31: 0 | BZ31: 0 | CA31: 223491.4555 | CB31: 430228.3796 | CC31: 512002.2805 | CD31: 72398.64051 | CE31: 584400.921 | CF31: 3220906.865 | CG31: 18997004.17 | CI31: 10063783.06 | CJ31: 5712314.25 | CK31: 3012858.564 | CL31: 208048.3012
A32: 530 | B32: Kyenjojo District | C32: 30000 | D32: 0 | E32: 182653.572 | F32: 1031578.799 | G32: 855364.9951 | H32: 263154.0602 | I32: 561691.284 | J32: 1265344.908 | K32: 0 | L32: 0 | M32: 163741.252 | N32: 6611947.656 | O32: 875267.58 | P32: 2248010.316 | Q32: 177522.144 | R32: 24336 | S32: 706453.0919 | T32: 243445.5752 | U32: 109249.995 | V32: 80906.87975 | W32: 1040112 | X32: 19042.03154 | Y32: 28120.48592 | Z32: 0 | AA32: 28120.48592 | AB32: 376000 | AC32: 34553.1767 | AD32: 12012.94134 | AE32: 0 | AF32: 46566.11804 | AG32: 0 | AH32: 0 | AI32: 23267.51137 | AJ32: 0 | AK32: 8547.533644 | AL32: 0 | AM32: 8547.533644 | AN32: 17369.32357 | AO32: 34848.90331 | AP32: 160617.6 | AQ32: 161791.597 | AR32: 36263.3866 | AS32: 23566.70043 | AT32: 27640.22446 | AU32: 51206.9249 | AV32: 93277.07723 | AW32: 0 | AX32: 0 | AY32: 0 | AZ32: 93277.07723 | BA32: 22000 | BB32: 0 | BC32: 0 | BD32: 0 | BE32: 134200 | BF32: 179375 | BG32: 17863273.6 | BH32: 636512.002 | BI32: 0 | BJ32: 636512.002 | BK32: 535499.5786 | BL32: 0 | BM32: 535499.5786 | BN32: 0 | BO32: 302594.135 | BP32: 0 | BQ32: 0 | BR32: 0 | BS32: 0 | BT32: 0 | BU32: 32288.82991 | BV32: 0 | BW32: 32288.82991 | BX32: 339639.2325 | BY32: 0 | BZ32: 200000 | CA32: 0 | CB32: 539639.2325 | CC32: 0 | CD32: 0 | CE32: 0 | CF32: 2046533.778 | CG32: 19909807.38 | CI32: 12088478.74 | CJ32: 5774794.861 | CK32: 2046533.778 | CL32: 0
A33: 531 | B33: Lira District | C33: 47143 | D33: 25000 | E33: 2219396.256 | F33: 1389507.803 | G33: 515509.4189 | H33: 0 | I33: 0 | J33: 1222352.136 | K33: 0 | L33: 99766.63076 | M33: 217056.244 | N33: 8515318.608 | O33: 2164496.52 | P33: 2070559.3 | Q33: 124956.972 | R33: 24336 | S33: 747269.2683 | T33: 186649.1018 | U33: 0 | V33: 53839.58634 | W33: 1747800 | X33: 11437.13139 | Y33: 28120.48592 | Z33: 57578.84497 | AA33: 85699.3309 | AB33: 350000 | AC33: 36385.51679 | AD33: 14715.68337 | AE33: 38385.89647 | AF33: 89487.09664 | AG33: 0 | AH33: 545953.012 | AI33: 2897.242053 | AJ33: 0 | AK33: 12083.82194 | AL33: 76771.79304 | AM33: 88855.61497 | AN33: 10432.46018 | AO33: 53389.19624 | AP33: 124612.8 | AQ33: 161064.4438 | AR33: 21780.71789 | AS33: 13995.66899 | AT33: 15773.39242 | AU33: 29769.06141 | AV33: 129870.5611 | AW33: 0 | AX33: 7200 | AY33: 191929.4822 | AZ33: 329000.0433 | BA33: 22000 | BB33: 0 | BC33: 96000 | BD33: 0 | BE33: 268400 | BF33: 193825 | BG33: 23855560 | BH33: 297398.0009 | BI33: 345473.0683 | BJ33: 642871.0692 | BK33: 568812.2 | BL33: 172736.5341 | BM33: 741548.7342 | BN33: 0 | BP33: 0 | BQ33: 0 | BR33: 0 | BS33: 167838.5712 | BT33: 0 | BU33: 12002.81077 | BV33: 287894.2233 | BW33: 299897.0341 | BX33: 169819.6163 | BY33: 0 | BZ33: 0 | CA33: 575788.4474 | CB33: 745608.0636 | CC33: 512002.2805 | CD33: 172736.5341 | CE33: 684738.8147 | CF33: 3282502.287 | CG33: 27138062.28 | CI33: 14463688.58 | CJ33: 9391871.416 | CK33: 3114663.716 | CL33: 167838.5712
A34: 532 | B34: Luwero District | C34: 30000 | D34: 0 | E34: 591463.536 | F34: 1953347.143 | G34: 709951.0867 | H34: 318658.1874 | I34: 506637.48 | J34: 1597879.416 | K34: 0 | L34: 0 | M34: 240615.744 | N34: 14252807.17 | O34: 4623572.496 | P34: 4061767.5 | Q34: 186896.664 | R34: 24336 | S34: 1128095.825 | T34: 267282.1577 | U34: 0 | V34: 181052.5607 | W34: 2856177 | X34: 19116.9073 | Y34: 28120.48592 | Z34: 0 | AA34: 28120.48592 | AB34: 66000 | AC34: 53781.1262 | AD34: 23591.2709 | AE34: 0 | AF34: 77372.3971 | AG34: 0 | AH34: 0 | AI34: 4842.674783 | AJ34: 0 | AK34: 9058.275542 | AL34: 0 | AM34: 9058.275542 | AN34: 17437.62203 | AO34: 72691.93773 | AP34: 146016 | AQ34: 142643.2282 | AR34: 36405.97898 | AS34: 30424.68359 | AT34: 36143.2301 | AU34: 66567.91369 | AV34: 115354.1511 | AW34: 0 | AX34: 0 | AY34: 0 | AZ34: 115354.1511 | BA34: 22000 | BB34: 0 | BC34: 73400 | BD34: 0 | BE34: 0 | BF34: 0 | BG34: 34427567.54 | BH34: 836770.0026 | BI34: 0 | BJ34: 836770.0026 | BK34: 475006.6101 | BL34: 0 | BM34: 475006.6101 | BN34: 100000 | BO34: 506067.983 | BP34: 0 | BQ34: 0 | BR34: 0 | BS34: 0 | BT34: 0 | BU34: 29139.67261 | BV34: 0 | BW34: 29139.67261 | BX34: 339639.2325 | BY34: 0 | BZ34: 150000 | CA34: 0 | CB34: 489639.2325 | CC34: 0 | CD34: 0 | CE34: 0 | CF34: 2436623.501 | CG34: 36864191.04 | CI34: 25640528.47 | CJ34: 8787039.069 | CK34: 2436623.501 | CL34: 0
A35: 533 | B35: Masaka District | C35: 47143 | D35: 25000 | E35: 1620533.82 | F35: 1431602.904 | G35: 577847.0706 | H35: 0 | I35: 0 | J35: 992318.976 | K35: 0 | L35: 0 | M35: 299910.972 | N35: 4438673.688 | O35: 1226077.296 | P35: 1648810.368 | Q35: 115378.44 | R35: 24336 | S35: 274889.9333 | T35: 158719.5596 | U35: 0 | V35: 397663.1838 | W35: 876708 | X35: 7881.588266 | Y35: 28120.48592 | Z35: 0 | AA35: 28120.48592 | AB35: 0 | AC35: 26717.25505 | AD35: 8821.261053 | AE35: 0 | AF35: 35538.5161 | AG35: 0 | AH35: 203605.0045 | AI35: 7760.244382 | AJ35: 0 | AK35: 11947.30296 | AL35: 0 | AM35: 11947.30296 | AN35: 7189.246408 | AO35: 35770.13009 | AP35: 85987.2 | AQ35: 95014.69068 | AR35: 15009.58979 | AS35: 16105.81765 | AT35: 18389.70185 | AU35: 34495.5195 | AV35: 80173.93926 | AW35: 0 | AX35: 0 | AY35: 0 | AZ35: 80173.93926 | BA35: 22000 | BB35: 0 | BC35: 0 | BD35: 71000 | BE35: 134200 | BF35: 313617 | BG35: 15344923.67 | BH35: 101170.0003 | BI35: 0 | BJ35: 101170.0003 | BK35: 364684.885 | BL35: 0 | BM35: 364684.885 | BN35: 40000 | BP35: 0 | BQ35: 0 | BR35: 0 | BS35: 0 | BT35: 0 | BU35: 29365.58572 | BV35: 0 | BW35: 29365.58572 | BX35: 206736.9241 | BY35: 0 | BZ35: 142567.173 | CA35: 0 | CB35: 349304.0971 | CC35: 0 | CD35: 0 | CE35: 0 | CF35: 884524.5682 | CG35: 16229448.24 | CI35: 8831492.94 | CJ35: 6513430.729 | CK35: 884524.5682 | CL35: 0
A36: 534 | B36: Masindi District | C36: 30000 | D36: 0 | E36: 549478.896 | F36: 1236020.634 | G36: 488157.8878 | H36: 0 | I36: 7476.756 | J36: 1334000.184 | K36: 0 | L36: 0 | M36: 106304.604 | N36: 5356488.192 | O36: 700863.096 | P36: 2666079.079 | Q36: 164589.048 | R36: 24336 | S36: 357498.4763 | T36: 126433.4703 | U36: 147227.893 | V36: 6889.281118 | W36: 360258 | X36: 11045.76204 | Y36: 28120.48592 | Z36: 0 | AA36: 28120.48592 | AB36: 0 | AC36: 25824.12786 | AD36: 9500.341966 | AE36: 26889.31546 | AF36: 62213.78528 | AG36: 0 | AH36: 0 | AI36: 2798.100782 | AJ36: 0 | AK36: 7361.970881 | AL36: 8515.506062 | AM36: 15877.47694 | AN36: 10075.46986 | AO36: 37046.14125 | AP36: 107078.4 | AQ36: 74412.0154 | AR36: 21035.39941 | AS36: 13317.40692 | AT36: 14932.43582 | AU36: 28249.84274 | AV36: 105023.4203 | AW36: 0 | AX36: 7200 | AY36: 66714.53274 | AZ36: 178937.9531 | BA36: 22000 | BB36: 0 | BC36: 0 | BD36: 0 | BE36: 0 | BF36: 149479 | BG36: 14410471.33 | BH36: 115463.0004 | BI36: 119041.5292 | BJ36: 234504.5295 | BK36: 361803.498 | BL36: 105699.1436 | BM36: 467502.6415 | BN36: 0 | BP36: 0 | BQ36: 0 | BR36: 0 | BS36: 0 | BT36: 600000 | BU36: 31002.00145 | BV36: 333198.9333 | BW36: 364200.9347 | BX36: 140285.77 | BY36: 0 | BZ36: 0 | CA36: 307286.281 | CB36: 447572.051 | CC36: 0 | CD36: 377120.5318 | CE36: 377120.5318 | CF36: 2490900.689 | CG36: 16901372.02 | CI36: 10467215.36 | CJ36: 3943255.971 | CK36: 2490900.689 | CL36: 0
A37: 535 | B37: Mayuge District | C37: 0 | D37: 0 | E37: 127906.632 | F37: 1251634.215 | G37: 735292.2222 | H37: 67423.85797 | I37: 143272.548 | J37: 1151079.095 | K37: 0 | L37: 0 | M37: 78389.004 | N37: 9761858.112 | O37: 1407547.38 | P37: 1780515.684 | Q37: 286442.516 | R37: 24336 | S37: 995557.3888 | T37: 277959.1897 | U37: 0 | V37: 200939.6247 | W37: 1995288 | X37: 20629.15308 | Y37: 28120.48592 | Z37: 0 | AA37: 28120.48592 | AB37: 0 | AC37: 45045.96812 | AD37: 15116.34111 | AE37: 0 | AF37: 60162.30923 | AG37: 0 | AH37: 0 | AI37: 5225.755288 | AJ37: 0 | AK37: 7138.478925 | AL37: 0 | AM37: 7138.478925 | AN37: 18817.0277 | AO37: 42967.69619 | AP37: 141148.8 | AQ37: 130645.1997 | AR37: 39285.87934 | AS37: 21305.82686 | AT37: 24837.03579 | AU37: 46142.86266 | AV37: 151171.9359 | AW37: 0 | AX37: 0 | AY37: 0 | AZ37: 151171.9359 | BA37: 22000 | BB37: 442328.5086 | BC37: 0 | BD37: 0 | BE37: 134200 | BF37: 0 | BG37: 21575425.56 | BH37: 792160.0025 | BI37: 0 | BJ37: 792160.0025 | BK37: 672357.5685 | BL37: 0 | BM37: 672357.5685 | BN37: 200000 | BP37: 0 | BQ37: 0 | BR37: 0 | BS37: 0 | BT37: 0 | BU37: 28104.77421 | BV37: 0 | BW37: 28104.77421 | BX37: 273188.0783 | BY37: 0 | BZ37: 260109.278 | CA37: 0 | CB37: 533297.3563 | CC37: 0 | CD37: 0 | CE37: 0 | CF37: 2225919.701 | CG37: 23801345.26 | CI37: 14774589.14 | CJ37: 6800836.423 | CK37: 2225919.701 | CL37: 0
A38: 536 | B38: Mbale District | C38: 47143 | D38: 25000 | E38: 2436764.616 | F38: 2569792.999 | G38: 660709.3397 | H38: 87810.98736 | I38: 115879.164 | J38: 1421023.452 | K38: 0 | L38: 0 | M38: 460164.948 | N38: 8970673.032 | O38: 2763298.992 | P38: 3795760.577 | Q38: 207489.876 | R38: 24336 | S38: 748702.9676 | T38: 231622.1658 | U38: 0 | V38: 170179.3402 | W38: 2341371.451 | X38: 17269.50855 | Y38: 28120.48592 | Z38: 0 | AA38: 28120.48592 | AB38: 370000 | AC38: 41325.78951 | AD38: 16610.31912 | AE38: 23980.83746 | AF38: 81916.94608 | AG38: 0 | AH38: 605518.0133 | AI38: 4374.693681 | AJ38: 0 | AK38: 10472.67826 | AL38: 7869.417446 | AM38: 18342.09571 | AN38: 15752.50421 | AO38: 72235.99302 | AP38: 169727.6568 | AQ38: 221902.9319 | AR38: 32887.81786 | AS38: 17688.42915 | AT38: 20351.93392 | AU38: 38040.36307 | AV38: 115347.6474 | AW38: 0 | AX38: 0 | AY38: 110171.8442 | AZ38: 225519.4916 | BA38: 22000 | BB38: 0 | BC38: 76400 | BD38: 0 | BE38: 0 | BF38: 408854 | BG38: 29486585.41 | BH38: 439487.0014 | BI38: 0 | BJ38: 439487.0014 | BK38: 624102.6125 | BL38: 211687.3293 | BM38: 835789.9418 | BN38: 0 | BP38: 0 | BQ38: 0 | BR38: 0 | BS38: 0 | BT38: 0 | BU38: 37438.34289 | BV38: 393470.8723 | BW38: 430909.2152 | BX38: 169819.6163 | BY38: 0 | BZ38: 0 | CA38: 334450.2415 | CB38: 504269.8577 | CC38: 0 | CD38: 117411.3306 | CE38: 117411.3306 | CF38: 2327867.347 | CG38: 31814452.76 | CI38: 17928353.7 | CJ38: 11558231.71 | CK38: 2327867.347 | CL38: 0
A39: 537 | B39: Mbarara District | C39: 47143 | D39: 25000 | E39: 1788620.388 | F39: 1354218.462 | G39: 995623.8303 | H39: 0 | I39: 0 | J39: 1509327.816 | K39: 0 | L39: 0 | M39: 1375015.512 | N39: 10606347.46 | O39: 2700431.688 | P39: 2197063.128 | Q39: 245804.976 | R39: 24336 | S39: 758738.6182 | T39: 216362.2693 | U39: 0 | V39: 311298.9917 | W39: 1235178 | X39: 17280.61577 | Y39: 28120.48592 | Z39: 0 | AA39: 28120.48592 | AB39: 0 | AC39: 45687.92102 | AD39: 20012.51449 | AE39: 0 | AF39: 65700.43551 | AG39: 0 | AH39: 0 | AI39: 4377.50735 | AJ39: 0 | AK39: 11978.77596 | AL39: 0 | AM39: 11978.77596 | AN39: 15762.63574 | AO39: 74215.95716 | AP39: 146016 | AQ39: 179364.4671 | AR39: 32908.97029 | AS39: 21908.72648 | AT39: 25584.55277 | AU39: 47493.27925 | AV39: 110755.1325 | AW39: 0 | AX39: 0 | AY39: 0 | AZ39: 110755.1325 | BA39: 0 | BB39: 0 | BC39: 41600 | BD39: 196000 | BE39: 586480 | BF39: 0 | BG39: 26948564.4 | BH39: 215443.0007 | BI39: 0 | BJ39: 215443.0007 | BK39: 673530.242 | BL39: 0 | BM39: 673530.242 | BN39: 0 | BP39: 0 | BQ39: 0 | BR39: 0 | BS39: 81018.06044 | BT39: 0 | BU39: 34336.39564 | BV39: 0 | BW39: 34336.39564 | BX39: 140285.77 | BY39: 0 | BZ39: 0 | CA39: 0 | CB39: 140285.77 | CC39: 0 | CD39: 0 | CE39: 0 | CF39: 1144613.469 | CG39: 28093177.87 | CI39: 18804342.58 | CJ39: 8144221.822 | CK39: 1063595.408 | CL39: 81018.06044
A40: 538 | B40: Moroto District | C40: 0 | D40: 0 | E40: 60218.604 | F40: 139164.246 | G40: 285826.3504 | H40: 0 | I40: 0 | J40: 804408.06 | K40: 18671.26524 | L40: 43696.2375 | M40: 0 | N40: 2923860.12 | O40: 107870.4 | P40: 1059192.372 | Q40: 137203.356 | R40: 24336 | S40: 54248.96245 | T40: 77630.18626 | U40: 0 | V40: 54545.92171 | W40: 45879 | X40: 6988.996725 | Y40: 28120.48592 | Z40: 51376.27874 | AA40: 79496.76466 | AB40: 244000 | AC40: 19638.31599 | AD40: 2668.787986 | AE40: 29795.92366 | AF40: 52103.02763 | AG40: 0 | AH40: 0 | AI40: 1770.445274 | AJ40: 0 | AK40: 8555.955642 | AL40: 15098.26431 | AM40: 23654.21995 | AN40: 6375.062729 | AO40: 15772.79228 | AP40: 110323.2 | AQ40: 46901.3843 | AR40: 13309.75057 | AS40: 6384.061307 | AT40: 6335.99056 | AU40: 12720.05187 | AV40: 69640.21612 | AW40: 0 | AX40: 0 | AY40: 34625.43676 | AZ40: 104265.6529 | BA40: 22000 | BB40: 437077.2707 | BC40: 36000 | BD40: 0 | BE40: 134200 | BF40: 188911.7775 | BG40: 7372621.479 | BH40: 334109.001 | BI40: 125280.9573 | BJ40: 459389.9584 | BK40: 495528.9306 | BL40: 174097.483 | BM40: 669626.4136 | BN40: 0 | BP40: 0 | BQ40: 0 | BR40: 0 | BS40: 0 | BT40: 0 | BU40: 34011.39889 | BV40: 412655.7251 | BW40: 446667.124 | BX40: 103368.4621 | BY40: 0 | BZ40: 0 | CA40: 409209.7072 | CB40: 512578.1693 | CC40: 0 | CD40: 237656.4069 | CE40: 237656.4069 | CF40: 2325918.072 | CG40: 9698539.551 | CI40: 5167193.508 | CJ40: 2205427.971 | CK40: 2325918.072 | CL40: 0
A41: 539 | B41: Moyo District | C41: 0 | D41: 0 | E41: 349391.436 | F41: 509792.872 | G41: 331409.5414 | H41: 71898.63528 | I41: 156636.528 | J41: 1074176.46 | K41: 50000 | L41: 112656.3763 | M41: 316467.6 | N41: 4125431.316 | O41: 699299.76 | P41: 2888651.724 | Q41: 119317.38 | R41: 24336 | S41: 332244.2631 | T41: 177157.8347 | U41: 131170.9752 | V41: 57947.2166 | W41: 503106 | X41: 15919.12558 | Y41: 28120.48592 | Z41: 28632.45043 | AA41: 56752.93635 | AB41: 0 | AC41: 26307.5393 | AD41: 9622.57653 | AE41: 29216.98035 | AF41: 65147.09618 | AG41: 9195.8333 | AH41: 0 | AI41: 4032.616092 | AJ41: 0 | AK41: 10110.55233 | AL41: 78694.17446 | AM41: 88804.7268 | AN41: 14520.74284 | AO41: 26179.86736 | AP41: 121492.8 | AQ41: 79502.08812 | AR41: 30316.16685 | AS41: 11885.52033 | AT41: 13157.08299 | AU41: 25042.60332 | AV41: 57799.68418 | AW41: 0 | AX41: 0 | AY41: 88137.4754 | AZ41: 145937.1596 | BA41: 22000 | BB41: 0 | BC41: 0 | BD41: 0 | BE41: 134200 | BF41: 179375 | BG41: 13049510.68 | BH41: 633814.002 | BI41: 288020.6785 | BJ41: 921834.6805 | BK41: 691363.1111 | BL41: 101122.0142 | BM41: 792485.1253 | BN41: 433966.95 | BP41: 0 | BQ41: 0 | BR41: 0 | BS41: 109406.9093 | BT41: 0 | BU41: 33713.42313 | BV41: 291168.4455 | BW41: 324881.8687 | BX41: 103368.4621 | BY41: 0 | BZ41: 0 | CA41: 374860.1974 | CB41: 478228.6595 | CC41: 0 | CD41: 180996.6013 | CE41: 180996.6013 | CF41: 3241800.795 | CG41: 16291311.48 | CI41: 9525809.568 | CJ41: 3523701.113 | CK41: 3132393.885 | CL41: 109406.9093
A42: 540 | B42: Mpigi District | C42: 47143 | D42: 25000 | E42: 201950.844 | F42: 986966.966 | G42: 476545.7408 | H42: 149809.9962 | I42: 81496.344 | J42: 1242642.198 | K42: 0 | L42: 0 | M42: 136703.232 | N42: 6038737.484 | O42: 2098616.448 | P42: 1865801.382 | Q42: 179781.267 | R42: 24336 | S42: 492999.0353 | T42: 155439.8569 | U42: 0 | V42: 293222.6537 | W42: 1279692 | X42: 9839.578323 | Y42: 28120.48592 | Z42: 0 | AA42: 28120.48592 | AB42: 0 | AC42: 27471.00561 | AD42: 11035.06483 | AE42: 0 | AF42: 38506.07043 | AG42: 0 | AH42: 0 | AI42: 2492.551597 | AJ42: 0 | AK42: 8339.157685 | AL42: 0 | AM42: 8339.157685 | AN42: 8975.240869 | AO42: 44618.17893 | AP42: 107078.4 | AQ42: 95378.2673 | AR42: 18738.3595 | AS42: 19647.85291 | AT42: 22781.3641 | AU42: 42429.21701 | AV42: 57397.12143 | AW42: 0 | AX42: 0 | AY42: 0 | AZ42: 57397.12143 | BA42: 22000 | BB42: 0 | BC42: 0 | BD42: 0 | BE42: 134200 | BF42: 0 | BG42: 16394997.08 | BH42: 361415.0011 | BI42: 0 | BJ42: 361415.0011 | BK42: 404774.592 | BL42: 0 | BM42: 404774.592 | BN42: 0 | BP42: 0 | BQ42: 0 | BR42: 0 | BS42: 0 | BT42: 0 | BU42: 35549.14232 | BV42: 0 | BW42: 35549.14232 | BX42: 206736.9241 | BY42: 0 | BZ42: 0 | CA42: 0 | CB42: 206736.9241 | CC42: 0 | CD42: 0 | CE42: 0 | CF42: 1008475.66 | CG42: 17403472.74 | CI42: 11775192.76 | CJ42: 4619804.322 | CK42: 1008475.66 | CL42: 0
A43: 541 | B43: Mubende District | C43: 30000 | D43: 0 | E43: 1016024.796 | F43: 715096.934 | G43: 1220147.746 | H43: 137544.3722 | I43: 198745.068 | J43: 1584786.624 | K43: 0 | L43: 0 | M43: 371118.372 | N43: 10098938.14 | O43: 2698144.104 | P43: 2634829.705 | Q43: 227733.216 | R43: 24336 | S43: 982516.2904 | T43: 368378.5851 | U43: 0 | V43: 65853.36202 | W43: 2280315 | X43: 25531.2387 | Y43: 28120.48592 | Z43: 0 | AA43: 28120.48592 | AB43: 12000 | AC43: 50753.8475 | AD43: 18491.37325 | AE43: 0 | AF43: 69245.22075 | AG43: 9195.8333 | AH43: 0 | AI43: 6467.546443 | AJ43: 0 | AK43: 10140.41833 | AL43: 0 | AM43: 10140.41833 | AN43: 23288.49972 | AO43: 49701.40085 | AP43: 175219.2 | AQ43: 226023.467 | AR43: 48621.3447 | AS43: 31856.57018 | AT43: 37918.58293 | AU43: 69775.15311 | AV43: 188951.3084 | AW43: 0 | AX43: 0 | AY43: 0 | AZ43: 188951.3084 | BA43: 22000 | BB43: 0 | BC43: 60800 | BD43: 0 | BE43: 134200 | BF43: 0 | BG43: 25813789.43 | BH43: 1103041.003 | BI43: 0 | BJ43: 1103041.003 | BK43: 674530.242 | BL43: 0 | BM43: 674530.242 | BN43: 40000 | BO43: 530694.889 | BP43: 0 | BQ43: 0 | BR43: 0 | BS43: 0 | BT43: 0 | BU43: 30403.78174 | BV43: 0 | BW43: 30403.78174 | BX43: 273188.0783 | BY43: 272000 | BZ43: 0 | CA43: 0 | CB43: 545188.0783 | CC43: 0 | CD43: 0 | CE43: 0 | CF43: 2923857.995 | CG43: 28737647.42 | CI43: 18013850.42 | CJ43: 7799939.002 | CK43: 2923857.995 | CL43: 0
A44: 542 | B44: Mukono District | C44: 0 | D44: 0 | E44: 1472442.276 | F44: 1265602.528 | G44: 894829.9578 | H44: 0 | I44: 0 | J44: 1848820.08 | K44: 0 | L44: 0 | M44: 40000 | N44: 9828810.6 | O44: 4566025.536 | P44: 2456304 | Q44: 177166.836 | R44: 24336 | S44: 889014.0105 | T44: 256048.8371 | U44: 0 | V44: 183890.9465 | W44: 2814282 | X44: 20269.654 | Y44: 28120.48592 | Z44: 0 | AA44: 28120.48592 | AB44: 0 | AC44: 45802.36199 | AD44: 19122.9185 | AE44: 0 | AF44: 64925.28049 | AG44: 0 | AH44: 0 | AI44: 20120.27814 | AJ44: 0 | AK44: 9378.877478 | AL44: 0 | AM44: 9378.877478 | AN44: 18489.10807 | AO44: 70190.59869 | AP44: 96408 | AQ44: 141916.075 | AR44: 38601.25415 | AS44: 22662.351 | AT44: 26518.949 | AU44: 49181.3 | AV44: 139226.9561 | AW44: 0 | AX44: 0 | AY44: 0 | AZ44: 139226.9561 | BA44: 22000 | BB44: 100090.1375 | BC44: 0 | BD44: 0 | BE44: 134200 | BF44: 0 | BG44: 27670691.61 | BH44: 276820.0009 | BI44: 0 | BJ44: 276820.0009 | BK44: 503319.9073 | BL44: 0 | BM44: 503319.9073 | BN44: 237327.943 | BO44: 290812.03 | BP44: 0 | BQ44: 0 | BR44: 0 | BS44: 0 | BT44: 0 | BU44: 23763.33694 | BV44: 0 | BW44: 23763.33694 | BX44: 206736.9241 | BY44: 0 | BZ44: 0 | CA44: 0 | CB44: 206736.9241 | CC44: 0 | CD44: 0 | CE44: 0 | CF44: 1538780.142 | CG44: 29209471.76 | CI44: 19037871.05 | CJ44: 8632820.561 | CK44: 1538780.142 | CL44: 0
A45: 543 | B45: Nakapiripirit District | C45: 0 | D45: 0 | E45: 19034.184 | F45: 121134.388 | G45: 369208.2935 | H45: 36797.2562 | I45: 39714.624 | J45: 1187332.632 | K45: 12140.02004 | L45: 57262.69472 | M45: 171765.36 | N45: 3802823.46 | O45: 391184.7 | P45: 1141493.4 | Q45: 186895.344 | R45: 24336 | S45: 152690.1638 | T45: 107056.7647 | U45: 0 | V45: 54373.53295 | W45: 130338 | X45: 10001.11227 | Y45: 28120.48592 | Z45: 31359.96691 | AA45: 59480.45283 | AB45: 0 | AC45: 28037.24972 | AD45: 5439.438109 | AE45: 31359.96726 | AF45: 64836.65509 | AG45: 0 | AH45: 0 | AI45: 2533.471207 | AJ45: 0 | AK45: 9680.630417 | AL45: 23676.77529 | AM45: 33357.40571 | AN45: 9122.585204 | AO45: 21444.15981 | AP45: 111945.6 | AQ45: 57929.87518 | AR45: 19045.98257 | AS45: 8042.035258 | AT45: 8391.662252 | AU45: 16433.69751 | AV45: 99242.86031 | AW45: 0 | AX45: 0 | AY45: 31516.76741 | AZ45: 130759.6277 | BA45: 22000 | BB45: 1113707.6 | BC45: 0 | BD45: 0 | BE45: 134200 | BF45: 0 | BG45: 9812379.043 | BH45: 478062.0015 | BI45: 208543.7819 | BJ45: 686605.7834 | BK45: 668909.6406 | BL45: 156799.8361 | BM45: 825709.4767 | BN45: 0 | BP45: 0 | BQ45: 0 | BR45: 0 | BS45: 0 | BT45: 0 | BU45: 39753.85622 | BV45: 225242.9651 | BW45: 264996.8213 | BX45: 140285.77 | BY45: 0 | BZ45: 0 | CA45: 225242.9651 | CB45: 365528.7351 | CC45: 0 | CD45: 634255.338 | CE45: 634255.338 | CF45: 2777096.155 | CG45: 12589475.2 | CI45: 7057491.12 | CJ45: 2754887.923 | CK45: 2777096.155 | CL45: 0
A46: 544 | B46: Nakasongola District | C46: 30000 | D46: 0 | E46: 179072.892 | F46: 102504.996 | G46: 662258.2254 | H46: 143570.2605 | I46: 134020.872 | J46: 1671759.936 | K46: 0 | L46: 0 | M46: 68816.476 | N46: 5994472.056 | O46: 1328887.38 | P46: 1915281.324 | Q46: 140917.572 | R46: 24336 | S46: 444439.4302 | T46: 119742.6219 | U46: 0 | V46: 25486.68148 | W46: 878532 | X46: 9932.704322 | Y46: 28120.48592 | Z46: 0 | AA46: 28120.48592 | AB46: 0 | AC46: 40615.8555 | AD46: 11686.9825 | AE46: 0 | AF46: 52302.83801 | AG46: 0 | AH46: 0 | AI46: 12890.78195 | AJ46: 0 | AK46: 9648.525424 | AL46: 0 | AM46: 9648.525424 | AN46: 9060.186407 | AO46: 32609.68527 | AP46: 104520 | AQ46: 88349.11926 | AR46: 18915.70739 | AS46: 20250.75253 | AT46: 23528.88108 | AU46: 43779.63361 | AV46: 64092.79922 | AW46: 0 | AX46: 0 | AY46: 0 | AZ46: 64092.79922 | BA46: 22000 | BB46: 0 | BC46: 0 | BD46: 0 | BE46: 134200 | BF46: 0 | BG46: 14494521.19 | BH46: 311575.001 | BI46: 0 | BJ46: 311575.001 | BK46: 424126.9337 | BL46: 0 | BM46: 424126.9337 | BN46: 0 | BO46: 353728.271 | BP46: 0 | BQ46: 0 | BR46: 0 | BS46: 0 | BT46: 0 | BU46: 37728.67626 | BV46: 0 | BW46: 37728.67626 | BX46: 206736.9241 | BY46: 0 | BZ46: 0 | CA46: 0 | CB46: 206736.9241 | CC46: 0 | CD46: 0 | CE46: 0 | CF46: 1333895.806 | CG46: 15828417 | CI46: 11383011.62 | CJ46: 3111509.574 | CK46: 1333895.806 | CL46: 0
A47: 545 | B47: Nebbi District | C47: 30000 | D47: 0 | E47: 1258920.624 | F47: 507972.728 | G47: 538310.0539 | H47: 202201.9502 | I47: 143022.144 | J47: 1774495.488 | K47: 30466.83101 | L47: 88681.44957 | M47: 131411.976 | N47: 9543124.584 | O47: 1239467.712 | P47: 2647791.912 | Q47: 121387.812 | R47: 24336 | S47: 1004084.265 | T47: 226453.863 | U47: 131576.6686 | V47: 420641.2727 | W47: 936645 | X47: 15998.56931 | Y47: 28120.48592 | Z47: 0 | AA47: 28120.48592 | AB47: 32000 | AC47: 37679.08199 | AD47: 16977.02281 | AE47: 25168.86749 | AF47: 79824.97229 | AG47: 9195.8333 | AH47: 0 | AI47: 4052.740693 | AJ47: 0 | AK47: 6443.550064 | AL47: 35491.68728 | AM47: 41935.23735 | AN47: 14593.208 | AO47: 44552.8854 | AP47: 133952.8632 | AQ47: 185060.5008 | AR47: 30467.4584 | AS47: 20024.66517 | AT47: 23248.56221 | AU47: 43273.22739 | AV47: 138621.239 | AW47: 0 | AX47: 0 | AY47: 39347.08723 | AZ47: 177968.3262 | BA47: 22000 | BB47: 0 | BC47: 20600 | BD47: 0 | BE47: 134200 | BF47: 179375 | BG47: 22198163.64 | BH47: 641061.002 | BI47: 347264.0139 | BJ47: 988325.0159 | BK47: 351026.5263 | BL47: 157388.3489 | BM47: 508414.8752 | BN47: 0 | BP47: 0 | BQ47: 0 | BR47: 0 | BS47: 100781.8615 | BT47: 0 | BU47: 31667.12716 | BV47: 109354.2495 | BW47: 141021.3767 | BX47: 169819.6163 | BY47: 0 | BZ47: 0 | CA47: 231360.8729 | CB47: 401180.4892 | CC47: 0 | CD47: 313068.2473 | CE47: 313068.2473 | CF47: 2452791.866 | CG47: 24650955.51 | CI47: 15758990.49 | CJ47: 6439173.152 | CK47: 2352010.004 | CL47: 100781.8615
A48: 546 | B48: Ntungamo District | C48: 30000 | D48: 0 | E48: 878332.692 | F48: 833580.2237 | G48: 1679541.008 | H48: 163495.6435 | I48: 234266.352 | J48: 1688118.924 | K48: 0 | L48: 0 | M48: 379303.656 | N48: 12371586.73 | O48: 2861446.464 | P48: 3445179.288 | Q48: 145297.584 | R48: 24336 | S48: 1043690.787 | T48: 285306.7382 | U48: 161348.9357 | V48: 21862.58087 | W48: 1908363 | X48: 20659.45252 | Y48: 28120.48592 | Z48: 0 | AA48: 28120.48592 | AB48: 0 | AC48: 51396.48109 | AD48: 22525.11387 | AE48: 0 | AF48: 73921.59496 | AG48: 0 | AH48: 0 | AI48: 5233.430708 | AJ48: 0 | AK48: 10825.65519 | AL48: 0 | AM48: 10825.65519 | AN48: 18844.66554 | AO48: 69747.05732 | AP48: 129044.4324 | AQ48: 208450.5969 | AR48: 39343.58117 | AS48: 25149.31193 | AT48: 29602.45653 | AU48: 54751.76846 | AV48: 119898.5798 | AW48: 0 | AX48: 0 | AY48: 0 | AZ48: 119898.5798 | BA48: 22000 | BB48: 0 | BC48: 0 | BD48: 0 | BE48: 268400 | BF48: 179375 | BG48: 29403672.91 | BH48: 663190.0021 | BI48: 0 | BJ48: 663190.0021 | BK48: 441359.4399 | BL48: 0 | BM48: 441359.4399 | BN48: 43420.11 | BP48: 0 | BQ48: 0 | BR48: 0 | BS48: 0 | BT48: 600000 | BU48: 41950.48777 | BV48: 0 | BW48: 41950.48777 | BX48: 206736.9241 | BY48: 0 | BZ48: 0 | CA48: 0 | CB48: 206736.9241 | CC48: 0 | CD48: 0 | CE48: 0 | CF48: 1996656.964 | CG48: 31400329.87 | CI48: 21278579.43 | CJ48: 8125093.478 | CK48: 1996656.964 | CL48: 0
A49: 547 | B49: Pader District | C49: 30000 | D49: 0 | E49: 98868.504 | F49: 22147.776 | G49: 570965.5263 | H49: 64748.65485 | I49: 38968.836 | J49: 774345.36 | K49: 18239.39902 | L49: 77241.80037 | M49: 182735.86 | N49: 5256814.236 | O49: 814746.744 | P49: 969798.245 | Q49: 93000 | R49: 24336 | S49: 618242.7147 | T49: 117777.2857 | U49: 0 | V49: 23401.79772 | W49: 385902 | X49: 13342.3032 | Y49: 28120.48592 | Z49: 16618.40991 | AA49: 44738.89584 | AB49: 0 | AC49: 31579.84021 | AD49: 9113.265846 | AE49: 33236.81959 | AF49: 73929.92564 | AG49: 0 | AH49: 0 | AI49: 3379.858165 | AJ49: 0 | AK49: 6399.793073 | AL49: 66473.63886 | AM49: 72873.43193 | AN49: 12170.2761 | AO49: 26630.81278 | AP49: 164548.8 | AQ49: 133311.4282 | AR49: 25408.90124 | AS49: 14900.01842 | AT49: 16894.66789 | AU49: 31794.68631 | AV49: 86925.97327 | AW49: 0 | AX49: 0 | AY49: 149565.6884 | AZ49: 236491.6617 | BA49: 22000 | BB49: 1762268.635 | BC49: 0 | BD49: 98000 | BE49: 268400 | BF49: 0 | BG49: 13171570.36 | BH49: 480485.0015 | BI49: 99710.45868 | BJ49: 580195.4602 | BK49: 610275.9643 | BL49: 116328.8686 | BM49: 726604.8329 | BN49: 0 | BP49: 0 | BQ49: 0 | BR49: 0 | BS49: 0 | BT49: 0 | BU49: 34123.49293 | BV49: 299131.376 | BW49: 333254.869 | BX49: 140285.77 | BY49: 0 | BZ49: 0 | CA49: 565025.933 | CB49: 705311.703 | CC49: 512002.2805 | CD49: 315749.7859 | CE49: 827752.0665 | CF49: 3173118.932 | CG49: 16344689.29 | CI49: 8319294.081 | CJ49: 4852276.275 | CK49: 3173118.932 | CL49: 0
A50: 548 | B50: Pallisa District | C50: 30000 | D50: 0 | E50: 1800819.312 | F50: 526567.392 | G50: 588577.7957 | H50: 110732.6153 | I50: 60705.024 | J50: 2047908.012 | K50: 0 | L50: 0 | M50: 539770.908 | N50: 8579585.616 | O50: 1465022.22 | P50: 3623219.446 | Q50: 106074.396 | R50: 24336 | S50: 840392.9792 | T50: 223996.2867 | U50: 131633.602 | V50: 115157.9969 | W50: 1989426 | X50: 19391.07079 | Y50: 28120.48592 | Z50: 0 | AA50: 28120.48592 | AB50: 0 | AC50: 36110.43735 | AD50: 15809.00364 | AE50: 27054.92007 | AF50: 78974.36106 | AG50: 0 | AH50: 0 | AI50: 26814.14288 | AJ50: 0 | AK50: 8777.022598 | AL50: 47697.69123 | AM50: 56474.71382 | AN50: 17687.70219 | AO50: 43690.6058 | AP50: 169416 | AQ50: 165306.171 | AR50: 36928.09221 | AS50: 22813.07591 | AT50: 26705.82824 | AU50: 49518.90415 | AV50: 117439.7943 | AW50: 0 | AX50: 0 | AY50: 180996.6013 | AZ50: 298436.3956 | BA50: 0 | BB50: 0 | BC50: 0 | BD50: 81800 | BE50: 134200 | BF50: 159444.72 | BG50: 24170128.97 | BH50: 607712.0019 | BI50: 50364.27087 | BJ50: 658076.2728 | BK50: 530205.1965 | BL50: 354123.7851 | BM50: 884328.9816 | BN50: 0 | BP50: 0 | BQ50: 0 | BR50: 0 | BS50: 290168.4747 | BT50: 600000 | BU50: 30597.62243 | BV50: 322646.1153 | BW50: 353243.7377 | BX50: 169819.6163 | BY50: 0 | BZ50: 0 | CA50: 283299.0281 | CB50: 453118.6443 | CC50: 0 | CD50: 86563.59191 | CE50: 86563.59191 | CF50: 3325499.703 | CG50: 27495628.67 | CI50: 16616037.62 | CJ50: 7554091.345 | CK50: 3035331.228 | CL50: 290168.4747
A51: 549 | B51: Rakai District | C51: 30000 | D51: 0 | E51: 1026946.956 | F51: 1053404.719 | G51: 1241475.667 | H51: 173529.4897 | I51: 463352.542 | J51: 2439185.472 | K51: 0 | L51: 0 | M51: 447429.132 | N51: 15692915.06 | O51: 2702556.804 | P51: 6469768.038 | Q51: 233133.036 | R51: 24336 | S51: 1144048.785 | T51: 303261.8984 | U51: 205327.6295 | V51: 171025.0614 | W51: 2412951 | X51: 23903.51177 | Y51: 28120.48592 | Z51: 0 | AA51: 28120.48592 | AB51: 78000 | AC51: 63316.21705 | AD51: 28562.14318 | AE51: 0 | AF51: 91878.36022 | AG51: 0 | AH51: 0 | AI51: 6055.212374 | AJ51: 0 | AK51: 9576.549438 | AL51: 0 | AM51: 9576.549438 | AN51: 21803.7571 | AO51: 76614.99188 | AP51: 189820.8 | AQ51: 205057.2151 | AR51: 45521.5236 | AS51: 28540.62228 | AT51: 33807.23954 | AU51: 62347.86183 | AV51: 144471.1808 | AW51: 0 | AX51: 7200 | AY51: 0 | AZ51: 151671.1808 | BA51: 22000 | BB51: 0 | BC51: 82400 | BD51: 0 | BE51: 134200 | BF51: 134531 | BG51: 37598149.74 | BH51: 639830.002 | BI51: 0 | BJ51: 639830.002 | BK51: 683219.9361 | BL51: 0 | BM51: 683219.9361 | BN51: 100000 | BP51: 0 | BQ51: 0 | BR51: 0 | BS51: 0 | BT51: 0 | BU51: 40316.57507 | BV51: 0 | BW51: 40316.57507 | BX51: 339639.2325 | BY51: 272000 | BZ51: 44000 | CA51: 0 | CB51: 655639.2325 | CC51: 0 | CD51: 0 | CE51: 0 | CF51: 2119005.746 | CG51: 39717155.49 | CI51: 28662496.89 | CJ51: 8935652.856 | CK51: 2119005.746 | CL51: 0
A52: 550 | B52: Rukungiri District | C52: 30000 | D52: 0 | E52: 1167236.292 | F52: 1380471.236 | G52: 1304101.873 | H52: 0 | I52: 0 | J52: 1613290.344 | K52: 0 | L52: 0 | M52: 453392.088 | N52: 9523927.512 | O52: 2622038.424 | P52: 2241498.276 | Q52: 106074.396 | R52: 24336 | S52: 639222.1089 | T52: 222728.6811 | U52: 0 | V52: 716537.173 | W52: 1716696 | X52: 12566.91463 | Y52: 28120.48592 | Z52: 0 | AA52: 28120.48592 | AB52: 0 | AC52: 38492.33268 | AD52: 18104.29713 | AE52: 0 | AF52: 56596.6298 | AG52: 0 | AH52: 0 | AI52: 3183.437552 | AJ52: 0 | AK52: 6220.899108 | AL52: 0 | AM52: 6220.899108 | AN52: 11462.99995 | AO52: 57677.24267 | AP52: 126547.2 | AQ52: 157671.062 | AR52: 23932.26178 | AS52: 23868.15024 | AT52: 28013.98295 | AU52: 51882.13319 | AV52: 78498.59965 | AW52: 0 | AX52: 0 | AY52: 0 | AZ52: 78498.59965 | BA52: 22000 | BB52: 0 | BC52: 0 | BD52: 0 | BE52: 268400 | BF52: 136524.5415 | BG52: 24802834.81 | BH52: 380260.0012 | BI52: 0 | BJ52: 380260.0012 | BK52: 356129.1629 | BL52: 0 | BM52: 356129.1629 | BN52: 128379.5 | BP52: 0 | BQ52: 0 | BR52: 0 | BS52: 0 | BT52: 0 | BU52: 35578.27371 | BV52: 0 | BW52: 35578.27371 | BX52: 140285.77 | BY52: 0 | BZ52: 0 | CA52: 0 | CB52: 140285.77 | CC52: 0 | CD52: 0 | CE52: 0 | CF52: 1040632.708 | CG52: 25843467.52 | CI52: 16711104.24 | CJ52: 8091730.571 | CK52: 1040632.708 | CL52: 0
A53: 551 | B53: Sembabule District | C53: 30000 | D53: 0 | E53: 105344.7 | F53: 163968.851 | G53: 577771.5054 | H53: 107490.4557 | I53: 80150.161 | J53: 1292253.648 | K53: 0 | L53: 0 | M53: 129910.068 | N53: 8851802.448 | O53: 728895.132 | P53: 1182182.304 | Q53: 173699.676 | R53: 24336 | S53: 676389.3196 | T53: 158362.7384 | U53: 0 | V53: 33834.40675 | W53: 660288 | X53: 10252.10693 | Y53: 28120.48592 | Z53: 0 | AA53: 28120.48592 | AB53: 36000 | AC53: 32570.8156 | AD53: 12855.00167 | AE53: 0 | AF53: 45425.81727 | AG53: 0 | AH53: 0 | AI53: 2597.052909 | AJ53: 0 | AK53: 8998.246554 | AL53: 0 | AM53: 8998.246554 | AN53: 9351.531755 | AO53: 39459.2468 | AP53: 116812.8 | AQ53: 94529.92185 | AR53: 19523.97339 | AS53: 24244.9625 | AT53: 28481.18107 | AU53: 52726.14357 | AV53: 73621.45108 | AW53: 0 | AX53: 0 | AY53: 0 | AZ53: 73621.45108 | BA53: 22000 | BB53: 0 | BC53: 47600 | BD53: 0 | BE53: 0 | BF53: 0 | BG53: 15583698.19 | BH53: 362730.0011 | BI53: 0 | BJ53: 362730.0011 | BK53: 672530.242 | BL53: 0 | BM53: 672530.242 | BN53: 0 | BP53: 0 | BQ53: 0 | BR53: 0 | BS53: 0 | BT53: 0 | BU53: 28540.96463 | BV53: 0 | BW53: 28540.96463 | BX53: 140285.77 | BY53: 0 | BZ53: 0 | CA53: 0 | CB53: 140285.77 | CC53: 0 | CD53: 0 | CE53: 0 | CF53: 1204086.978 | CG53: 16787785.17 | CI53: 12580042.24 | CJ53: 3003655.955 | CK53: 1204086.978 | CL53: 0
A54: 552 | B54: Sironko District | C54: 0 | D54: 0 | E54: 541541.952 | F54: 183200.592 | G54: 387695.6399 | H54: 148023.0835 | I54: 280557.591 | J54: 1262031.408 | K54: 0 | L54: 0 | M54: 0 | N54: 6992935.596 | O54: 1501036.356 | P54: 2250254.556 | Q54: 149529.024 | R54: 24336 | S54: 644547.9901 | T54: 153007.4127 | U54: 0 | V54: 33037.66642 | W54: 1256244 | X54: 15822.22357 | Y54: 28120.48592 | Z54: 31597.28493 | AA54: 59717.77085 | AB54: 0 | AC54: 27673.63236 | AD54: 12827.83844 | AE54: 22417.9908 | AF54: 62919.4616 | AG54: 0 | AH54: 0 | AI54: 4008.068976 | AJ54: 0 | AK54: 8382.957677 | AL54: 17312.71838 | AM54: 25695.67606 | AN54: 14432.35299 | AO54: 36355.64688 | AP54: 184953.6 | AQ54: 267107.6253 | AR54: 30131.62796 | AS54: 16557.99237 | AT54: 18950.33958 | AU54: 35508.33195 | AV54: 56754.34239 | AW54: 0 | AX54: 0 | AY54: 25182.13583 | AZ54: 81936.47822 | BA54: 22000 | BB54: 0 | BC54: 0 | BD54: 0 | BE54: 0 | BF54: 0 | BG54: 16648567.73 | BH54: 426940.0013 | BI54: 213153.5615 | BJ54: 640093.5629 | BK54: 368411.0697 | BL54: 69438.95261 | BM54: 437850.0223 | BN54: 28483 | BP54: 0 | BQ54: 0 | BR54: 0 | BS54: 0 | BT54: 0 | BU54: 25641.48994 | BV54: 251894.5439 | BW54: 277536.0338 | BX54: 103368.4621 | BY54: 272000 | BZ54: 0 | CA54: 371861.09 | CB54: 747229.5521 | CC54: 0 | CD54: 118041.2617 | CE54: 118041.2617 | CF54: 2249233.433 | CG54: 18897801.16 | CI54: 12645634.13 | CJ54: 4002933.601 | CK54: 2249233.433 | CL54: 0
A55: 553 | B55: Soroti District | C55: 47143 | D55: 25000 | E55: 1337440.392 | F55: 693017.652 | G55: 438452.4992 | H55: 0 | I55: 0 | J55: 1184840.34 | K55: 0 | L55: 0 | M55: 525707.724 | N55: 4828707.228 | O55: 874638.864 | P55: 1196984.436 | Q55: 162663.36 | R55: 24336 | S55: 532049.3288 | T55: 149221.1236 | U55: 0 | V55: 43467.62348 | W55: 1026804 | X55: 10905.99318 | Y55: 28120.48592 | Z55: 14495.63849 | AA55: 42616.12441 | AB55: 0 | AC55: 37729.79224 | AD55: 8807.679435 | AE55: 25831.28596 | AF55: 72368.75763 | AG55: 0 | AH55: 262418.6257 | AI55: 2762.694683 | AJ55: 0 | AK55: 8401.405673 | AL55: 78694.17446 | AM55: 87095.58014 | AN55: 9947.978714 | AO55: 41640.95657 | AP55: 116812.8 | AQ55: 85682.8907 | AR55: 20769.22549 | AS55: 13618.85673 | AT55: 15306.19431 | AU55: 28925.05104 | AV55: 88982.55418 | AW55: 0 | AX55: 0 | AY55: 78694.17446 | AZ55: 167676.7286 | BA55: 0 | BB55: 0 | BC55: 0 | BD55: 0 | BE55: 384200 | BF55: 397182.9 | BG55: 14821479.88 | BH55: 389274.0012 | BI55: 354123.7843 | BJ55: 743397.7855 | BK55: 419594.1672 | BL55: 236082.5234 | BM55: 655676.6906 | BN55: 0 | BP55: 0 | BQ55: 0 | BR55: 0 | BS55: 192134.4805 | BT55: 0 | BU55: 26345.49615 | BV55: 212474.2711 | BW55: 238819.7672 | BX55: 169819.6163 | BY55: 0 | BZ55: 0 | CA55: 212474.2711 | CB55: 382293.8873 | CC55: 512002.2805 | CD55: 78694.17446 | CE55: 590696.455 | CF55: 2803019.066 | CG55: 17624498.94 | CI55: 8914690.752 | CJ55: 5906789.126 | CK55: 2610884.586 | CL55: 192134.4805
A56: 554 | B56: Tororo District | C56: 30000 | D56: 0 | E56: 1588592.784 | F56: 3267272.007 | G56: 725381.7535 | H56: 130383.0789 | I56: 61136.616 | J56: 1809828.636 | K56: 0 | L56: 0 | M56: 751003.812 | N56: 10776205.44 | O56: 2452167.12 | P56: 3914035.176 | Q56: 160514.352 | R56: 24336 | S56: 1303542.556 | T56: 283879.1979 | U56: 289246.0069 | V56: 343235.5743 | W56: 2419488 | X56: 21774.82756 | Y56: 28120.48592 | Z56: 0 | AA56: 28120.48592 | AB56: 0 | AC56: 49147.32754 | AD56: 20094.0042 | AE56: 25934.35859 | AF56: 95175.69033 | AG56: 0 | AH56: 0 | AI56: 27417.99363 | AJ56: 0 | AK56: 10175.96032 | AL56: 93449.33218 | AM56: 103625.2925 | AN56: 19862.06276 | AO56: 73141.52077 | AP56: 184600.1196 | AQ56: 192332.0333 | AR56: 41467.68626 | AS56: 20401.47743 | AT56: 23715.76032 | AU56: 44117.23776 | AV56: 150157.5184 | AW56: 0 | AX56: 0 | AY56: 112139.1986 | AZ56: 262296.717 | BA56: 22000 | BB56: 0 | BC56: 0 | BD56: 196000 | BE56: 134200 | BF56: 302065 | BG56: 32078444.78 | BH56: 686119.0021 | BI56: 250444.2102 | BJ56: 936563.2124 | BK56: 597770.9329 | BL56: 74759.46574 | BM56: 672530.3987 | BN56: 114215.757 | BP56: 0 | BQ56: 0 | BR56: 0 | BS56: 0 | BT56: 0 | BU56: 41372.94245 | BV56: 109148.82 | BW56: 150521.7624 | BX56: 206736.9241 | BY56: 0 | BZ56: 0 | CA56: 212937.1305 | CB56: 419674.0547 | CC56: 0 | CD56: 417905.4135 | CE56: 417905.4135 | CF56: 2711410.599 | CG56: 34789855.38 | CI56: 20133827.27 | CJ56: 11944617.51 | CK56: 2711410.599 | CL56: 0
A57: 555 | B57: Wakiso District | C57: 30000 | D57: 0 | E57: 2624945.292 | F57: 594899.988 | G57: 2119817.43 | H57: 1455200.829 | I57: 0 | J57: 2895465.228 | K57: 0 | L57: 0 | M57: 492611.112 | N57: 15662498.5 | O57: 8456410.152 | P57: 4707822 | Q57: 191670.564 | R57: 24336 | S57: 1140657.874 | T57: 769825.2998 | U57: 208945.0761 | V57: 366881.255 | W57: 4400511 | X57: 46048.25179 | Y57: 28120.48592 | Z57: 0 | AA57: 28120.48592 | AB57: 389910 | AC57: 76823.05789 | AD57: 31475.40029 | AE57: 0 | AF57: 108298.4582 | AG57: 0 | AH57: 0 | AI57: 34719.64959 | AJ57: 0 | AK57: 512204.5469 | AL57: 0 | AM57: 512204.5469 | AN57: 42003.23813 | AO57: 90857.04331 | AP57: 170352 | AQ57: 208309.206 | AR57: 87693.66614 | AS57: 76245.05459 | AT57: 92954.52051 | AU57: 169199.5751 | AV57: 344048.0198 | AW57: 0 | AX57: 7200 | AY57: 0 | AZ57: 351248.0198 | BA57: 22000 | BB57: 0 | BC57: 128000 | BD57: 326124.77 | BE57: 134200 | BF57: 591060.1375 | BG57: 49582846.64 | BH57: 2040057.006 | BI57: 0 | BJ57: 2040057.006 | BK57: 676875.5891 | BL57: 0 | BM57: 676875.5891 | BN57: 40000 | BO57: 691986.194 | BP57: 0 | BQ57: 0 | BR57: 0 | BS57: 0 | BT57: 0 | BU57: 41373.70472 | BV57: 0 | BW57: 41373.70472 | BX57: 206736.9241 | BY57: 0 | BZ57: 0 | CA57: 0 | CB57: 206736.9241 | CC57: 9500000 | CD57: 0 | CE57: 9500000 | CF57: 13197029.42 | CG57: 62779876.06 | CI57: 32601165.55 | CJ57: 16981681.09 | CK57: 13197029.42 | CL57: 0
A58: 556 | B58: Yumbe District | C58: 0 | D58: 0 | E58: 85710.696 | F58: 36161.616 | G58: 876210.2746 | H58: 120578.8628 | I58: 138552.36 | J58: 1183138.416 | K58: 30836.08248 | L58: 192572.7989 | M58: 334046.876 | N58: 9955210.144 | O58: 634588.056 | P58: 2845429.272 | Q58: 93000 | R58: 24336 | S58: 734609.1496 | T58: 276341.0674 | U58: 131576.6686 | V58: 22990.62507 | W58: 914016 | X58: 19695.80672 | Y58: 28120.48592 | Z58: 27673.59339 | AA58: 55794.07932 | AB58: 0 | AC58: 36148.34865 | AD58: 14668.14771 | AE58: 33648.43723 | AF58: 84464.93359 | AG58: 0 | AH58: 0 | AI58: 4989.320971 | AJ58: 0 | AK58: 7474.042858 | AL58: 31477.66979 | AM58: 38951.71264 | AN58: 17965.66922 | AO58: 37924.66635 | AP58: 146016 | AQ58: 142522.036 | AR58: 37508.42717 | AS58: 15955.09275 | AT58: 18202.8226 | AU58: 34157.91535 | AV58: 170611.3206 | AW58: 0 | AX58: 0 | AY58: 62955.33957 | AZ58: 233566.6602 | BA58: 22000 | BB58: 0 | BC58: 0 | BD58: 0 | BE58: 268400 | BF58: 281551 | BG58: 20055413.19 | BH58: 1198876.004 | BI58: 157388.186 | BJ58: 1356264.19 | BK58: 585414.2113 | BL58: 188866.0187 | BM58: 774280.23 | BN58: 422629.1 | BP58: 0 | BQ58: 0 | BR58: 0 | BS58: 209384.5762 | BT58: 0 | BU58: 35804.84644 | BV58: 377732.0374 | BW58: 413536.8839 | BX58: 169819.6163 | BY58: 0 | BZ58: 0 | CA58: 330515.5327 | CB58: 500335.149 | CC58: 0 | CD58: 472165.0468 | CE58: 472165.0468 | CF58: 4148595.176 | CG58: 24204008.37 | CI58: 15354317.12 | CJ58: 4701096.069 | CK58: 3939210.599 | CL58: 209384.5762
A59: 557 | B59: Butaleja District | C59: 0 | D59: 0 | E59: 218808.6 | F59: 465764.96 | G59: 396057.9755 | H59: 145577.2546 | I59: 51793.524 | J59: 1182259.908 | K59: 0 | L59: 0 | M59: 197413.716 | N59: 6297477.888 | O59: 1314957.84 | P59: 1799574.744 | Q59: 121928.796 | R59: 24336 | S59: 787024.8021 | T59: 152712.3629 | U59: 153622.9489 | V59: 23267.96534 | W59: 916872 | X59: 12001.62495 | Y59: 28120.48592 | Z59: 4374.430523 | AA59: 32494.91645 | AB59: 0 | AC59: 24345.12633 | AD59: 10872.08541 | AE59: 17497.72338 | AF59: 52714.93511 | AG59: 0 | AH59: 0 | AI59: 16873.09199 | AJ59: 0 | AK59: 6363.76508 | AL59: 8748.861832 | AM59: 15112.62691 | AN59: 10947.36697 | AO59: 31082.22487 | AP59: 136281.6 | AQ59: 109315.3712 | AR59: 22855.73177 | AS59: 16030.4552 | AT59: 18296.26223 | AU59: 34326.71743 | AV59: 62650.8529 | AW59: 0 | AX59: 0 | AY59: 8748.861832 | AZ59: 71399.71473 | BA59: 0 | BB59: 0 | BC59: 6000 | BD59: 0 | BE59: 134200 | BF59: 0 | BG59: 14935057.21 | BH59: 364823.0011 | BI59: 209972.68 | BJ59: 574795.6812 | BK59: 455858.9137 | BL59: 13123.29235 | BM59: 468982.2061 | BN59: 666808.2 | BP59: 0 | BQ59: 0 | BR59: 0 | BS59: 180108.0054 | BT59: 0 | BU59: 21942.64246 | BV59: 236219.2655 | BW59: 258161.908 | BX59: 206736.9241 | BY59: 0 | BZ59: 239186.316 | CA59: 262465.851 | CB59: 708389.0912 | CC59: 0 | CD59: 113735.2022 | CE59: 113735.2022 | CF59: 2970980.294 | CG59: 17906037.5 | CI59: 11126024.02 | CJ59: 3809033.192 | CK59: 2790872.289 | CL59: 180108.0054
A60: 558 | B60: Ibanda District | C60: 0 | D60: 0 | E60: 305736.276 | F60: 417501.107 | G60: 560197.5129 | H60: 399958.3205 | I60: 176025.167 | J60: 1372259.304 | K60: 0 | L60: 0 | M60: 278695.236 | N60: 6464556.648 | O60: 2045910.36 | P60: 1660875.636 | Q60: 108001.608 | R60: 24336 | S60: 467546.3234 | T60: 157749.2483 | U60: 0 | V60: 285685.2982 | W60: 751281 | X60: 13591.32309 | Y60: 28120.48592 | Z60: 0 | AA60: 28120.48592 | AB60: 0 | AC60: 28362.26764 | AD60: 12155.54833 | AE60: 0 | AF60: 40517.81597 | AG60: 9195.8333 | AH60: 0 | AI60: 3442.93962 | AJ60: 0 | AK60: 4282.033496 | AL60: 0 | AM60: 4282.033496 | AN60: 12397.42135 | AO60: 34318.33836 | AP60: 91852.8 | AQ60: 149208.8161 | AR60: 25883.13134 | AS60: 23189.88817 | AT60: 27173.02635 | AU60: 50362.91452 | AV60: 50338.52357 | AW60: 0 | AX60: 0 | AY60: 0 | AZ60: 50338.52357 | BA60: 22000 | BB60: 0 | BC60: 0 | BD60: 0 | BE60: 0 | BF60: 272758 | BG60: 16284585.42 | BH60: 446484.0014 | BI60: 0 | BJ60: 446484.0014 | BK60: 600616.1673 | BL60: 0 | BM60: 600616.1673 | BN60: 0 | BP60: 0 | BQ60: 0 | BR60: 0 | BS60: 0 | BT60: 0 | BU60: 34380.85756 | BV60: 0 | BW60: 34380.85756 | BX60: 206736.9241 | BY60: 0 | BZ60: 0 | CA60: 0 | CB60: 206736.9241 | CC60: 0 | CD60: 0 | CE60: 0 | CF60: 1288217.95 | CG60: 17572803.37 | CI60: 12222512.76 | CJ60: 4062072.663 | CK60: 1288217.95 | CL60: 0
A61: 559 | B61: Kaabong District | C61: 0 | D61: 0 | E61: 9729.768 | F61: 231909.744 | G61: 417745.1287 | H61: 60769.68277 | I61: 80846.448 | J61: 1049467.164 | K61: 16754.78571 | L61: 135729.0209 | M61: 58273.308 | N61: 2694375.192 | O61: 216309.552 | P61: 1272140.352 | Q61: 114168.504 | R61: 24336 | S61: 279281.2092 | T61: 234457.4302 | U61: 131576.6686 | V61: 32158.56732 | W61: 179136 | X61: 17914.70795 | Y61: 28120.48592 | Z61: 19485.82338 | AA61: 47606.30931 | AB61: 0 | AC61: 36284.40597 | AD61: 5778.978565 | AE61: 38971.64614 | AF61: 81035.03067 | AG61: 0 | AH61: 0 | AI61: 4538.134911 | AJ61: 0 | AK61: 7967.73076 | AL61: 97429.11535 | AM61: 105396.8461 | AN61: 16341.0274 | AO61: 16907.28622 | AP61: 149260.8 | AQ61: 102407.4153 | AR61: 34116.52684 | AS61: 9323.196947 | AT61: 9980.135833 | AU61: 19303.33278 | AV61: 127412.4609 | AW61: 0 | AX61: 0 | AY61: 77943.29196 | AZ61: 205355.7529 | BA61: 22000 | BB61: 886516.1259 | BC61: 0 | BD61: 0 | BE61: 134200 | BF61: 0 | BG61: 9082063.822 | BH61: 470907.0015 | BI61: 292287.346 | BJ61: 763194.3475 | BK61: 666909.6406 | BL61: 155886.5847 | BM61: 822796.2253 | BN61: 0 | BP61: 0 | BQ61: 0 | BR61: 0 | BS61: 0 | BT61: 0 | BU61: 31493.76091 | BV61: 545603.0461 | BW61: 577096.807 | BX61: 169819.6163 | BY61: 0 | BZ61: 0 | CA61: 292287.346 | CB61: 462106.9623 | CC61: 0 | CD61: 428688.1074 | CE61: 428688.1074 | CF61: 3053882.45 | CG61: 12135946.27 | CI61: 5659177.32 | CJ61: 3422886.502 | CK61: 3053882.45 | CL61: 0
A62: 560 | B62: Isingiro District | C62: 0 | D62: 0 | E62: 86818.716 | F62: 971582.164 | G62: 1020895.78 | H62: 208370.846 | I62: 393585.66 | J62: 996517.476 | K62: 0 | L62: 0 | M62: 334439.424 | N62: 8965730.316 | O62: 1880651.268 | P62: 2766886.32 | Q62: 289912.896 | R62: 24336 | S62: 776444.3113 | T62: 285184.3776 | U62: 0 | V62: 42262.77696 | W62: 859089 | X62: 20797.99686 | Y62: 28120.48592 | Z62: 0 | AA62: 28120.48592 | AB62: 0 | AC62: 39938.64289 | AD62: 15320.06539 | AE62: 0 | AF62: 55258.70828 | AG62: 0 | AH62: 0 | AI62: 5268.526616 | AJ62: 0 | AK62: 8442.755665 | AL62: 0 | AM62: 8442.755665 | AN62: 18971.03975 | AO62: 42436.62898 | AP62: 155750.4 | AQ62: 218145.9735 | AR62: 39607.42314 | AS62: 26656.56098 | AT62: 31471.24898 | AU62: 58127.80996 | AV62: 109153.6421 | AW62: 0 | AX62: 0 | AY62: 0 | AZ62: 109153.6421 | BA62: 22000 | BB62: 0 | BC62: 0 | BD62: 98000 | BE62: 0 | BF62: 149479.425 | BG62: 20932268.15 | BH62: 599922.0019 | BI62: 0 | BJ62: 599922.0019 | BK62: 673530.242 | BL62: 0 | BM62: 673530.242 | BN62: 0 | BP62: 0 | BQ62: 0 | BR62: 0 | BS62: 0 | BT62: 0 | BU62: 34018.26046 | BV62: 0 | BW62: 34018.26046 | BX62: 206736.9241 | BY62: 0 | BZ62: 0 | CA62: 0 | CB62: 206736.9241 | CC62: 0 | CD62: 0 | CE62: 0 | CF62: 1514207.428 | CG62: 22446475.58 | CI62: 15807809.76 | CJ62: 5124458.387 | CK62: 1514207.428 | CL62: 0
A63: 561 | B63: Kaliro District | C63: 0 | D63: 0 | E63: 462543.28 | F63: 739775.744 | G63: 373963.4525 | H63: 78790.58397 | I63: 136119.288 | J63: 676001.964 | K63: 0 | L63: 0 | M63: 467234.076 | N63: 5544568.092 | O63: 1266627.852 | P63: 1423236.72 | Q63: 185744.208 | R63: 24336 | S63: 525622.1762 | T63: 147653.616 | U63: 0 | V63: 31077.7304 | W63: 1528074 | X63: 9142.980696 | Y63: 28120.48592 | Z63: 0 | AA63: 28120.48592 | AB63: 12000 | AC63: 23911.56134 | AD63: 10614.03466 | AE63: 0 | AF63: 34525.596 | AG63: 0 | AH63: 0 | AI63: 9232.516734 | AJ63: 0 | AK63: 6028.076147 | AL63: 0 | AM63: 6028.076147 | AN63: 8339.834422 | AO63: 26962.75996 | AP63: 85987.2 | AQ63: 78896.12708 | AR63: 17411.76843 | AS63: 14749.29351 | AT63: 16707.78864 | AU63: 31457.08216 | AV63: 65649.29978 | AW63: 0 | AX63: 0 | AY63: 0 | AZ63: 65649.29978 | BA63: 22000 | BB63: 0 | BC63: 0 | BD63: 0 | BE63: 434200 | BF63: 199306 | BG63: 14680628.51 | BH63: 364748.0011 | BI63: 0 | BJ63: 364748.0011 | BK63: 416331.678 | BL63: 0 | BM63: 416331.678 | BN63: 0 | BP63: 0 | BQ63: 0 | BR63: 0 | BS63: 0 | BT63: 0 | BU63: 31645.65981 | BV63: 0 | BW63: 31645.65981 | BX63: 339639.2325 | BY63: 0 | BZ63: 0 | CA63: 0 | CB63: 339639.2325 | CC63: 0 | CD63: 0 | CE63: 0 | CF63: 1152364.571 | CG63: 15832993.08 | CI63: 9809855.4 | CJ63: 4870773.11 | CK63: 1152364.571 | CL63: 0
A64: 562 | B64: Kiruhura District | C64: 0 | D64: 0 | E64: 73546.488 | F64: 294623.5552 | G64: 929417.5578 | H64: 157886.0018 | I64: 371910.151 | J64: 1048564.26 | K64: 0 | L64: 0 | M64: 0 | N64: 6064457.64 | O64: 1018260.708 | P64: 2518541.292 | Q64: 176332.98 | R64: 24336 | S64: 561529.778 | T64: 196606.6592 | U64: 0 | V64: 228546.1113 | W64: 629217 | X64: 16220.63198 | Y64: 28120.48592 | Z64: 0 | AA64: 28120.48592 | AB64: 0 | AC64: 36933.04387 | AD64: 11136.92696 | AE64: 0 | AF64: 48069.97083 | AG64: 0 | AH64: 0 | AI64: 4108.993374 | AJ64: 0 | AK64: 9267.7845 | AL64: 0 | AM64: 9267.7845 | AN64: 14795.76403 | AO64: 33566.20079 | AP64: 165484.8 | AQ64: 165184.9788 | AR64: 30890.35153 | AS64: 19647.85291 | AT64: 22781.3641 | AU64: 42429.21701 | AV64: 104589.2416 | AW64: 0 | AX64: 0 | AY64: 0 | AZ64: 104589.2416 | BA64: 22000 | BB64: 0 | BC64: 0 | BD64: 0 | BE64: 0 | BF64: 0 | BG64: 14978504.6 | BH64: 503721.0016 | BI64: 0 | BJ64: 503721.0016 | BK64: 673530.242 | BL64: 0 | BM64: 673530.242 | BN64: 0 | BP64: 0 | BQ64: 0 | BR64: 0 | BS64: 0 | BT64: 0 | BU64: 24009.64275 | BV64: 0 | BW64: 24009.64275 | BX64: 206736.9241 | BY64: 0 | BZ64: 0 | CA64: 0 | CB64: 206736.9241 | CC64: 0 | CD64: 0 | CE64: 0 | CF64: 1407997.81 | CG64: 16386502.41 | CI64: 11387887.83 | CJ64: 3590616.772 | CK64: 1407997.81 | CL64: 0
A65: 563 | B65: Koboko District | C65: 0 | D65: 0 | E65: 79187.796 | F65: 10620.84 | G65: 403740.9055 | H65: 113421.6079 | I65: 109685.844 | J65: 851122.98 | K65: 0 | L65: 66221.0679 | M65: 0 | N65: 4778552.916 | O65: 1063209.084 | P65: 1017677.028 | Q65: 132509.742 | R65: 24336 | S65: 474582.8441 | T65: 134088.8524 | U65: 62000.00148 | V65: 17026.84042 | W65: 653838 | X65: 10094.79523 | Y65: 28120.48592 | Z65: 59020.63085 | AA65: 87141.11677 | AB65: 14000 | AC65: 18624.97104 | AD65: 8142.180141 | AE65: 22966.93944 | AF65: 49734.09062 | AG65: 0 | AH65: 0 | AI65: 2557.202874 | AJ65: 0 | AK65: 4202.393512 | AL65: 47216.50468 | AM65: 51418.89819 | AN65: 9208.038774 | AO65: 21691.1618 | AP65: 92476.8 | AQ65: 101438.8876 | AR65: 19224.39112 | AS65: 12186.97013 | AT65: 13530.84148 | AU65: 25717.81162 | AV65: 69612.20163 | AW65: 0 | AX65: 0 | AY65: 44855.67944 | AZ65: 114467.8811 | BA65: 22000 | BB65: 0 | BC65: 46200 | BD65: 0 | BE65: 0 | BF65: 0 | BG65: 10659193.43 | BH65: 441740.0014 | BI65: 201457.0866 | BJ65: 643197.088 | BK65: 431123.7219 | BL65: 72005.16963 | BM65: 503128.8915 | BN65: 0 | BP65: 0 | BQ65: 0 | BR65: 0 | BS65: 74542.27941 | BT65: 0 | BU65: 17177.46674 | BV65: 264412.4262 | BW65: 281589.8929 | BX65: 169819.6163 | BY65: 0 | BZ65: 0 | CA65: 216408.9798 | CB65: 386228.596 | CC65: 0 | CD65: 220003.555 | CE65: 220003.555 | CF65: 2108690.303 | CG65: 12767883.73 | CI65: 8069570.394 | CJ65: 2589623.031 | CK65: 2034148.023 | CL65: 74542.27941
A66: 564 | B66: Amolatar District | C66: 0 | D66: 0 | E66: 106087.2 | F66: 301481.372 | G66: 293099.3578 | H66: 114680.5823 | I66: 221059.812 | J66: 743596.152 | K66: 0 | L66: 38669.23673 | M66: 118353.876 | N66: 3787933.8 | O66: 818531.676 | P66: 1044662.592 | Q66: 121887.792 | R66: 24336 | S66: 335960.1779 | T66: 122560.3839 | U66: 0 | V66: 161812.6292 | W66: 300615 | X66: 6622.105436 | Y66: 28120.48592 | Z66: 23443.47697 | AA66: 51563.96289 | AB66: 0 | AC66: 20943.01183 | AD66: 6811.181552 | AE66: 19670.18086 | AF66: 47424.37424 | AG66: 0 | AH66: 0 | AI66: 1677.50476 | AJ66: 0 | AK66: 4785.771395 | AL66: 31477.66979 | AM66: 36263.44118 | AN66: 6040.400248 | AO66: 20435.66744 | AP66: 131414.4 | AQ66: 122525.3218 | AR66: 12611.04777 | AS66: 10528.99618 | AT66: 11475.16979 | AU66: 22004.16597 | AV66: 57051.60837 | AW66: 0 | AX66: 0 | AY66: 47216.50468 | AZ66: 104268.1131 | BA66: 0 | BB66: 0 | BC66: 0 | BD66: 98000 | BE66: 0 | BF66: 0 | BG66: 9316178.144 | BH66: 290096.0009 | BI66: 255756.067 | BJ66: 545852.0679 | BK66: 435182.4827 | BL66: 62955.33957 | BM66: 498137.8223 | BN66: 538236.225 | BP66: 0 | BQ66: 0 | BR66: 0 | BS66: 80980.69538 | BT66: 0 | BU66: 16556.61564 | BV66: 251821.3583 | BW66: 268377.9739 | BX66: 140285.77 | BY66: 0 | BZ66: 0 | CA66: 173127.1838 | CB66: 313412.9538 | CC66: 512002.2805 | CD66: 118041.2617 | CE66: 630043.5422 | CF66: 2875041.281 | CG66: 12191219.42 | CI66: 7011776.1 | CJ66: 2304402.044 | CK66: 2794060.585 | CL66: 80980.69538
A67: 565 | B67: Amuria District | C67: 0 | D67: 0 | E67: 105738.3 | F67: 5173.524 | G67: 862499.5405 | H67: 53600.99965 | I67: 186079.928 | J67: 853002.456 | K67: 14134.91431 | L67: 117941.172 | M67: 181800.484 | N67: 5815664.472 | O67: 861237.012 | P67: 1881960.436 | Q67: 190573.488 | R67: 24336 | S67: 663258.8277 | T67: 168770.7123 | U67: 0 | V67: 93569.8001 | W67: 885450 | X67: 16871.9055 | Y67: 28120.48592 | Z67: 0 | AA67: 28120.48592 | AB67: 0 | AC67: 39251.2082 | AD67: 11102.97292 | AE67: 28986.97394 | AF67: 79341.15506 | AG67: 0 | AH67: 0 | AI67: 4273.973296 | AJ67: 0 | AK67: 10093.14533 | AL67: 19096.71532 | AM67: 29189.86065 | AN67: 15389.82778 | AO67: 29668.79048 | AP67: 126547.2 | AQ67: 130402.8153 | AR67: 32130.628 | AS67: 15578.28049 | AT67: 17735.62449 | AU67: 33313.90498 | AV67: 91388.02917 | AW67: 0 | AX67: 0 | AY67: 0 | AZ67: 91388.02917 | BA67: 0 | BB67: 0 | BC67: 0 | BD67: 98000 | BE67: 134200 | BF67: 0 | BG67: 13813630.64 | BH67: 683395.0021 | BI67: 341254.4774 | BJ67: 1024649.48 | BK67: 415459.465 | BL67: 126894.3563 | BM67: 542353.8214 | BN67: 332667 | BP67: 0 | BQ67: 0 | BR67: 0 | BS67: 406367.6421 | BT67: 0 | BU67: 27917.71321 | BV67: 331105.7391 | BW67: 359023.4523 | BX67: 169819.6163 | BY67: 0 | BZ67: 150000 | CA67: 413144.4159 | CB67: 732964.0322 | CC67: 512002.2805 | CD67: 188866.0187 | CE67: 700868.2992 | CF67: 4098893.727 | CG67: 17912524.37 | CI67: 10121201.48 | CJ67: 3692429.167 | CK67: 3692526.085 | CL67: 406367.6421
A68: 566 | B68: Manafwa District | C68: 0 | D68: 0 | E68: 0 | F68: 467922.889 | G68: 561302.7596 | H68: 122636.2642 | I68: 131222.513 | J68: 1696046.232 | K68: 0 | L68: 0 | M68: 160053.096 | N68: 10001687.66 | O68: 2159225.208 | P68: 2493105.648 | Q68: 93000 | R68: 24336 | S68: 989739.8277 | T68: 207527.7486 | U68: 0 | V68: 31000.03617 | W68: 2234583 | X68: 24157.99848 | Y68: 28120.48592 | Z68: 47216.50468 | AA68: 75336.9906 | AB68: 0 | AC68: 38507.94285 | AD68: 17330.14489 | AE68: 22226.65522 | AF68: 78064.74296 | AG68: 0 | AH68: 0 | AI68: 6119.678679 | AJ68: 0 | AK68: 7097.002933 | AL68: 23608.25234 | AM68: 30705.25527 | AN68: 22035.88895 | AO68: 48757.34256 | AP68: 250536 | AQ68: 336187.1836 | AR68: 46006.16464 | AS68: 21833.36403 | AT68: 25491.11315 | AU68: 47324.47718 | AV68: 83011.3109 | AW68: 0 | AX68: 0 | AY68: 39347.08723 | AZ68: 122358.3981 | BA68: 22000 | BB68: 0 | BC68: 0 | BD68: 98000 | BE68: 0 | BF68: 0 | BG68: 22580979.01 | BH68: 557130.0017 | BI68: 354123.7638 | BJ68: 911253.7656 | BK68: 667909.6406 | BL68: 118041.2617 | BM68: 785950.9023 | BN68: 0 | BP68: 0 | BQ68: 0 | BR68: 0 | BS68: 0 | BT68: 0 | BU68: 18471.92165 | BV68: 90498.30063 | BW68: 108970.2223 | BX68: 169819.6163 | BY68: 0 | BZ68: 0 | CA68: 275429.6106 | CB68: 445249.2269 | CC68: 0 | CD68: 140841.3249 | CE68: 140841.3249 | CF68: 2392265.442 | CG68: 24973244.45 | CI68: 17009212.36 | CJ68: 5571766.646 | CK68: 2392265.442 | CL68: 0
A69: 567 | B69: Bukwo District | C69: 0 | D69: 0 | E69: 102519.774 | F69: 134852.524 | G69: 219675.8163 | H69: 63516.84482 | I69: 135555.168 | J69: 1198991.522 | K69: 0 | L69: 0 | M69: 0 | N69: 3417804.48 | O69: 1010684.748 | P69: 1593165.037 | Q69: 136918.86 | R69: 24336 | S69: 301740.241 | T69: 85016.46492 | U69: 109499.995 | V69: 7519.60009 | W69: 820065 | X69: 7954.859981 | Y69: 28120.48592 | Z69: 0 | AA69: =SUM(Y69:Z69) -> 28120.48592 | AB69: 0 | AC69: 17710.24316 | AD69: 6295.080059 | AE69: 13188.93658 | AF69: =SUM(AC69:AE69) -> 37194.25981 | AG69: 0 | AH69: 0 | AI69: 2015.116735 | AJ69: 0 | AK69: 3925.033567 | AL69: 19673.54362 | AM69: =SUM(AK69:AL69) -> 23598.57718 | AN69: 7256.081721 | AO69: 18820.80435 | AP69: 141148.8 | AQ69: 129918.0464 | AR69: 15149.12746 | AS69: 10227.54637 | AT69: 11101.4113 | AU69: =SUM(AS69:AT69) -> 21328.95768 | AV69: 24627.96597 | AW69: 0 | AX69: 0 | AY69: 19673.54362 | AZ69: =SUM(AV69:AY69) -> 44301.50958 | BA69: 22000 | BB69: 1350536.942 | BC69: 0 | BD69: 0 | BE69: 0 | BF69: 0 | BG69: =SUM(C69:X69,AA69,AB69,AF69,AG69:AI69,AM69,AN69:AR69,AU69,AZ69,BA69:BF69) -> 11211205.64 | BH69: 136852.0004 | BI69: 185718.2517 | BJ69: =SUM(BH69:BI69) -> 322570.2522 | BK69: 387613.4252 | BL69: 55085.92212 | BM69: =SUM(BK69:BL69) -> 442699.3473 | BN69: 0 | BP69: 0 | BQ69: 0 | BR69: =SUM(BP69:BQ69) -> 0 | BS69: 0 | BT69: 0 | BU69: 20924.92613 | BV69: 136319.4828 | BW69: =SUM(BU69:BV69) -> 157244.409 | BX69: 140285.77 | BY69: 0 | BZ69: 0 | CA69: 135353.9801 | CB69: =SUM(BX69:CA69) -> 275639.75 | CC69: 0 | CD69: 94433.16832 | CE69: =SUM(CC69:CD69) -> 94433.16832 | CF69: =SUM(BJ69,BM69,BN69:BO69,BR69,BS69:BT69,BW69,CB69,CE69) -> 1292586.927 | CG69: =BG69+CF69 -> 12503792.57 | CI69: =SUM(I69,J69,M69:R69,AP69) -> 7658604.615 | CJ69: =SUM(C69:H69,K69:L69,S69:X69,AA69,AB69,AF69,AG69:AI69,AM69,AN69:AO69,AQ69:AR69,AU69,AZ69,BA69:BF69) -> 3552601.029 | CK69: =SUM(BJ69,BM69,BN69:BO69,BT69,BW69,CB69,CE69) -> 1292586.927 | CL69: =SUM(BR69,BS69) -> 0
A70: 568 | B70: Mityana District | C70: 0 | D70: 0 | E70: 251046.132 | F70: 1629233.773 | G70: 778080.8617 | H70: 146059.3019 | I70: 203201.316 | J70: 1491795.732 | K70: 0 | L70: 0 | M70: 351248.34 | N70: 7496119.056 | O70: 2234425.356 | P70: 3953409.156 | Q70: 116636.316 | R70: 24336 | S70: 533262.0329 | T70: 201058.6239 | U70: 147434.3355 | V70: 140317.2576 | W70: 1504218 | X70: 15026.5357 | Y70: 28120.48592 | Z70: 0 | AA70: 28120.48592 | AB70: 0 | AC70: 36684.78478 | AD70: 14946.57088 | AE70: 0 | AF70: 51631.35567 | AG70: 0 | AH70: 0 | AI70: 3806.506165 | AJ70: 0 | AK70: 8247.548704 | AL70: 0 | AM70: 8247.548704 | AN70: 13706.56068 | AO70: 43213.56232 | AP70: 150529.7196 | AQ70: 144945.8802 | AR70: 28616.33078 | AS70: 22586.98855 | AT70: 26425.50937 | AU70: 49012.49792 | AV70: 77414.24252 | AW70: 8200 | AX70: 0 | AY70: 0 | AZ70: 85614.24252 | BA70: 22000 | BB70: 0 | BC70: 0 | BD70: 0 | BE70: 0 | BF70: 410561 | BG70: 22256913.82 | BH70: 542956.0017 | BI70: 0 | BJ70: 542956.0017 | BK70: 461565.3186 | BL70: 0 | BM70: 461565.3186 | BN70: 0 | BO70: 381768.278 | BP70: 0 | BQ70: 0 | BR70: 0 | BS70: 0 | BT70: 0 | BU70: 34799.4162 | BV70: 0 | BW70: 34799.4162 | BX70: 206736.9241 | BY70: 0 | BZ70: 0 | CA70: 0 | CB70: 206736.9241 | CC70: 0 | CD70: 0 | CE70: 0 | CF70: 1627825.939 | CG70: 23884739.76 | CI70: 16021700.99 | CJ70: 6235212.825 | CK70: 1627825.939 | CL70: 0
A71: 569 | B71: Nakaseke District | C71: 0 | D71: 0 | E71: 47238.144 | F71: 36776.844 | G71: 375564.0561 | H71: 250953.6952 | I71: 537093.798 | J71: 1280464.509 | K71: 0 | L71: 0 | M71: 369516.532 | N71: 4922231.7 | O71: 1136209.608 | P71: 2940765.564 | Q71: 101126.832 | R71: 24336 | S71: 484642.9031 | T71: 126606.1259 | U71: 131633.602 | V71: 158696.3108 | W71: 629475 | X71: 14710.50348 | Y71: 28120.48592 | Z71: 0 | AA71: 28120.48592 | AB71: 0 | AC71: 33585.35716 | AD71: 10423.89201 | AE71: 0 | AF71: 44009.24916 | AG71: 9195.8333 | AH71: 0 | AI71: 3726.449217 | AJ71: 0 | AK71: 6054.811142 | AL71: 0 | AM71: 6054.811142 | AN71: 13418.28966 | AO71: 34540.0882 | AP71: 155750.4 | AQ71: 128584.9322 | AR71: 28014.48331 | AS71: 17839.15406 | AT71: 20538.81316 | AU71: 38377.96722 | AV71: 66704.50042 | AW71: 0 | AX71: 0 | AY71: 0 | AZ71: 66704.50042 | BA71: 22000 | BB71: 0 | BC71: 0 | BD71: 0 | BE71: 134200 | BF71: 316576 | BG71: 14597315.22 | BH71: 414106.0013 | BI71: 0 | BJ71: 414106.0013 | BK71: 355899.7862 | BL71: 0 | BM71: 355899.7862 | BN71: 0 | BO71: 320619.854 | BP71: 0 | BQ71: 0 | BR71: 0 | BS71: 0 | BT71: 0 | BU71: 32680.55821 | BV71: 0 | BW71: 32680.55821 | BX71: 206736.9241 | BY71: 272000 | BZ71: 150000 | CA71: 0 | CB71: 628736.9241 | CC71: 0 | CD71: 0 | CE71: 0 | CF71: 1752043.124 | CG71: 16349358.34 | CI71: 11467494.94 | CJ71: 3129820.274 | CK71: 1752043.124 | CL71: 0
A72: 570 | B72: Amuru District | C72: 0 | D72: 0 | E72: 55504.272 | F72: 0 | G72: 391961.9684 | H72: 54145.66815 | I72: 93978.024 | J72: 2080827.42 | K72: 15761.72746 | L72: 57262.69472 | M72: 168720.876 | N72: 3641609.196 | O72: 790401.804 | P72: 1054023.906 | Q72: 93000 | R72: 24336 | S72: 362943.2042 | T72: 150968.6825 | U72: 0 | V72: 48755.24672 | W72: 315840 | X72: 8957.226622 | Y72: 28120.48592 | Z72: 76358.56599 | AA72: 104479.0519 | AB72: 0 | AC72: 28629.36423 | AD72: 6532.758378 | AE72: 31166.76187 | AF72: 66328.88448 | AG72: 0 | AH72: 0 | AI72: 2269.035195 | AJ72: 0 | AK72: 5330.926286 | AL72: 76358.56599 | AM72: 81689.49228 | AN72: 8170.397533 | AO72: 20445.27968 | AP72: 128856 | AQ72: 44113.96353 | AR72: 17058.02089 | AS72: 11207.25825 | AT72: 12316.12639 | AU72: 23523.38465 | AV72: 96821.99097 | AW72: 0 | AX72: 0 | AY72: 76358.56599 | AZ72: 173180.557 | BA72: 22000 | BB72: 1177553.236 | BC72: 0 | BD72: 72800 | BE72: 0 | BF72: 0 | BG72: 11351465.22 | BH72: 470063.0015 | BI72: 152717.1328 | BJ72: 622780.1342 | BK72: 495528.9306 | BL72: 152717.1328 | BM72: 648246.0633 | BN72: 180353.25 | BP72: 0 | BQ72: 0 | BR72: 0 | BS72: 0 | BT72: 0 | BU72: 14819.68171 | BV72: 305434.2663 | BW72: 320253.948 | BX72: 140285.77 | BY72: 0 | BZ72: 0 | CA72: 381792.8323 | CB72: 522078.6023 | CC72: 512002.2805 | CD72: 305434.2695 | CE72: 817436.55 | CF72: 3111148.548 | CG72: 14462613.77 | CI72: 8075753.226 | CJ72: 3275711.994 | CK72: 3111148.548 | CL72: 0
A73: 571 | B73: Budaka District | C73: 0 | D73: 0 | E73: 131884.884 | F73: 1161396.848 | G73: 322919.7031 | H73: 92778.75867 | I73: 132886.975 | J73: 978034.634 | K73: 0 | L73: 0 | M73: 3796.716 | N73: 4908646.656 | O73: 1300043.808 | P73: 1386509.34 | Q73: 106074.396 | R73: 24336 | S73: 554547.5866 | T73: 128616.1166 | U73: 0 | V73: 44034.01384 | W73: 1263441 | X73: 8871.079895 | Y73: 28120.48592 | Z73: 35412.37851 | AA73: 63532.86443 | AB73: 0 | AC73: 20803.47151 | AD73: 8807.679435 | AE73: 16743.30234 | AF73: 46354.45329 | AG73: 0 | AH73: 0 | AI73: 11469.11461 | AJ73: 0 | AK73: 5475.330257 | AL73: 26992.10184 | AM73: 32467.4321 | AN73: 8091.818187 | AO73: 25552.86663 | AP73: 156481.8216 | AQ73: 103619.3374 | AR73: 16893.96423 | AS73: 12714.5073 | AT73: 14184.91884 | AU73: 26899.42614 | AV73: 63861.33672 | AW73: 8200 | AX73: 0 | AY73: 44855.67944 | AZ73: 116917.0162 | BA73: 22000 | BB73: 0 | BC73: 0 | BD73: 0 | BE73: 0 | BF73: 0 | BG73: 13179098.63 | BH73: 302088.0009 | BI73: 138851.501 | BJ73: 440939.5019 | BK73: 591292.5252 | BL73: 78694.17446 | BM73: 669986.6997 | BN73: 0 | BP73: 0 | BQ73: 0 | BR73: 0 | BS73: 83288.80676 | BT73: 0 | BU73: 31644.01105 | BV73: 236082.5234 | BW73: 267726.5344 | BX73: 206736.9241 | BY73: 272000 | BZ73: 0 | CA73: 143852.9509 | CB73: 622589.8751 | CC73: 0 | CD73: 115680.5057 | CE73: 115680.5057 | CF73: 2200211.924 | CG73: 15379310.55 | CI73: 8996810.347 | CJ73: 4182288.284 | CK73: 2116923.117 | CL73: 83288.80676
A74: 572 | B74: Oyam District | C74: 0 | D74: 0 | E74: 279020.172 | F74: 41597.28 | G74: 555755.1093 | H74: 53090.7894 | I74: 111638.849 | J74: 1119413.868 | K74: 0 | L74: 101957.8875 | M74: 761676.924 | N74: 9870594.696 | O74: 1399704.504 | P74: 1594375.2 | Q74: 187366.08 | R74: 24336 | S74: 905123.6403 | T74: 232623.2553 | U74: 0 | V74: 360964.815 | W74: 510645 | X74: 14974.00015 | Y74: 28120.48592 | Z74: 47216.50468 | AA74: 75336.9906 | AB74: 0 | AC74: 36338.40968 | AD74: 16216.45219 | AE74: 35825.15841 | AF74: 88380.02029 | AG74: 0 | AH74: 0 | AI74: 3793.197916 | AJ74: 0 | AK74: 7337.087885 | AL74: 47216.50468 | AM74: 54553.59256 | AN74: 13658.64001 | AO74: 40658.98286 | AP74: 90854.4 | AQ74: 174759.1632 | AR74: 28516.2828 | AS74: 17386.97934 | AT74: 19978.17543 | AU74: 37365.15477 | AV74: 127088.4221 | AW74: 0 | AX74: 0 | AY74: 82628.88319 | AZ74: 209717.3053 | BA74: 22000 | BB74: 0 | BC74: 0 | BD74: 98000 | BE74: 134200 | BF74: 404289 | BG74: 19600940.8 | BH74: 558362.0017 | BI74: 137714.8053 | BJ74: 696076.807 | BK74: 470414.2107 | BL74: 281725.1446 | BM74: 752139.3552 | BN74: 0 | BP74: 0 | BQ74: 0 | BR74: 0 | BS74: 0 | BT74: 0 | BU74: 29514.18224 | BV74: 533585.946 | BW74: 563100.1282 | BX74: 169819.6163 | BY74: 0 | BZ74: 0 | CA74: 456152.4986 | CB74: 625972.1149 | CC74: 512002.2805 | CD74: 169192.4751 | CE74: 681194.7556 | CF74: 3318483.161 | CG74: 22919423.96 | CI74: 15159960.52 | CJ74: 4440980.279 | CK74: 3318483.161 | CL74: 0
A75: 573 | B75: Abim District | C75: 0 | D75: 0 | E75: 30932.304 | F75: 3279.972 | G75: 249917.6214 | H75: 63718.57147 | I75: 72962.076 | J75: 1065301.092 | K75: 20182.21185 | L75: 25940.61297 | M75: 43181.58 | N75: 3383605.956 | O75: 447135.54 | P75: 1384619.856 | Q75: 93000 | R75: 24336 | S75: 194710.4511 | T75: 99291.42337 | U75: 137576.6687 | V75: 119867.3925 | W75: 337557 | X75: 6327.048276 | Y75: 28120.48592 | Z75: 25182.13583 | AA75: 53302.62175 | AB75: 0 | AC75: 21916.45221 | AD75: 6186.427113 | AE75: 28532.42176 | AF75: 56635.30109 | AG75: 0 | AH75: 0 | AI75: 1602.761192 | AJ75: 0 | AK75: 6350.782083 | AL75: 44855.67944 | AM75: 51206.46153 | AN75: 5771.261776 | AO75: 19441.56165 | AP75: 98966.4 | AQ75: 73442.47774 | AR75: 12049.14492 | AS75: 7891.310353 | AT75: 8204.783007 | AU75: 16096.09336 | AV75: 55090.28444 | AW75: 0 | AX75: 0 | AY75: 78694.11151 | AZ75: 133784.3959 | BA75: 22000 | BB75: 1368759.996 | BC75: 0 | BD75: 0 | BE75: 134200 | BF75: 0 | BG75: 9850701.855 | BH75: 685623.0021 | BI75: 414411.5487 | BJ75: 1100034.551 | BK75: 613896.5657 | BL75: 125910.6791 | BM75: 739807.2449 | BN75: 188982.45 | BP75: 0 | BQ75: 0 | BR75: 0 | BS75: 0 | BT75: 700000 | BU75: 26388.20534 | BV75: 243951.9408 | BW75: 270340.1462 | BX75: 140285.77 | BY75: 0 | BZ75: 0 | CA75: 244738.8826 | CB75: 385024.6525 | CC75: 0 | CD75: 220343.6885 | CE75: 220343.6885 | CF75: 3604532.733 | CG75: 13455234.59 | CI75: 6613108.5 | CJ75: 3237593.355 | CK75: 3604532.733 | CL75: 0
A76: 574 | B76: Namutumba District | C76: 0 | D76: 0 | E76: 123258.036 | F76: 282011.8613 | G76: 380409.9389 | H76: 67952.99542 | I76: 125454.528 | J76: 774542.088 | K76: 0 | L76: 0 | M76: 40000 | N76: 6074402.736 | O76: 825188.652 | P76: 1251729.96 | Q76: 126696.108 | R76: 24336 | S76: 587875.4794 | T76: 157496.6767 | U76: 0 | V76: 86014.75456 | W76: 1694328 | X76: 9657.845488 | Y76: 28120.48592 | Z76: 0 | AA76: 28120.48592 | AB76: 0 | AC76: 22865.13188 | AD76: 9928.162941 | AE76: 0 | AF76: 32793.29482 | AG76: 0 | AH76: 0 | AI76: 2446.515226 | AJ76: 0 | AK76: 6615.23903 | AL76: 0 | AM76: 6615.23903 | AN76: 8809.471979 | AO76: 26112.52292 | AP76: 116812.8 | AQ76: 93439.19198 | AR76: 18392.26996 | AS76: 24395.68741 | AT76: 28668.06031 | AU76: 53063.74772 | AV76: 65718.16018 | AW76: 0 | AX76: 0 | AY76: 0 | AZ76: 65718.16018 | BA76: 22000 | BB76: 0 | BC76: 0 | BD76: 0 | BE76: 134200 | BF76: 0 | BG76: 13239879.36 | BH76: 356801.0011 | BI76: 0 | BJ76: 356801.0011 | BK76: 461646.6686 | BL76: 0 | BM76: 461646.6686 | BN76: 0 | BP76: 0 | BQ76: 0 | BR76: 0 | BS76: 0 | BT76: 0 | BU76: 37750.64255 | BV76: 0 | BW76: 37750.64255 | BX76: 339639.2325 | BY76: 272000 | BZ76: 0 | CA76: 0 | CB76: 611639.2325 | CC76: 0 | CD76: 0 | CE76: 0 | CF76: 1467837.545 | CG76: 14707716.9 | CI76: 9359162.872 | CJ76: 3880716.487 | CK76: 1467837.545 | CL76: 0
A77: 575 | B77: Dokolo District | C77: 0 | D77: 0 | E77: 116165.988 | F77: 299505.777 | G77: 318445.5348 | H77: 70573.68249 | I77: 127390.008 | J77: 986340.036 | K77: 0 | L77: 52396.81577 | M77: 190653.96 | N77: 4063504.284 | O77: 872143.44 | P77: 1237688.496 | Q77: 114613.164 | R77: 24336 | S77: 428797.8669 | T77: 156002.8311 | U77: 0 | V77: 15168.07528 | W77: 424584 | X77: 10262.91222 | Y77: 28120.48592 | Z77: 0 | AA77: 28120.48592 | AB77: 10000 | AC77: 21326.57176 | AD77: 8101.435286 | AE77: 30847.81965 | AF77: 60275.8267 | AG77: 0 | AH77: 0 | AI77: 2599.790092 | AJ77: 0 | AK77: 6217.498109 | AL77: 39347.08723 | AM77: 45564.58534 | AN77: 9361.38787 | AO77: 23395.39345 | AP77: 136281.6 | AQ77: 114284.2517 | AR77: 19544.55083 | AS77: 10830.44599 | AT77: 11848.92828 | AU77: 22679.37427 | AV77: 61791.32603 | AW77: 0 | AX77: 0 | AY77: 36027.39158 | AZ77: 97818.71761 | BA77: 0 | BB77: 0 | BC77: 0 | BD77: 398000 | BE77: 0 | BF77: 0 | BG77: 10476498.84 | BH77: 318706.001 | BI77: 354123.7851 | BJ77: 672829.7861 | BK77: 461669.7802 | BL77: 118041.2617 | BM77: 579711.0419 | BN77: 0 | BP77: 0 | BQ77: 0 | BR77: 0 | BS77: 93979.00687 | BT77: 0 | BU77: 17177.2524 | BV77: 295103.1542 | BW77: 312280.4066 | BX77: 140285.77 | BY77: 0 | BZ77: 0 | CA77: 472165.0468 | CB77: 612450.8167 | CC77: 512002.2805 | CD77: 196735.4362 | CE77: 708737.7167 | CF77: 2979988.775 | CG77: 13456487.61 | CI77: 7752950.988 | CJ77: 2723547.847 | CK77: 2886009.768 | CL77: 93979.00687
A78: 576 | B78: Bullisa District | C78: 0 | D78: 0 | E78: 9515.364 | F78: 146406.31 | G78: 291855.6123 | H78: 44244.76689 | I78: 85696.956 | J78: 426019.308 | K78: 0 | L78: 0 | M78: 0 | N78: 1903748.628 | O78: 259441.788 | P78: 859337.604 | Q78: 128489.4 | R78: 24336 | S78: 193872.4713 | T78: 98165.98639 | U78: 42010.00101 | V78: 0 | W78: 308571 | X78: 4370.860096 | Y78: 28120.48592 | Z78: 9487.804852 | AA78: 37608.29078 | AB78: 8000 | AC78: 15124.72136 | AD78: 3972.623338 | AE78: 18020.26819 | AF78: 37117.61289 | AG78: 0 | AH78: 0 | AI78: 1107.221667 | AJ78: 0 | AK78: 5980.566157 | AL78: 0 | AM78: 5980.566157 | AN78: 3986.91091 | AO78: 11269.65951 | AP78: 116812.8 | AQ78: 56960.33752 | AR78: 8323.806685 | AS78: 7363.773187 | AT78: 7550.705651 | AU78: 14914.47884 | AV78: 41311.01437 | AW78: 0 | AX78: 0 | AY78: 15738.83489 | AZ78: 57049.84926 | BA78: 22000 | BB78: 0 | BC78: 0 | BD78: 0 | BE78: 0 | BF78: 0 | BG78: 5207213.59 | BH78: 218698.0007 | BI78: 125910.6791 | BJ78: 344608.6798 | BK78: 509970.5775 | BL78: 47216.50468 | BM78: 557187.0822 | BN78: 0 | BP78: 0 | BQ78: 0 | BR78: 0 | BS78: 0 | BT78: 0 | BU78: 25457.01662 | BV78: 212474.2711 | BW78: 237931.2877 | BX78: 206736.9241 | BY78: 0 | BZ78: 0 | CA78: 393470.8723 | CB78: 600207.7965 | CC78: 0 | CD78: 78694.17446 | CE78: 78694.17446 | CF78: 1818629.021 | CG78: 7025842.611 | CI78: 3803882.484 | CJ78: 1403331.106 | CK78: 1818629.021 | CL78: 0
A79: 577 | B79: Maracha District | C79: 0 | D79: 0 | E79: 93835.14 | F79: 896775.512 | G79: 376885.5684 | H79: 48997.5113 | I79: 139314.624 | J79: 788646.982 | K79: 0 | L79: 65544.35626 | M79: 0 | N79: 6013802.352 | O79: 1005382.812 | P79: 1705895.196 | Q79: 106074.396 | R79: 24336 | S79: 630469.9768 | T79: 123040.2919 | U79: 0 | V79: 320681.9845 | W79: 453726 | X79: 9902.570386 | Y79: 28120.48592 | Z79: 29903.7863 | AA79: 58024.27222 | AB79: 0 | AC79: 24031.45954 | AD79: 9337.362547 | AE79: 22135.8496 | AF79: 55504.67168 | AG79: 0 | AH79: 0 | AI79: 2508.50868 | AJ79: 0 | AK79: 4207.840511 | AL79: 22034.36885 | AM79: 26242.20936 | AN79: 9032.699524 | AO79: 26709.40128 | AP79: 120057.6 | AQ79: 95378.2673 | AR79: 18858.32073 | AS79: 10604.35864 | AT79: 11568.60941 | AU79: 22172.96805 | AV79: 56262.89425 | AW79: 0 | AX79: 0 | AY79: 39347.08723 | AZ79: 95609.98148 | BA79: 22000 | BB79: 0 | BC79: 0 | BD79: 0 | BE79: 0 | BF79: 0 | BG79: 13355410.17 | BH79: 381577.0012 | BI79: 314870.2157 | BJ79: 696447.2168 | BK79: 681564.2936 | BL79: 78694.17446 | BM79: 760258.4681 | BN79: 0 | BP79: 0 | BQ79: 0 | BR79: 0 | BS79: 119765.262 | BT79: 100000 | BU79: 32264.84017 | BV79: 251821.3583 | BW79: 284086.1985 | BX79: 206736.9241 | BY79: 0 | BZ79: 0 | CA79: 155184.912 | CB79: 361921.8362 | CC79: 0 | CD79: 192800.7274 | CE79: 192800.7274 | CF79: 2515279.709 | CG79: 15870689.88 | CI79: 9903509.962 | CJ79: 3451900.212 | CK79: 2395514.447 | CL79: 119765.262
A80: 578 | B80: Bukedea Distrct | C80: 0 | D80: 0 | E80: 166087.2 | F80: 588609.9876 | G80: 348450.2625 | H80: 46921.77535 | I80: 116926.2 | J80: 796660.865 | K80: 0 | L80: 0 | M80: 505824.46 | N80: 7315814.16 | O80: 919533.948 | P80: 1003784.964 | Q80: 128546.34 | R80: 24336 | S80: 584507.7764 | T80: 122280.4332 | U80: 0 | V80: 38085.96362 | W80: 797844 | X80: 8378.323982 | Y80: 28120.48592 | Z80: 23608.25234 | AA80: 51728.73826 | AB80: 0 | AC80: 33850.94988 | AD80: 7537.798129 | AE80: 16013.41533 | AF80: 57402.16334 | AG80: 0 | AH80: 0 | AI80: 2122.388189 | AJ80: 0 | AK80: 6732.789006 | AL80: 31477.66979 | AM80: 38210.45879 | AN80: 7642.3474 | AO80: 28259.51387 | AP80: 135345.6 | AQ80: 57445.10635 | AR80: 15955.56655 | AS80: 14824.65596 | AT80: 16801.22827 | AU80: 31625.88423 | AV80: 56148.07505 | AW80: 0 | AX80: 0 | AY80: 81054.9997 | AZ80: 137203.0747 | BA80: 0 | BB80: 0 | BC80: 0 | BD80: 0 | BE80: 134200 | BF80: 120082 | BG80: 14329815.5 | BH80: 307604.001 | BI80: 142436.4558 | BJ80: 450040.4567 | BK80: 363789.0026 | BL80: 103876.3103 | BM80: 467665.3129 | BN80: 0 | BP80: 0 | BQ80: 0 | BR80: 0 | BS80: 151803.2711 | BT80: 0 | BU80: 26948.20461 | BV80: 78694.17446 | BW80: 105642.3791 | BX80: 169819.6163 | BY80: 0 | BZ80: 150000 | CA80: 196735.4362 | CB80: 516555.0524 | CC80: 512002.2805 | CD80: 126774.0526 | CE80: 638776.3331 | CF80: 2330482.805 | CG80: 16660298.31 | CI80: 10946772.54 | CJ80: 3383042.964 | CK80: 2178679.534 | CL80: 151803.2711
A81: 579 | B81: Bududa District | C81: 0 | D81: 0 | E81: 426839.64 | F81: 81422.232 | G81: 446873.1112 | H81: 51957.29594 | I81: 150203.532 | J81: 673235.141 | K81: 0 | L81: 0 | M81: 0 | N81: 4643327.124 | O81: 792713.388 | P81: 1932394.128 | Q81: 138105.144 | R81: 24336 | S81: 480054.5833 | T81: 133100.5656 | U81: 132633.602 | V81: 9584.894571 | W81: 724611 | X81: 12712.77902 | Y81: 28120.48592 | Z81: 28329.90281 | AA81: 56450.38873 | AB81: 0 | AC81: 19848.08206 | AD81: 9120.056655 | AE81: 16620.63226 | AF81: 45588.77098 | AG81: 0 | AH81: 0 | AI81: 3220.387765 | AJ81: 0 | AK81: 5105.825331 | AL81: 16066.20659 | AM81: 21172.03192 | AN81: 11596.05118 | AO81: 24890.27834 | AP81: 174351.7308 | AQ81: 241414.8773 | AR81: 24210.04394 | AS81: 14975.38087 | AT81: 16988.10751 | AU81: 31963.48838 | AV81: 48219.91404 | AW81: 0 | AX81: 0 | AY81: 35412.37851 | AZ81: 83632.29254 | BA81: 22000 | BB81: 0 | BC81: 0 | BD81: 0 | BE81: 0 | BF81: 0 | BG81: 11594594.5 | BH81: 256596.0008 | BI81: 174307.5964 | BJ81: 430903.5972 | BK81: 366405.7927 | BL81: 64303.66746 | BM81: 430709.4602 | BN81: 55697.5 | BP81: 0 | BQ81: 0 | BR81: 0 | BS81: 0 | BT81: 0 | BU81: 21013.49653 | BV81: 132065.4395 | BW81: 153078.936 | BX81: 140285.77 | BY81: 272000 | BZ81: 0 | CA81: 144621.3075 | CB81: 556907.0774 | CC81: 0 | CD81: 219304.4816 | CE81: 219304.4816 | CF81: 1846601.052 | CG81: 13441195.55 | CI81: 8528666.188 | CJ81: 3065928.315 | CK81: 1846601.052 | CL81: 0
A82: 580 | B82: Lyantonde District | C82: 0 | D82: 0 | E82: 29081.46 | F82: 14081.52 | G82: 845530.0154 | H82: 60714.58631 | I82: 33279.36 | J82: 915878.904 | K82: 0 | L82: 0 | M82: 40000 | N82: 2040129.3 | O82: 513770.592 | P82: 1568663.256 | Q82: 107121.696 | R82: 24336 | S82: 194787.6923 | T82: 88395.13295 | U82: 129256.3753 | V82: 16644.26967 | W82: 378156 | X82: 5398.341394 | Y82: 28121.06798 | Z82: 0 | AA82: 28121.06798 | AB82: 18000 | AC82: 14510.52676 | AD82: 4739.984769 | AE82: 0 | AF82: 19250.51153 | AG82: 0 | AH82: 0 | AI82: 1367.502145 | AJ82: 0 | AK82: 5122.864328 | AL82: 0 | AM82: 5122.864328 | AN82: 4924.135234 | AO82: 16672.74575 | AP82: 111945.6 | AQ82: 57566.29856 | AR82: 10280.52813 | AS82: 11659.43297 | AT82: 12876.76413 | AU82: 24536.1971 | AV82: 25976.60548 | AW82: 0 | AX82: 0 | AY82: 0 | AZ82: 25976.60548 | BA82: 22000 | BB82: 0 | BC82: 0 | BD82: 0 | BE82: 134200 | BF82: 0 | BG82: 7485188.558 | BH82: 181052.0006 | BI82: 0 | BJ82: 181052.0006 | BK82: 439179.3182 | BL82: 0 | BM82: 439179.3182 | BN82: 205821 | BP82: 0 | BQ82: 0 | BR82: 0 | BS82: 0 | BT82: 0 | BU82: 31852.63949 | BV82: 0 | BW82: 31852.63949 | BX82: 206736.9241 | BY82: 0 | BZ82: 0 | CA82: 0 | CB82: 206736.9241 | CC82: 0 | CD82: 0 | CE82: 0 | CF82: 1064641.882 | CG82: 8549830.44 | CI82: 5355124.708 | CJ82: 2130063.85 | CK82: 1064641.882 | CL82: 0
A83: 581 | B83: Amudat District | C83: 0 | D83: 0 | F83: 0 | G83: 253075.94 | H83: 49513.24685 | I83: 0 | J83: 339281.1 | K83: 16798.08937 | L83: 36767.99926 | M83: 0 | N83: 683991.12 | O83: 91832.028 | P83: 444879.852 | Q83: 93000 | R83: 24336 | S83: 39962.15821 | T83: 76979.089 | U83: 0 | V83: 201683.1673 | W83: 33876 | X83: 5411.444729 | Y83: 28120.48592 | Z83: 29222.44112 | AA83: 57342.92704 | AB83: 0 | AC83: 11025.30897 | AD83: 1120.483506 | AE83: 29222.441 | AF83: 41368.23348 | AG83: 0 | AH83: 0 | AI83: 1370.821468 | AJ83: 0 | AK83: 4631.920426 | AL83: 43833.66167 | AM83: 48465.5821 | AN83: 4936.087533 | AO83: 6378.57007 | AP83: 102211.2 | AQ83: 37690.77653 | AR83: 10305.48195 | AS83: 5781.161689 | AT83: 5588.473581 | AU83: 11369.63527 | AV83: 55470.75931 | AW83: 0 | AX83: 0 | AY83: 58444.88223 | AZ83: 113915.6415 | BA83: 22000 | BB83: 246233.1311 | BC83: 0 | BD83: 0 | BE83: 0 | BF83: 0 | BG83: 3094975.323 | BH83: 295204.0009 | BI83: 263001.9685 | BJ83: 558205.9694 | BK83: 495528.9306 | BL83: 146112.2048 | BM83: 641641.1354 | BN83: 0 | BP83: 0 | BQ83: 0 | BR83: 0 | BS83: 0 | BT83: 0 | BU83: 20981.12361 | BV83: 233779.5281 | BW83: 254760.6518 | BX83: 140285.77 | BY83: 272000 | BZ83: 0 | CA83: 175334.6459 | CB83: 587620.4159 | CC83: 0 | CD83: 482170.2768 | CE83: 482170.2768 | CF83: 2524398.449 | CG83: 5619373.772 | CI83: 1779531.3 | CJ83: 1315444.023 | CK83: 2524398.449 | CL83: 0
A84: 582 | B84: Buikwe District | C84: 30000 | D84: 0 | E84: 57433.8 | F84: 53170.488 | G84: 675092.2734 | H84: 511996.6352 | I84: 700232.835 | J84: 1031977.74 | K84: 0 | L84: 0 | M84: 176169.504 | N84: 8279944.632 | O84: 1889001.06 | P84: 2716053.012 | Q84: 151170.732 | R84: 24336 | S84: 674475.412 | T84: 251384.4316 | U84: 152622.349 | V84: 316327.5066 | W84: 1921698 | X84: 18069.43638 | Y84: 28120.48592 | Z84: 0 | AA84: 28120.48592 | AB84: 0 | AC84: 36904.63189 | AD84: 13676.68958 | AE84: 0 | AF84: 50581.32147 | AG84: 0 | AH84: 0 | AI84: 18410.18358 | AJ84: 0 | AK84: 7059.115941 | AL84: 0 | AM84: 7059.115941 | AN84: 16482.16402 | AO84: 42218.95453 | AP84: 141148.8 | AQ84: 117556.4413 | AR84: 34411.18956 | AS84: 23189.88817 | AT84: 27173.02635 | AU84: 50362.91452 | AV84: 88346.07436 | AW84: 0 | AX84: 0 | AY84: 0 | AZ84: 88346.07436 | BA84: 22000 | BB84: 0 | BC84: 57600 | BD84: 0 | BE84: 0 | BF84: 124068 | BG84: 20429521.49 | BH84: 686245.0021 | BI84: 0 | BJ84: 686245.0021 | BK84: 502319.9073 | BL84: 0 | BM84: 502319.9073 | BN84: 406214.433 | BP84: 0 | BQ84: 0 | BR84: 0 | BS84: 0 | BT84: 0 | BU84: 31158.10714 | BV84: 0 | BW84: 31158.10714 | BX84: 206736.9241 | BY84: 0 | BZ84: 0 | CA84: 0 | CB84: 206736.9241 | CC84: 0 | CD84: 0 | CE84: 0 | CF84: 1832674.374 | CG84: 22262195.87 | CI84: 15110034.32 | CJ84: 5319487.177 | CK84: 1832674.374 | CL84: 0
A85: 583 | B85: Buyende District | C85: 0 | D85: 0 | E85: 14606.844 | F85: 22522.512 | G85: 737485.1736 | H85: 80789.45281 | I85: 102139.392 | J85: 1076385.444 | K85: 0 | L85: 0 | M85: 0 | N85: 5530623.276 | O85: 497458.392 | P85: 1043920.92 | Q85: 106074.396 | R85: 24336 | S85: 606002.5575 | T85: 185197.1731 | U85: 0 | V85: 90504.92 | W85: 1022613 | X85: 15630.05211 | Y85: 28120.48592 | Z85: 0 | AA85: 28120.48592 | AB85: 0 | AC85: 23893.34303 | AD85: 5969.121221 | AE85: 0 | AF85: 29862.46425 | AG85: 0 | AH85: 0 | AI85: 3959.388304 | AJ85: 0 | AK85: 4605.331431 | AL85: 0 | AM85: 4605.331431 | AN85: 14257.06243 | AO85: 22472.4781 | AP85: 85987.2 | AQ85: 73078.90112 | AR85: 29765.65924 | AS85: 15653.64294 | AT85: 17829.06411 | AU85: 33482.70705 | AV85: 93421.72111 | AW85: 0 | AX85: 0 | AY85: 0 | AZ85: 93421.72111 | BA85: 22000 | BB85: 0 | BC85: 0 | BD85: 0 | BE85: 0 | BF85: 0 | BG85: 11597302.9 | BH85: 444124.0014 | BI85: 0 | BJ85: 444124.0014 | BK85: 502319.9073 | BL85: 0 | BM85: 502319.9073 | BN85: 0 | BP85: 0 | BQ85: 0 | BR85: 0 | BS85: 0 | BT85: 0 | BU85: 20697.96789 | BV85: 0 | BW85: 20697.96789 | BX85: 406090.3867 | BY85: 0 | BZ85: 0 | CA85: 0 | CB85: 406090.3867 | CC85: 0 | CD85: 0 | CE85: 0 | CF85: 1373232.263 | CG85: 12970535.17 | CI85: 8466925.02 | CJ85: 3130377.884 | CK85: 1373232.263 | CL85: 0
A86: 584 | B86: Kyegegwa District | C86: 0 | D86: 0 | E86: 65931.816 | F86: 0 | G86: 588940.5176 | H86: 100188.745 | I86: 110049.534 | J86: 831056.664 | K86: 0 | L86: 0 | M86: 0 | N86: 3225029.964 | O86: 1070343.948 | P86: 1403441.629 | Q86: 93000 | R86: 24336 | S86: 358727.7072 | T86: 157784.4551 | U86: 0 | V86: 11300.83999 | W86: 398094 | X86: 8875.448988 | Y86: 28121.06798 | Z86: 0 | AA86: 28121.06798 | AB86: 0 | AC86: 18407.89659 | AD86: 6125.309831 | AE86: 0 | AF86: 24533.20642 | AG86: 0 | AH86: 0 | AI86: 11470.22139 | AJ86: 0 | AK86: 4936.566365 | AL86: 0 | AM86: 4936.566365 | AN86: 8095.803486 | AO86: 17751.22203 | AP86: 264338.6616 | AQ86: 97923.30366 | AR86: 16902.28467 | AS86: 16482.62992 | AT86: 18856.89996 | AU86: 35339.52988 | AV86: 63305.56341 | AW86: 0 | AX86: 0 | AY86: 0 | AZ86: 63305.56341 | BA86: 22000 | BB86: 0 | BC86: 0 | BD86: 0 | BE86: 0 | BF86: 0 | BG86: 9041818.7 | BH86: 256910.0008 | BI86: 0 | BJ86: 256910.0008 | BK86: 365531.8507 | BL86: 0 | BM86: 365531.8507 | BN86: 0 | BO86: 304596.993 | BP86: 0 | BQ86: 0 | BR86: 0 | BS86: 0 | BT86: 0 | BU86: 13660.65881 | BV86: 0 | BW86: 13660.65881 | BX86: 339639.2325 | BY86: 0 | BZ86: 304141.023 | CA86: 0 | CB86: 643780.2555 | CC86: 0 | CD86: 0 | CE86: 0 | CF86: 1584479.759 | CG86: 10626298.46 | CI86: 7021596.401 | CJ86: 2020222.299 | CK86: 1584479.759 | CL86: 0
A87: 585 | B87: Lamwo District | C87: 0 | D87: 0 | E87: 42126.312 | F87: 1214966.572 | G87: 346221.9622 | H87: 87408.08293 | I87: 42109.668 | J87: 794158.488 | K87: 30229.6118 | L87: 54233.60451 | M87: 0 | N87: 3755955.396 | O87: 374698.548 | P87: 1455030.372 | Q87: 93000 | R87: 24336 | S87: 424194.2308 | T87: 91385.33027 | U87: 0 | V87: 14342.9058 | W87: 188259 | X87: 11615.22029 | Y87: 28120.48592 | Z87: 6820.613754 | AA87: 34941.09968 | AB87: 0 | AC87: 31337.1455 | AD87: 5867.259084 | AE87: 31430.50256 | AF87: 68634.90714 | AG87: 0 | AH87: 0 | AI87: 2942.355346 | AJ87: 0 | AK87: 5505.774251 | AL87: 21382.62448 | AM87: 26888.39874 | AN87: 10594.90523 | AO87: 19076.99817 | AP87: 131414.4 | AQ87: 96347.80496 | AR87: 22119.86798 | AS87: 10604.35864 | AT87: 11568.60941 | AU87: 22172.96805 | AV87: 89462.68866 | AW87: 0 | AX87: 0 | AY87: 253726.8386 | AZ87: 343189.5272 | BA87: 23000 | BB87: 1376614.528 | BC87: 0 | BD87: 0 | BE87: 0 | BF87: 0 | BG87: 11222209.06 | BH87: 402948.0013 | BI87: 199319.5852 | BJ87: 602267.5865 | BK87: 351026.5263 | BL87: 134775.3308 | BM87: 485801.8571 | BN87: 0 | BP87: 0 | BQ87: 0 | BR87: 0 | BS87: 0 | BT87: 0 | BU87: 21983.05251 | BV87: 179783.7226 | BW87: 201766.7751 | BX87: 140285.77 | BY87: 0 | BZ87: 0 | CA87: 320423.4282 | CB87: 460709.1982 | CC87: 403776.7985 | CD87: 423862.4814 | CE87: 827639.2799 | CF87: 2578184.697 | CG87: 13800393.76 | CI87: 6670702.872 | CJ87: 4551506.193 | CK87: 2578184.697 | CL87: 0
A88: 586 | B88: Otuke District | C88: 0 | D88: 0 | E88: 20881.08 | F88: 490849.834 | G88: 255914.152 | H88: 38607.73353 | I88: 130717.068 | J88: 901215.876 | K88: 0 | L88: 21944.79184 | M88: 0 | N88: 2742018.168 | O88: 565031.064 | P88: 937215.804 | Q88: 119148.792 | R88: 24336 | S88: 294532.9864 | T88: 71264.16631 | U88: 0 | V88: 17820.6267 | W88: 256464 | X88: 5401.704576 | Y88: 28120.48592 | Z88: 0 | AA88: 28120.48592 | AB88: 0 | AC88: 16676.62053 | AD88: 4597.377778 | AE88: 27814.80176 | AF88: 49088.80007 | AG88: 0 | AH88: 0 | AI88: 1368.354102 | AJ88: 0 | AK88: 5828.298187 | AL88: 7869.417446 | AM88: 13697.71563 | AN88: 4927.202984 | AO88: 16531.76683 | AP88: 103833.6 | AQ88: 80956.39461 | AR88: 10286.93293 | AS88: 8720.297329 | AT88: 9232.618854 | AU88: 17952.91618 | AV88: 45093.98315 | AW88: 0 | AX88: 0 | AY88: 106237.1355 | AZ88: 151331.1187 | BA88: 0 | BB88: 0 | BC88: 0 | BD88: 0 | BE88: 0 | BF88: 0 | BG88: 7371459.135 | BH88: 178285.0006 | BI88: 255855.6403 | BJ88: 434140.6409 | BK88: 441197.8282 | BL88: 129845.3879 | BM88: 571043.2161 | BN88: 0 | BP88: 0 | BQ88: 0 | BR88: 0 | BS88: 96165.63871 | BT88: 0 | BU88: 16555.84622 | BV88: 361993.2025 | BW88: 378549.0488 | BX88: 140285.77 | BY88: 0 | BZ88: 200000 | CA88: 327997.3192 | CB88: 668283.0891 | CC88: 403776.7985 | CD88: 173127.1838 | CE88: 576903.9823 | CF88: 2725085.616 | CG88: 10096544.75 | CI88: 5523516.372 | CJ88: 1847942.763 | CK88: 2628919.977 | CL88: 96165.63871
A89: 587 | B89: Zombo District | C89: 0 | D89: 0 | E89: 66416.16 | F89: 11404.152 | G89: 461592.4256 | H89: 154545.6845 | I89: 221287.007 | J89: 672677.304 | K89: 17268.57778 | L89: 54008.03397 | M89: 286257.804 | N89: 5836565.16 | O89: 663440.724 | P89: 1354215.084 | Q89: 166631.7 | R89: 24336 | S89: 506327.8129 | T89: 147815.4748 | U89: 0 | V89: 336749.6614 | W89: 365475 | X89: 9392.964859 | Y89: 28120.48592 | Z89: 4759.188376 | AA89: 32879.6743 | AB89: 0 | AC89: 20605.75386 | AD89: 8210.088232 | AE89: 21534.76618 | AF89: 50350.60827 | AG89: 9195.8333 | AH89: 0 | AI89: 2379.415945 | AJ89: 0 | AK89: 4265.342499 | AL89: 53836.91573 | AM89: 58102.25823 | AN89: 8567.859243 | AO89: 24678.45214 | AP89: 21091.2 | AQ89: 116829.288 | AR89: 17887.83488 | AS89: 13543.49428 | AT89: 15212.75469 | AU89: 28756.24896 | AV89: 74555.62842 | AW89: 0 | AX89: 0 | AY89: 53836.91573 | AZ89: 128392.5441 | BA89: 23000 | BB89: 0 | BC89: 0 | BD89: 0 | BE89: 0 | BF89: 0 | BG89: 11878517.95 | BH89: 414601.0013 | BI89: 313290.8519 | BJ89: 727891.8532 | BK89: 330808.0164 | BL89: 123412.6656 | BM89: 454220.682 | BN89: 25000 | BP89: 0 | BQ89: 0 | BR89: 0 | BS89: 91874.04376 | BT89: 0 | BU89: 11707.78949 | BV89: 161510.7464 | BW89: 173218.5359 | BX89: 206736.9241 | BY89: 0 | BZ89: 0 | CA89: 183045.5127 | CB89: 389782.4368 | CC89: 0 | CD89: 161510.7464 | CE89: 161510.7464 | CF89: 2023498.298 | CG89: 13902016.25 | CI89: 9246501.983 | CJ89: 2632015.965 | CK89: 1931624.254 | CL89: 91874.04376
A90: 588 | B90: Alebtong District | C90: 0 | D90: 0 | E90: 139805.46 | F90: 431319.8958 | G90: 397768.7717 | H90: 41490.02071 | I90: 81282 | J90: 908223.42 | K90: 0 | L90: 63900.9137 | M90: 196022.92 | N90: 5648631.096 | O90: 862307.616 | P90: 881049.288 | Q90: 130071.888 | R90: 24336 | S90: 590550.38 | T90: 135790.5962 | U90: 0 | V90: 18647.1054 | W90: 329148 | X90: 14478.4578 | Y90: 28121.06798 | Z90: 31639.04163 | AA90: 59760.10961 | AB90: 0 | AC90: 22393.87176 | AD90: 8461.34817 | AE90: 31639.04171 | AF90: 62494.26163 | AG90: 0 | AH90: 0 | AI90: 3667.66765 | AJ90: 0 | AK90: 4089.054534 | AL90: 15819.52082 | AM90: 19908.57535 | AN90: 13206.62755 | AO90: 25139.9495 | AP90: 126547.2 | AQ90: 123373.6672 | AR90: 27572.57866 | AS90: 13694.21918 | AT90: 15399.63393 | AU90: 29093.85311 | AV90: 81497.29082 | AW90: 0 | AX90: 0 | AY90: 0 | AZ90: 81497.29082 | BA90: 0 | BB90: 0 | BC90: 0 | BD90: 0 | BE90: 134200 | BF90: 0 | BG90: 11601285.61 | BH90: 398032.0012 | BI90: 474585.6261 | BJ90: 872617.6273 | BK90: 379630.1779 | BL90: 142375.6874 | BM90: 522005.8653 | BN90: 0 | BP90: 0 | BQ90: 0 | BR90: 0 | BS90: 142084.9073 | BT90: 0 | BU90: 9105.006738 | BV90: 300570.8963 | BW90: 309675.903 | BX90: 169819.6163 | BY90: 0 | BZ90: 0 | CA90: 585322.2718 | CB90: 755141.8881 | CC90: 403776.7985 | CD90: 0 | CE90: 403776.7985 | CF90: 3005302.989 | CG90: 14606588.6 | CI90: 8858471.428 | CJ90: 2742814.182 | CK90: 2863218.082 | CL90: 142084.9073
A91: 589 | B91: Bulambuli District | C91: 0 | D91: 0 | E91: 55650.12 | F91: 199508.834 | G91: 315923.1064 | H91: 92963.43379 | I91: 124826.988 | J91: 1000141.716 | K91: 0 | L91: 0 | M91: 0 | N91: 3577454.268 | O91: 571511.976 | P91: 1584308.336 | Q91: 119485.968 | R91: 24336 | S91: 365470.0595 | T91: 110676.9899 | U91: 0 | V91: 6844.285617 | W91: 853767 | X91: 11818.34644 | Y91: 28120.48592 | Z91: 0 | AA91: 28120.48592 | AB91: 0 | AC91: 18359.28115 | AD91: 6417.314623 | AE91: 14811.24848 | AF91: 39587.84426 | AG91: 0 | AH91: 0 | AI91: 2993.811049 | AJ91: 0 | AK91: 4984.922355 | AL91: 14515.02323 | AM91: 19499.94558 | AN91: 10780.18819 | AO91: 20942.9534 | AP91: 157372.8 | AQ91: 201300.2567 | AR91: 22506.69867 | AS91: 12262.33259 | AT91: 13624.28111 | AU91: 25886.61369 | AV91: 45362.71122 | AW91: 0 | AX91: 0 | AY91: 50802.58168 | AZ91: 96165.29291 | BA91: 0 | BB91: 0 | BC91: 0 | BD91: 0 | BE91: 0 | BF91: 0 | BG91: 9639844.318 | BH91: 234869.0007 | BI91: 159665.2578 | BJ91: 394534.2586 | BK91: 313838.997 | BL91: 87090.14093 | BM91: 400929.1379 | BN91: 0 | BP91: 0 | BQ91: 0 | BR91: 0 | BS91: 105033.6456 | BT91: 0 | BU91: 16143.2492 | BV91: 166922.7698 | BW91: 183066.019 | BX91: 169819.6163 | BY91: 0 | BZ91: 0 | CA91: 159665.2578 | CB91: 329484.8741 | CC91: 0 | CD91: 87090.14407 | CE91: 87090.14407 | CF91: 1500138.079 | CG91: 11139982.4 | CI91: 7159438.052 | CJ91: 2480406.266 | CK91: 1395104.434 | CL91: 105033.6456
A92: 590 | B92: Buvuma District | C92: 0 | D92: 0 | E92: 0 | F92: 23387.556 | G92: 409645.5055 | H92: 47912.15633 | I92: 102724.056 | J92: 1250816.076 | K92: 0 | L92: 0 | M92: 0 | N92: 616927.524 | O92: 111749.232 | P92: 686223.72 | Q92: 154461.12 | R92: 24336 | S92: 68878.71027 | T92: 61690.14548 | U92: 0 | V92: 14093.99934 | W92: 64659 | X92: 7543.860339 | Y92: 28120.48592 | Z92: 0 | AA92: 28120.48592 | AB92: 0 | AC92: 31214.13212 | AD92: 1602.630953 | AE92: 0 | AF92: 32816.76308 | AG92: 0 | AH92: 0 | AI92: 1911.00274 | AJ92: 0 | AK92: 5184.130316 | AL92: 0 | AM92: 5184.130316 | AN92: 6881.185494 | AO92: 7755.009669 | AP92: 121680 | AQ92: 49082.84404 | AR92: 14366.42531 | AS92: 37647.487 | AT92: 38120.7962 | AU92: 75768.2832 | AV92: 94568.34067 | AW92: 0 | AX92: 0 | AY92: 0 | AZ92: 94568.34067 | BA92: 23000 | BB92: 482222.2214 | BC92: 0 | BD92: 0 | BE92: 0 | BF92: 0 | BG92: 4588405.353 | BH92: 337606.001 | BI92: 0 | BJ92: 337606.001 | BK92: 387626.4794 | BL92: 0 | BM92: 387626.4794 | BN92: 393914.442 | BP92: 0 | BQ92: 0 | BR92: 0 | BS92: 0 | BT92: 0 | BU92: 7865.227799 | BV92: 0 | BW92: 7865.227799 | BX92: 332830.0051 | BY92: 272000 | BZ92: 0 | CA92: 0 | CB92: 604830.0051 | CC92: 0 | CD92: 0 | CE92: 0 | CF92: 1731842.155 | CG92: 6320247.508 | CI92: 3068917.728 | CJ92: 1519487.625 | CK92: 1731842.155 | CL92: 0
A93: 591 | B93: Gomba District | C93: 0 | D93: 0 | E93: 34919.196 | F93: 343458.957 | G93: 371778.3114 | H93: 53233.64292 | I93: 103394.16 | J93: 641241.192 | K93: 0 | L93: 0 | M93: 590022.804 | N93: 4279928.808 | O93: 787721.94 | P93: 921573.168 | Q93: 157429.26 | R93: 24336 | S93: 359576.6806 | T93: 104709.321 | U93: 0 | V93: 16076.80107 | W93: 486111 | X93: 9607.399103 | Y93: 28120.48592 | Z93: 0 | AA93: 28120.48592 | AB93: 0 | AC93: 20361.65827 | AD93: 7076.023108 | AE93: 0 | AF93: 27437.68138 | AG93: 0 | AH93: 0 | AI93: 2433.736202 | AJ93: 0 | AK93: 5660.55522 | AL93: 0 | AM93: 5660.55522 | AN93: 8763.456953 | AO93: 20633.22624 | AP93: 107078.4 | AQ93: 69200.75048 | AR93: 18296.20054 | AS93: 14146.39389 | AT93: 15960.27167 | AU93: 30106.66556 | AV93: 45583.70634 | AW93: 0 | AX93: 0 | AY93: 0 | AZ93: 45583.70634 | BA93: 23000 | BB93: 0 | BC93: 0 | BD93: 0 | BE93: 134200 | BF93: 504139 | BG93: 10309772.51 | BH93: 244882.0008 | BI93: 0 | BJ93: 244882.0008 | BK93: 331453.0512 | BL93: 0 | BM93: 331453.0512 | BN93: 726892.574 | BP93: 0 | BQ93: 0 | BR93: 0 | BS93: 0 | BT93: 0 | BU93: 13453.67913 | BV93: 0 | BW93: 13453.67913 | BX93: 273188.0783 | BY93: 0 | BZ93: 20000 | CA93: 0 | CB93: 293188.0783 | CC93: 0 | CD93: 0 | CE93: 0 | CF93: 1609869.383 | CG93: 11919641.89 | CI93: 7612725.732 | CJ93: 2697046.774 | CK93: 1609869.383 | CL93: 0
A94: 592 | B94: Kiryandongo District | C94: 0 | D94: 0 | E94: 26112.516 | F94: 193969.377 | G94: 525532.8461 | H94: 397900.5185 | I94: 361196.388 | J94: 711227.088 | K94: 0 | L94: 0 | M94: 174368.664 | N94: 4700459.172 | O94: 543441.456 | P94: 1625146.26 | Q94: 184446.384 | R94: 24336 | S94: 486691.4724 | T94: 161163.4069 | U94: 140698.3111 | V94: 32051.765 | W94: 573660 | X94: 16780.93518 | Y94: 28121.06798 | Z94: 0 | AA94: 28121.06798 | AB94: 0 | AC94: 27331.73922 | AD94: 8244.042278 | AE94: 25757.68391 | AF94: 61333.46541 | AG94: 0 | AH94: 0 | AI94: 4250.92879 | AJ94: 0 | AK94: 5625.008228 | AL94: 23608.25234 | AM94: 29233.26057 | AN94: 15306.84855 | AO94: 23754.9768 | AP94: 108700.8 | AQ94: 68110.02061 | AR94: 31957.38535 | AS94: 14900.01842 | AT94: 16894.66789 | AU94: 31794.68631 | AV94: 82258.66603 | AW94: 0 | AX94: 0 | AY94: 118041.2617 | AZ94: 200299.9277 | BA94: 23000 | BB94: 0 | BC94: 0 | BD94: 0 | BE94: 134200 | BF94: 0 | BG94: 11639245.93 | BH94: 684692.0021 | BI94: 168353.6975 | BJ94: 853045.6996 | BK94: 495528.9306 | BL94: 132868.0311 | BM94: 628396.9617 | BN94: 0 | BP94: 0 | BQ94: 0 | BR94: 0 | BS94: 0 | BT94: 0 | BU94: 10554.34478 | BV94: 231798.5345 | BW94: 242352.8793 | BX94: 169819.6163 | BY94: 0 | BZ94: 0 | CA94: 268569.0525 | CB94: 438388.6688 | CC94: 0 | CD94: 318887.6815 | CE94: 318887.6815 | CF94: 2481071.891 | CG94: 14120317.82 | CI94: 8433322.212 | CJ94: 3205923.716 | CK94: 2481071.891 | CL94: 0
A95: 593 | B95: Luuka District | C95: 0 | D95: 0 | E95: 57896.424 | F95: 530917.735 | G95: 419409.8508 | H95: 62114.93394 | I95: 61979.412 | J95: 714149.736 | K95: 0 | L95: 0 | M95: 0 | N95: 7201660.752 | O95: 763305.432 | P95: 1251043.176 | Q95: 126242.892 | R95: 24336 | S95: 571016.1464 | T95: 147363.1283 | U95: 0 | V95: 53459.98886 | W95: 1418184 | X95: 9240.395302 | Y95: 28120.48592 | Z95: 0 | AA95: 28120.48592 | AB95: 0 | AC95: 24176.86849 | AD95: 8732.980535 | AE95: 0 | AF95: 32909.84902 | AG95: 0 | AH95: 0 | AI95: 2340.767186 | AJ95: 0 | AK95: 4838.286385 | AL95: 0 | AM95: 4838.286385 | AN95: 8428.691844 | AO95: 29530.63325 | AP95: 137904 | AQ95: 67746.44399 | AR95: 17597.28348 | AS95: 19798.57782 | AT95: 22968.24334 | AU95: 42766.82116 | AV95: 60776.36943 | AW95: 0 | AX95: 0 | AY95: 0 | AZ95: 60776.36943 | BA95: 23000 | BB95: 0 | BC95: 0 | BD95: 0 | BE95: 0 | BF95: 0 | BG95: 13868279.63 | BH95: 460707.0014 | BI95: 0 | BJ95: 460707.0014 | BK95: 475207.877 | BL95: 0 | BM95: 475207.877 | BN95: 0 | BP95: 0 | BQ95: 0 | BR95: 0 | BS95: 0 | BT95: 0 | BU95: 40790.32867 | BV95: 0 | BW95: 40790.32867 | BX95: 339639.2325 | BY95: 0 | BZ95: 0 | CA95: 0 | CB95: 339639.2325 | CC95: 0 | CD95: 0 | CE95: 0 | CF95: 1316344.44 | CG95: 15184624.07 | CI95: 10280621.4 | CJ95: 3587658.234 | CK95: 1316344.44 | CL95: 0
A96: 594 | B96: Namayingo District | C96: 0 | D96: 0 | E96: 36173.112 | F96: 102951.9006 | G96: 480107.4608 | H96: 74259.87928 | I96: 141900.831 | J96: 956044.182 | K96: 0 | L96: 77531.81964 | M96: 0 | N96: 5502788.755 | O96: 526410.816 | P96: 1213637.507 | Q96: 128717.928 | R96: 24336 | S96: 464346.7516 | T96: 134847.9147 | U96: 0 | V96: 25033.4668 | W96: 489936 | X96: 10097.82772 | Y96: 28120.48592 | Z96: 0 | AA96: 28120.48592 | AB96: 0 | AC96: 28992.33523 | AD96: 6043.820121 | AE96: 0 | AF96: 35036.15535 | AG96: 0 | AH96: 0 | AI96: 2557.971061 | AJ96: 0 | AK96: 5207.133311 | AL96: 0 | AM96: 5207.133311 | AN96: 9210.804879 | AO96: 19108.18255 | AP96: 126547.2 | AQ96: 73563.66995 | AR96: 19230.16615 | AS96: 13392.76937 | AT96: 15025.87544 | AU96: 28418.64481 | AV96: 99773.85285 | AW96: 0 | AX96: 0 | AY96: 0 | AZ96: 99773.85285 | BA96: 23000 | BB96: 1143940.442 | BC96: 0 | BD96: 0 | BE96: 0 | BF96: 0 | BG96: 12002836.86 | BH96: 573341.0018 | BI96: 0 | BJ96: 573341.0018 | BK96: 502319.9073 | BL96: 0 | BM96: 502319.9073 | BN96: 304684.2 | BP96: 0 | BQ96: 0 | BR96: 0 | BS96: 0 | BT96: 0 | BU96: 13246.69945 | BV96: 0 | BW96: 13246.69945 | BX96: 339639.2325 | BY96: 0 | BZ96: 0 | CA96: 0 | CB96: 339639.2325 | CC96: 0 | CD96: 0 | CE96: 0 | CF96: 1733231.041 | CG96: 13736067.9 | CI96: 8620383.219 | CJ96: 3382453.642 | CK96: 1733231.041 | CL96: 0
A97: 595 | B97: Ntoroko District | C97: 0 | D97: 0 | E97: 0 | F97: 149443.799 | G97: 300205.2504 | H97: 161705.8022 | I97: 254208.624 | J97: 943996.392 | K97: 14597.79532 | L97: 0 | M97: 0 | N97: 1951282.788 | O97: 167964.828 | P97: 574550.856 | Q97: 107107.584 | R97: 24336 | S97: 121158.9892 | T97: 65193.16662 | U97: 0 | V97: 9903.427328 | W97: 153738 | X97: 6193.598314 | Y97: 28120.48592 | Z97: 0 | AA97: 28120.48592 | AB97: 0 | AC97: 14414.87259 | AD97: 2886.093878 | AE97: 0 | AF97: 17300.96647 | AG97: 0 | AH97: 0 | AI97: 1568.955788 | AJ97: 0 | AK97: 4435.060465 | AL97: 0 | AM97: 4435.060465 | AN97: 5649.534451 | AO97: 12647.49221 | AP97: 121680 | AQ97: 64474.25439 | AR97: 11795.00462 | AS97: 8042.035258 | AT97: 8391.662252 | AU97: 16433.69751 | AV97: 24929.80947 | AW97: 0 | AX97: 0 | AY97: 0 | AZ97: 24929.80947 | BA97: 23000 | BB97: 729655.5194 | BC97: 0 | BD97: 0 | BE97: 0 | BF97: 0 | BG97: 6067277.681 | BH97: 250108.0008 | BI97: 0 | BJ97: 250108.0008 | BK97: 328999.546 | BL97: 0 | BM97: 328999.546 | BN97: 0 | BO97: 225892.932 | BP97: 0 | BQ97: 0 | BR97: 0 | BS97: 0 | BT97: 0 | BU97: 24977.84797 | BV97: 0 | BW97: 24977.84797 | BX97: 206736.9241 | BY97: 272000 | BZ97: 0 | CA97: 0 | CB97: 478736.9241 | CC97: 0 | CD97: 0 | CE97: 0 | CF97: 1308715.251 | CG97: 7375992.932 | CI97: 4145127.072 | CJ97: 1922150.609 | CK97: 1308715.251 | CL97: 0
A98: 596 | B98: Serere District | C98: 0 | D98: 0 | E98: 115675.404 | F98: 394498.7187 | G98: 466857.542 | H98: 77438.42502 | I98: 245529.324 | J98: 807298.656 | K98: 62092.62009 | L98: 98928.7973 | M98: 39435.924 | N98: 5956000.44 | O98: 1205394.372 | P98: 1461302.208 | Q98: 129572.688 | R98: 24336 | S98: 711402.3056 | T98: 164693.0021 | U98: 0 | V98: 35363.79839 | W98: 1001970 | X98: 4306.339523 | Y98: 28121.06798 | Z98: 61381.45608 | AA98: 89502.52406 | AB98: 18000 | AC98: 34697.02812 | AD98: 9588.622484 | AE98: 20300.73486 | AF98: 64586.38547 | AG98: 0 | AH98: 0 | AI98: 1090.877383 | AJ98: 0 | AK98: 5254.046302 | AL98: 56516.58222 | AM98: 61770.62852 | AN98: 3928.058013 | AO98: 27379.48677 | AP98: 129792 | AQ98: 76714.66734 | AR98: 8200.934579 | AS98: 19497.12801 | AT98: 22594.48486 | AU98: 42091.61286 | AV98: 91505.2065 | AW98: 0 | AX98: 0 | AY98: 27542.96106 | AZ98: 119048.1676 | BA98: 0 | BB98: 0 | BC98: 140375 | BD98: 0 | BE98: 0 | BF98: 0 | BG98: 13784576.91 | BH98: 345691.0011 | BI98: 357281.717 | BJ98: 702972.7181 | BK98: 644723.759 | BL98: 34502.67385 | BM98: 679226.4329 | BN98: 0 | BP98: 0 | BQ98: 0 | BR98: 0 | BS98: 238782.6265 | BT98: 0 | BU98: 20862.32693 | BV98: 175363.6723 | BW98: 196225.9992 | BX98: 140285.77 | BY98: 0 | BZ98: 0 | CA98: 141696.7305 | CB98: 281982.5005 | CC98: 403776.7985 | CD98: 140450.2148 | CE98: 544227.0133 | CF98: 2643417.29 | CG98: 16427994.2 | CI98: 9998661.612 | CJ98: 3785915.295 | CK98: 2404634.664 | CL98: 238782.6265
A99: 597 | B99: Kyankwanzi District | C99: 0 | D99: 0 | E99: 24545.112 | F99: 478193.7121 | G99: 450110.104 | H99: 105013.2174 | I99: 245116.731 | J99: 593394.06 | K99: 0 | L99: 0 | M99: 0 | N99: 5958914.856 | O99: 879766.812 | P99: 1248386.88 | Q99: 145598.148 | R99: 24336 | S99: 366185.3375 | T99: 129420.1362 | U99: 0 | V99: 43822.46532 | W99: 388665 | X99: 8731.495078 | Y99: 28120.48592 | Z99: 0 | AA99: 28120.48592 | AB99: 0 | AC99: 24418.97879 | AD99: 7069.232299 | AE99: 0 | AF99: 31488.21109 | AG99: 0 | AH99: 0 | AI99: 2211.853118 | AJ99: 0 | AK99: 5620.548228 | AL99: 0 | AM99: 5620.548228 | AN99: 7964.49491 | AO99: 23685.57127 | AP99: 165484.8 | AQ99: 102165.0309 | AR99: 16628.1408 | AS99: 17914.51651 | AT99: 20632.25279 | AU99: 38546.76929 | AV99: 68280.90704 | AW99: 0 | AX99: 0 | AY99: 0 | AZ99: 68280.90704 | BA99: 23000 | BB99: 0 | BC99: 0 | BD99: 0 | BE99: 0 | BF99: 0 | BG99: 11603396.88 | BH99: 339465.0011 | BI99: 0 | BJ99: 339465.0011 | BK99: 502319.9073 | BL99: 0 | BM99: 502319.9073 | BN99: 0 | BO99: 318616.996 | BP99: 0 | BQ99: 0 | BR99: 0 | BS99: 0 | BT99: 0 | BU99: 12418.78074 | BV99: 0 | BW99: 12418.78074 | BX99: 206736.9241 | BY99: 272000 | BZ99: 0 | CA99: 0 | CB99: 478736.9241 | CC99: 0 | CD99: 0 | CE99: 0 | CF99: 1651557.609 | CG99: 13254954.49 | CI99: 9260998.287 | CJ99: 2342398.592 | CK99: 1651557.609 | CL99: 0
A100: 598 | B100: Kalungu District | C100: 0 | D100: 0 | E100: 92748.924 | F100: 344030.205 | G100: 371524.6384 | H100: 126565.9358 | I100: 166870.176 | J100: 535752.78 | K100: 0 | L100: 0 | M100: 92938.248 | N100: 5455468.896 | O100: 1261404.72 | P100: 1339907.136 | Q100: 146401.584 | R100: 24336 | S100: 501425.4832 | T100: 115910.4529 | U100: 0 | V100: 267123.9905 | W100: 1412112 | X100: 7692.909444 | Y100: 28120.48592 | Z100: 0 | AA100: 28120.48592 | AB100: 0 | AC100: 23605.29148 | AD100: 8739.771344 | AE100: 0 | AF100: 32345.06283 | AG100: 0 | AH100: 0 | AI100: 1948.759702 | AJ100: 0 | AK100: 5012.30135 | AL100: 0 | AM100: 5012.30135 | AN100: 7017.141688 | AO100: 29486.91326 | AP100: 97344 | AQ100: 74829.11858 | AR100: 14650.2724 | AS100: 17160.89199 | AT100: 19697.85656 | AU100: 36858.74855 | AV100: 39763.97113 | AW100: 0 | AX100: 0 | AY100: 0 | AZ100: 39763.97113 | BA100: 23000 | BB100: 0 | BC100: 0 | BD100: 0 | BE100: 0 | BF100: 149479 | BG100: 12802069.85 | BH100: 476208.0015 | BI100: 0 | BJ100: 476208.0015 | BK100: 328999.546 | BL100: 0 | BM100: 328999.546 | BN100: 0 | BP100: 0 | BQ100: 0 | BR100: 0 | BS100: 0 | BT100: 0 | BU100: 9997.118492 | BV100: 0 | BW100: 9997.118492 | BX100: 273188.0783 | BY100: 0 | BZ100: 0 | CA100: 0 | CB100: 273188.0783 | CC100: 0 | CD100: 0 | CE100: 0 | CF100: 1088392.744 | CG100: 13890462.6 | CI100: 9120423.54 | CJ100: 3681646.315 | CK100: 1088392.744 | CL100: 0
A101: 599 | B101: Lwengo District | C101: 0 | D101: 0 | E101: 32658.648 | F101: 52074.516 | G101: 509302.6104 | H101: 469297.6787 | I101: 262945.176 | J101: 739599.828 | K101: 0 | L101: 0 | M101: 40000 | N101: 7080747.912 | O101: 1079867.976 | P101: 1480126.008 | Q101: 120886.152 | R101: 24336 | S101: 616754.7175 | T101: 163802.6041 | U101: 0 | V101: 73553.85487 | W101: 1451136 | X101: 11044.44279 | Y101: 28120.48592 | Z101: 0 | AA101: 28120.48592 | AB101: 16000 | AC101: 26802.21635 | AD101: 10838.13136 | AE101: 0 | AF101: 37640.34772 | AG101: 0 | AH101: 0 | AI101: 2797.766591 | AJ101: 0 | AK101: 4591.433434 | AL101: 0 | AM101: 4591.433434 | AN101: 10074.2665 | AO101: 33275.42227 | AP101: 145080 | AQ101: 139557.2302 | AR101: 21032.88704 | AS101: 18517.41613 | AT101: 21379.76976 | AU101: 39897.18589 | AV101: 66236.27845 | AW101: 8200 | AX101: 0 | AY101: 0 | AZ101: 74436.27845 | BA101: 23000 | BB101: 0 | BC101: 0 | BD101: 0 | BE101: 134200 | BF101: 0 | BG101: 14917837.43 | BH101: 380447.0012 | BI101: 0 | BJ101: 380447.0012 | BK101: 455373.4951 | BL101: 0 | BM101: 455373.4951 | BN101: 0 | BP101: 0 | BQ101: 0 | BR101: 0 | BS101: 0 | BT101: 0 | BU101: 12853.43806 | BV101: 0 | BW101: 12853.43806 | BX101: 273188.0783 | BY101: 0 | BZ101: 0 | CA101: 0 | CB101: 273188.0783 | CC101: 0 | CD101: 0 | CE101: 0 | CF101: 1121862.013 | CG101: 16039699.44 | CI101: 10973589.05 | CJ101: 3944248.376 | CK101: 1121862.013 | CL101: 0
A102: 600 | B102: Bukomansimbi District | C102: 0 | D102: 0 | E102: 34995.348 | F102: 130106.517 | G102: 345167.3067 | H102: 47657.69435 | I102: 10019.112 | J102: 711009.492 | K102: 0 | L102: 0 | M102: 0 | N102: 4269374.952 | O102: 857583.864 | P102: 743411.952 | Q102: 119148.792 | R102: 24336 | S102: 433105.1889 | T102: 97891.17512 | U102: 0 | V102: 48968.23477 | W102: 835515 | X102: 6134.622972 | Y102: 28121.06798 | Z102: 0 | AA102: 28121.06798 | AB102: 0 | AC102: 16893.68464 | AD102: 6274.707631 | AE102: 0 | AF102: 23168.39227 | AG102: 0 | AH102: 0 | AI102: 1554.016217 | AJ102: 0 | AK102: 4426.211467 | AL102: 0 | AM102: 4426.211467 | AN102: 5595.739675 | AO102: 21420.70434 | AP102: 107078.4 | AQ102: 68837.17386 | AR102: 11682.69278 | AS102: 12337.69504 | AT102: 13717.72073 | AU102: 26055.41577 | AV102: 32992.4014 | AW102: 0 | AX102: 0 | AY102: 0 | AZ102: 32992.4014 | BA102: 23000 | BB102: 0 | BC102: 0 | BD102: 0 | BE102: 0 | BF102: 0 | BG102: 9068357.468 | BH102: 192165.0006 | BI102: 0 | BJ102: 192165.0006 | BK102: 329000.4494 | BL102: 0 | BM102: 329000.4494 | BN102: 0 | BP102: 0 | BQ102: 0 | BR102: 0 | BS102: 0 | BT102: 0 | BU102: 8568.958707 | BV102: 0 | BW102: 8568.958707 | BX102: 273188.0783 | BY102: 0 | BZ102: 0 | CA102: 0 | CB102: 273188.0783 | CC102: 0 | CD102: 0 | CE102: 0 | CF102: 802922.4871 | CG102: 9871279.955 | CI102: 6841962.564 | CJ102: 2226394.904 | CK102: 802922.4871 | CL102: 0
A103: 601 | B103: Mitooma District | C103: 0 | D103: 0 | E103: 100955.112 | F103: 240375.2106 | G103: 513920.7508 | H103: 81415.3026 | I103: 0 | J103: 1278056.964 | K103: 0 | L103: 0 | M103: 166555.668 | N103: 6281280.459 | O103: 1580980.8 | P103: 1151035.834 | Q103: 93000 | R103: 24336 | S103: 461067.2836 | T103: 116494.2525 | U103: 0 | V103: 18164.96364 | W103: 1264107 | X103: 11351.23746 | Y103: 28120.48592 | Z103: 0 | AA103: 28120.48592 | AB103: 0 | AC103: 23325.22552 | AD103: 10138.67802 | AE103: 0 | AF103: 33463.90354 | AG103: 0 | AH103: 0 | AI103: 16708.33652 | AJ103: 0 | AK103: 6578.339037 | AL103: 0 | AM103: 6578.339037 | AN103: 10354.11143 | AO103: 30177.41379 | AP103: 120057.6 | AQ103: 127978.9711 | AR103: 21617.14265 | AS103: 19873.94027 | AT103: 23061.68297 | AU103: 42935.62324 | AV103: 39914.81223 | AW103: 0 | AX103: 0 | AY103: 0 | AZ103: 39914.81223 | BA103: 23000 | BB103: 0 | BC103: 0 | BD103: 0 | BE103: 134200 | BF103: 0 | BG103: 14018203.58 | BH103: 275471.0009 | BI103: 0 | BJ103: 275471.0009 | BK103: 371636.9802 | BL103: 0 | BM103: 371636.9802 | BN103: 0 | BP103: 0 | BQ103: 0 | BR103: 0 | BS103: 0 | BT103: 0 | BU103: 15437.33386 | BV103: 0 | BW103: 15437.33386 | BX103: 206736.9241 | BY103: 0 | BZ103: 0 | CA103: 0 | CB103: 206736.9241 | CC103: 0 | CD103: 0 | CE103: 0 | CF103: 869282.239 | CG103: 14887485.82 | CI103: 10695303.33 | CJ103: 3322900.253 | CK103: 869282.239 | CL103: 0
A104: 602 | B104: Rubirizi District | C104: 0 | D104: 0 | E104: 30480.912 | F104: 117187.276 | G104: 333911.615 | H104: 93282.11673 | I104: 47318.328 | J104: 1143344.304 | K104: 0 | L104: 0 | M104: 0 | N104: 2742588.72 | O104: 468778.944 | P104: 736502.268 | Q104: 107610.516 | R104: 24336 | S104: 229106.1563 | T104: 84297.96003 | U104: 0 | V104: 17931.97672 | W104: 499836 | X104: 9169.602342 | Y104: 28120.48592 | Z104: 0 | AA104: 28120.48592 | AB104: 20000 | AC104: 15952.05088 | AD104: 4807.89286 | AE104: 0 | AF104: 20759.94374 | AG104: 0 | AH104: 0 | AI104: 15002.94926 | AJ104: 0 | AK104: 5184.279316 | AL104: 0 | AM104: 5184.279316 | AN104: 8364.117546 | AO104: 15951.27521 | AP104: 120057.6 | AQ104: 95378.2673 | AR104: 17462.46633 | AS104: 11357.98316 | AT104: 12503.00564 | AU104: 23860.9888 | AV104: 35437.92866 | AW104: 0 | AX104: 0 | AY104: 0 | AZ104: 35437.92866 | BA104: 23000 | BB104: 0 | BC104: 0 | BD104: 0 | BE104: 0 | BF104: 0 | BG104: 7114262.997 | BH104: 212089.0007 | BI104: 0 | BJ104: 212089.0007 | BK104: 502319.907 | BL104: 0 | BM104: 502319.907 | BN104: 404700.03 | BP104: 0 | BQ104: 0 | BR104: 0 | BS104: 0 | BT104: 0 | BU104: 15870.29684 | BV104: 0 | BW104: 15870.29684 | BX104: 206736.9241 | BY104: 0 | BZ104: 0 | CA104: 0 | CB104: 206736.9241 | CC104: 0 | CD104: 0 | CE104: 0 | CF104: 1341716.159 | CG104: 8455979.156 | CI104: 5390536.68 | CJ104: 1723726.317 | CK104: 1341716.159 | CL104: 0
A105: 603 | B105: Ngora District | C105: 0 | D105: 0 | E105: 105758.34 | F105: 455124.7368 | G105: 316066.8373 | H105: 58571.28582 | I105: 189096.928 | J105: 539370.744 | K105: 0 | L105: 0 | M105: 342146.28 | N105: 3796004.772 | O105: 1134871.38 | P105: 1180777.314 | Q105: 189849.78 | R105: 24336 | S105: 384602.5159 | T105: 91404.04724 | U105: 0 | V105: 473402.4129 | W105: 647751 | X105: 6981.515422 | Y105: 28120.48592 | Z105: 8008.211936 | AA105: 36128.69786 | AB105: 0 | AC105: 19954.60689 | AD105: 6824.763171 | AE105: 15565.66951 | AF105: 42345.03957 | AG105: 0 | AH105: 0 | AI105: 1768.550119 | AJ105: 0 | AK105: 5529.095247 | AL105: 15253.73725 | AM105: 20782.83249 | AN105: 6368.238606 | AO105: 22222.80193 | AP105: 107078.4 | AQ105: 50173.5739 | AR105: 13295.50328 | AS105: 12789.86975 | AT105: 14278.35846 | AU105: 27068.22822 | AV105: 41893.51792 | AW105: 0 | AX105: 0 | AY105: 38134.34311 | AZ105: 80027.86104 | BA105: 0 | BB105: 0 | BC105: 0 | BD105: 0 | BE105: 0 | BF105: 354893.346 | BG105: 10698268.96 | BH105: 249688.0008 | BI105: 236082.5234 | BJ105: 485770.5242 | BK105: 351026.5263 | BL105: 99149.29288 | BM105: 450175.8192 | BN105: 0 | BP105: 0 | BQ105: 0 | BR105: 0 | BS105: 84382.12268 | BT105: 0 | BU105: 14755.02374 | BV105: 152537.374 | BW105: 167292.3978 | BX105: 169819.6163 | BY105: 0 | BZ105: 0 | CA105: 99149.29288 | CB105: 268968.9091 | CC105: 403776.7985 | CD105: 114403.0309 | CE105: 518179.8294 | CF105: 1974769.602 | CG105: 12673038.56 | CI105: 7503531.598 | CJ105: 3194737.364 | CK105: 1890387.48 | CL105: 84382.12268
A106: 604 | B106: Napak District | C106: 0 | D106: 0 | E106: 2000.64 | F106: 0 | G106: 455411.3078 | H106: 38763.64238 | I106: 22288.86 | J106: 1124983.728 | K106: 13088.60426 | L106: 53331.32232 | M106: 76995.852 | N106: 1736453.532 | O106: 230445.6 | P106: 1300786.74 | Q106: 93000 | R106: 24336 | S106: 136725.4881 | T106: 116927.2708 | U106: 0 | V106: 606819.9247 | W106: 156228 | X106: 10256.23949 | Y106: 28121.06798 | Z106: 55085.92212 | AA106: 83206.9901 | AB106: 0 | AC106: 24462.43195 | AD106: 3178.09867 | AE106: 30519.67717 | AF106: 58160.20779 | AG106: 0 | AH106: 0 | AI106: 2598.099762 | AJ106: 0 | AK106: 5541.732244 | AL106: 62955.33957 | AM106: 68497.07182 | AN106: 9355.301291 | AO106: 12510.29078 | AP106: 116812.8 | AQ106: 56839.14532 | AR106: 19531.84337 | AS106: 8192.760163 | AT106: 8578.541497 | AU106: 16771.30166 | AV106: 96726.04194 | AW106: 0 | AX106: 0 | AY106: 76333.34923 | AZ106: 173059.3912 | BA106: 23000 | BB106: 447669.0487 | BC106: 0 | BD106: 0 | BE106: 0 | BF106: 0 | BG106: 7286854.244 | BH106: 363705.0011 | BI106: 157388.3489 | BJ106: 521093.3501 | BK106: 359347.341 | BL106: 254497.7472 | BM106: 613845.0881 | BN106: 0 | BP106: 0 | BQ106: 0 | BR106: 0 | BS106: 0 | BT106: 0 | BU106: 15797.32273 | BV106: 589888.384 | BW106: 605685.7067 | BX106: 140285.77 | BY106: 0 | BZ106: 0 | CA106: 175922.4009 | CB106: 316208.1709 | CC106: 0 | CD106: 123392.6891 | CE106: 123392.6891 | CF106: 2180225.005 | CG106: 9467079.248 | CI106: 4726103.112 | CJ106: 2560751.132 | CK106: 2180225.005 | CL106: 0
A107: 605 | B107: Kibuku District | C107: 0 | D107: 0 | E107: 47428.32 | F107: 862312.775 | G107: 370728.9368 | H107: 45226.16879 | I107: 139912.248 | J107: 867843 | K107: 0 | L107: 0 | M107: 0 | N107: 5461866.144 | O107: 684073.824 | P107: 1145269.848 | Q107: 122032.164 | R107: 24336 | S107: 408626.7863 | T107: 122970.5399 | U107: 0 | V107: 28720.3712 | W107: 1001985 | X107: 9949.359338 | Y107: 28120.48592 | Z107: 0 | AA107: 28120.48592 | AB107: 0 | AC107: 18323.63084 | AD107: 5649.953192 | AE107: 16323.1573 | AF107: 40296.74133 | AG107: 0 | AH107: 0 | AI107: 14047.73873 | AJ107: 0 | AK107: 5442.774264 | AL107: 62955.33957 | AM107: 68398.11384 | AN107: 9075.378397 | AO107: 21874.98499 | AP107: 155750.4 | AQ107: 62171.60245 | AR107: 18947.42498 | AS107: 13242.04447 | AT107: 14838.9962 | AU107: 28081.04066 | AV107: 57869.66502 | AW107: 0 | AX107: 0 | AY107: 15738.83489 | AZ107: 73608.49991 | BA107: 0 | BB107: 0 | BC107: 0 | BD107: 0 | BE107: 0 | BF107: 0 | BG107: 11863653.9 | BH107: 298210.0009 | BI107: 188551.2428 | BJ107: 486761.2437 | BK107: 495528.9306 | BL107: 78694.17446 | BM107: 574223.105 | BN107: 0 | BP107: 0 | BQ107: 0 | BR107: 0 | BS107: 103211.4524 | BT107: 0 | BU107: 15763.18764 | BV107: 55085.92212 | BW107: 70849.10976 | BX107: 206736.9241 | BY107: 0 | BZ107: 0 | CA107: 383070.3591 | CB107: 589807.2832 | CC107: 0 | CD107: 15738.83489 | CE107: 15738.83489 | CF107: 1840591.029 | CG107: 13704244.93 | CI107: 8601083.628 | CJ107: 3262570.269 | CK107: 1737379.577 | CL107: 103211.4524
A108: 606 | B108: Nwoya District | C108: 0 | D108: 0 | E108: 15567.288 | F108: 172529.599 | G108: 310592.4913 | H108: 55346.08124 | I108: 69562.79 | J108: 703744.452 | K108: 17893.55492 | L108: 14662.08559 | M108: 0 | N108: 2650882.2 | O108: 639432.852 | P108: 1132435.974 | Q108: 107610.516 | R108: 24336 | S108: 263635.557 | T108: 79610.93413 | U108: 131170.9935 | V108: 24150.62769 | W108: 210558 | X108: 5449.498731 | Y108: 28120.48592 | Z108: 7919.05301 | AA108: 36039.53893 | AB108: 0 | AC108: 23059.62805 | AD108: 4291.791367 | AE108: 27225.98534 | AF108: 54577.40476 | AG108: 0 | AH108: 0 | AI108: 1380.461267 | AJ108: 0 | AK108: 5807.797191 | AL108: 11017.18442 | AM108: 16824.98162 | AN108: 4970.798759 | AO108: 15803.79816 | AP108: 82742.4 | AQ108: 42174.88821 | AR108: 10377.95147 | AS108: 10227.54637 | AT108: 11101.4113 | AU108: 21328.95768 | AV108: 80023.05918 | AW108: 0 | AX108: 7200 | AY108: 55872.86387 | AZ108: 143095.9231 | BA108: 23000 | BB108: 551872.4981 | BC108: 0 | BD108: 0 | BE108: 0 | BF108: 0 | BG108: 7633361.097 | BH108: 217502.0007 | BI108: 81841.94144 | BJ108: 299343.9421 | BK108: 248001.1003 | BL108: 64686.61141 | BM108: 312687.7117 | BN108: 45879 | BP108: 0 | BQ108: 0 | BR108: 0 | BS108: 0 | BT108: 0 | BU108: 15094.98861 | BV108: 236082.5234 | BW108: 251177.512 | BX108: 140285.77 | BY108: 0 | BZ108: 0 | CA108: 481608.3477 | CB108: 621894.1177 | CC108: 403776.7985 | CD108: 395044.7558 | CE108: 798821.5543 | CF108: 2329803.838 | CG108: 9963164.935 | CI108: 5410747.184 | CJ108: 2222613.913 | CK108: 2329803.838 | CL108: 0
A109: 607 | B109: Kole District | C109: 0 | D109: 0 | E109: 111230.052 | F109: 0 | G109: 459160.3179 | H109: 45943.10531 | I109: 121218.828 | J109: 865039.26 | K109: 15168.93548 | L109: 72311.47269 | M109: 302917.824 | N109: 6795134.316 | O109: 1256909.184 | P109: 1185866.604 | Q109: 143436.084 | R109: 24336 | S109: 542734.3059 | T109: 146849.3054 | U109: 0 | V109: 9924.426149 | W109: 549255 | X109: 9064.822439 | Y109: 28120.48592 | Z109: 38481.45131 | AA109: 66601.93724 | AB109: 0 | AC109: 22019.55233 | AD109: 9615.785721 | AE109: 22283.0537 | AF109: 53918.39176 | AG109: 0 | AH109: 0 | AI109: 2296.291254 | AJ109: 0 | AK109: 9787.645396 | AL109: 19384.02932 | AM109: 29171.67472 | AN109: 8268.541817 | AO109: 25873.81418 | AP109: 107078.4 | AQ109: 100347.1478 | AR109: 17262.9249 | AS109: 12337.69504 | AT109: 13717.72073 | AU109: 26055.41577 | AV109: 76120.6758 | AW109: 0 | AX109: 0 | AY109: 29076.04398 | AZ109: 105196.7198 | BA109: 0 | BB109: 0 | BC109: 0 | BD109: 0 | BE109: 0 | BF109: 0 | BG109: 13198571.1 | BH109: 366107.0011 | BI109: 142685.1978 | BJ109: 508792.199 | BK109: 432830.627 | BL109: 135690.5661 | BM109: 568521.1931 | BN109: 0 | BP109: 0 | BQ109: 0 | BR109: 0 | BS109: 178042.8531 | BT109: 0 | BU109: 10513.09981 | BV109: 210182.0648 | BW109: 220695.1646 | BX109: 169819.6163 | BY109: 0 | BZ109: 0 | CA109: 380679.7119 | CB109: 550499.3281 | CC109: 403776.7985 | CD109: 135690.5661 | CE109: 539467.3645 | CF109: 2566018.103 | CG109: 15764589.2 | CI109: 10801936.5 | CJ109: 2396634.602 | CK109: 2387975.249 | CL109: 178042.8531
A110: 608 | B110: Butambala District | C110: 0 | D110: 0 | E110: 20433.012 | F110: 276956.5228 | G110: 243301.8035 | H110: 58793.43517 | I110: 117516.456 | J110: 644036.904 | K110: 0 | L110: 0 | M110: 210062.304 | N110: 3799464.804 | O110: 2553083.928 | P110: 1462141.411 | Q110: 139568.592 | R110: 24336 | S110: 254737.0265 | T110: 66158.47128 | U110: 131633.602 | V110: 25211.56814 | W110: 1262454 | X110: 5752.923317 | Y110: 28121.06798 | Z110: 0 | AA110: 28121.06798 | AB110: 0 | AC110: 29145.62602 | AD110: 8033.527195 | AE110: 0 | AF110: 37179.15322 | AG110: 0 | AH110: 0 | AI110: 1457.324463 | AJ110: 0 | AK110: 4397.875473 | AL110: 0 | AM110: 4397.875473 | AN110: 5247.569639 | AO110: 26028.71014 | AP110: 111945.6 | AQ110: 43265.61808 | AR110: 10955.78914 | AS110: 13543.49428 | AT110: 15212.75469 | AU110: 28756.24896 | AV110: 21382.22873 | AW110: 0 | AX110: 0 | AY110: 0 | AZ110: 21382.22873 | BA110: 23000 | BB110: 0 | BC110: 0 | BD110: 0 | BE110: 134200 | BF110: 0 | BG110: 11771579.95 | BH110: 149778.0005 | BI110: 0 | BJ110: 149778.0005 | BK110: 328999.546 | BL110: 0 | BM110: 328999.546 | BN110: 0 | BP110: 0 | BQ110: 0 | BR110: 0 | BS110: 0 | BT110: 0 | BU110: 21065.01193 | BV110: 0 | BW110: 21065.01193 | BX110: 206736.9241 | BY110: 0 | BZ110: 0 | CA110: 0 | CB110: 206736.9241 | CC110: 0 | CD110: 0 | CE110: 0 | CF110: 706579.4825 | CG110: 12478159.43 | CI110: 9062155.999 | CJ110: 2709423.951 | CK110: 706579.4825 | CL110: 0
A111: 609 | B111: Sheema District | C111: 0 | D111: 0 | E111: 208888.344 | F111: 1041885.021 | G111: 902503.0288 | H111: 201854.8878 | I111: 339895.992 | J111: 1165466.04 | K111: 0 | L111: 0 | M111: 267255.396 | N111: 7078209.984 | O111: 3396335.868 | P111: 2006782.38 | Q111: 138242.76 | R111: 24336 | S111: 509377.9158 | T111: 132101.7367 | U111: 131633.994 | V111: 17706.98934 | W111: 1470456 | X111: 11571.60442 | Y111: 28120.48592 | Z111: 0 | AA111: 28120.48592 | AB111: 0 | AC111: 30424.87029 | AD111: 13676.68958 | AE111: 0 | AF111: 44101.55987 | AG111: 0 | AH111: 0 | AI111: 15611.42189 | AJ111: 0 | AK111: 5125.729327 | AL111: 0 | AM111: 5125.729327 | AN111: 10555.12071 | AO111: 41016.26672 | AP111: 141148.8 | AQ111: 124827.9737 | AR111: 22036.80651 | AS111: 18592.77858 | AT111: 21473.20939 | AU111: 40065.98797 | AV111: 39241.76946 | AW111: 0 | AX111: 0 | AY111: 0 | AZ111: 39241.76946 | BA111: 0 | BB111: 0 | BC111: 0 | BD111: 0 | BE111: 293240 | BF111: 0 | BG111: 19849595.86 | BH111: 355747.0011 | BI111: 0 | BJ111: 355747.0011 | BK111: 356129.1629 | BL111: 0 | BM111: 356129.1629 | BN111: 0 | BP111: 0 | BQ111: 0 | BR111: 0 | BS111: 96408.5978 | BT111: 700000 | BU111: 65695.39678 | BV111: 0 | BW111: 65695.39678 | BX111: 273188.0783 | BY111: 0 | BZ111: 0 | CA111: 0 | CB111: 273188.0783 | CC111: 0 | CD111: 0 | CE111: 0 | CF111: 1847168.237 | CG111: 21696764.1 | CI111: 14557673.22 | CJ111: 5291922.644 | CK111: 1750759.639 | CL111: 96408.5978
A112: 610 | B112: Buhweju District | C112: 0 | D112: 0 | E112: 56853.228 | F112: 292461.848 | G112: 418576.2946 | H112: 33884.43494 | I112: 0 | J112: 702034.344 | K112: 0 | L112: 0 | M112: 0 | N112: 2506340.724 | O112: 341634.516 | P112: 551298.336 | Q112: 93000 | R112: 24336 | S112: 236516.6895 | T112: 80191.08985 | U112: 0 | V112: 17706.98934 | W112: 215118 | X112: 6937.866213 | Y112: 28120.48592 | Z112: 0 | AA112: 28120.48592 | AB112: 0 | AC112: 13259.09379 | AD112: 3972.623338 | AE112: 0 | AF112: 17231.71713 | AG112: 0 | AH112: 0 | AI112: 10979.39496 | AJ112: 0 | AK112: 5923.822168 | AL112: 0 | AM112: 5923.822168 | AN112: 6328.423671 | AO112: 14360.17553 | AP112: 58406.4 | AQ112: 75017.97644 | AR112: 13212.37832 | AS112: 11357.98316 | AT112: 12503.00564 | AU112: 23860.9888 | AV112: 28008.87298 | AW112: 0 | AX112: 0 | AY112: 0 | AZ112: 28008.87298 | BA112: 23000 | BB112: 0 | BC112: 0 | BD112: 0 | BE112: 0 | BF112: 0 | BG112: 5881340.996 | BH112: 160998.0005 | BI112: 0 | BJ112: 160998.0005 | BK112: 328999.5199 | BL112: 0 | BM112: 328999.5199 | BN112: 0 | BP112: 0 | BQ112: 0 | BR112: 0 | BS112: 0 | BT112: 0 | BU112: 20237.82847 | BV112: 0 | BW112: 20237.82847 | BX112: 206736.9241 | BY112: 0 | BZ112: 375000.1351 | CA112: 0 | CB112: 581737.0593 | CC112: 0 | CD112: 0 | CE112: 0 | CF112: 1091972.408 | CG112: 6973313.404 | CI112: 4277050.32 | CJ112: 1604290.676 | CK112: 1091972.408 | CL112: 0
A113: 611 | B113: Agago District | C113: 0 | D113: 0 | E113: 32956.26 | F113: 0 | G113: 422276.9056 | H113: 161687.7553 | I113: 411505.008 | J113: 973817.292 | K113: 47068.07891 | L113: 93644.00161 | M113: 109367.676 | N113: 5905483.776 | O113: 805359.684 | P113: 1478989.272 | Q113: 93000 | R113: 24336 | S113: 716112.5946 | T113: 143642.7116 | U113: 0 | V113: 550849.0661 | W113: 389100 | X113: 17683.90261 | Y113: 28120.48592 | Z113: 14164.9514 | AA113: 42285.43733 | AB113: 0 | AC113: 32906.56701 | AD113: 9045.357754 | AE113: 35524.6167 | AF113: 77476.54147 | AG113: 0 | AH113: 0 | AI113: 4479.667546 | AJ113: 0 | AK113: 6419.518069 | AL113: 6295.533957 | AM113: 12715.05203 | AN113: 16130.49667 | AO113: 25335.38597 | AP113: 175974.1308 | AQ113: 184696.9242 | AR113: 33676.98428 | AS113: 15653.64294 | AT113: 17829.06411 | AU113: 33482.70705 | AV113: 103260.4532 | AW113: 0 | AX113: 0 | AY113: 94433.00936 | AZ113: 197693.4626 | BA113: 23000 | BB113: 1879081.279 | BC113: 0 | BD113: 0 | BE113: 0 | BF113: 0 | BG113: 15082908.05 | BH113: 597987.0019 | BI113: 215389.8902 | BJ113: 813376.8921 | BK113: 495529.0256 | BL113: 102302.4268 | BM113: 597831.4524 | BN113: 0 | BP113: 0 | BQ113: 0 | BR113: 0 | BS113: 0 | BT113: 0 | BU113: 16803.01274 | BV113: 535120.3864 | BW113: 551923.3991 | BX113: 140285.77 | BY113: 0 | BZ113: 0 | CA113: 647088.0317 | CB113: 787373.8016 | CC113: 403776.7985 | CD113: 125911.9886 | CE113: 529688.7871 | CF113: 3280194.332 | CG113: 18363102.39 | CI113: 9977832.839 | CJ113: 5105075.215 | CK113: 3280194.332 | CL113: 0
A114: 612 | B114: Kween District | C114: 0 | D114: 0 | E114: 9690.156 | F114: 247698.605 | G114: 267730.7802 | H114: 35326.38614 | I114: 170534.496 | J114: 824422.044 | K114: 0 | L114: 0 | M114: 0 | N114: 2453432.436 | O114: 502989.024 | P114: 1505435.316 | Q114: 93000 | R114: 24336 | S114: 232017.093 | T114: 67072.41048 | U114: 0 | V114: 14362.17708 | W114: 659625 | X114: 7917.657391 | Y114: 28121.06798 | Z114: 0 | AA114: 28121.06798 | AB114: 0 | AC114: 24935.74606 | AD114: 4400.444313 | AE114: 13846.44825 | AF114: 43182.63862 | AG114: 0 | AH114: 0 | AI114: 2005.692614 | AJ114: 0 | AK114: 5280.294296 | AL114: 32126.13575 | AM114: 37406.43005 | AN114: 7222.147115 | AO114: 15158.95599 | AP114: 131414.4 | AQ114: 147490.9165 | AR114: 15078.27935 | AS114: 9624.646756 | AT114: 10353.89432 | AU114: 19978.54108 | AV114: 37388.98178 | AW114: 8200 | AX114: 0 | AY114: 7869.417446 | AZ114: 53458.39923 | BA114: 23000 | BB114: 0 | BC114: 0 | BD114: 0 | BE114: 0 | BF114: 0 | BG114: 7639107.05 | BH114: 171573.0005 | BI114: 94433.00936 | BJ114: 266006.0099 | BK114: 449193.2525 | BL114: 102302.4268 | BM114: 551495.6793 | BN114: 0 | BP114: 0 | BQ114: 0 | BR114: 0 | BS114: 0 | BT114: 0 | BU114: 18974.90771 | BV114: 141649.514 | BW114: 160624.4217 | BX114: 140285.77 | BY114: 0 | BZ114: 0 | CA114: 103360.0246 | CB114: 243645.7945 | CC114: 0 | CD114: 196735.4362 | CE114: 196735.4362 | CF114: 1418507.342 | CG114: 9057614.392 | CI114: 5705563.716 | CJ114: 1933543.334 | CK114: 1418507.342 | CL114: 0
A115: 751 | B115: Arua Municipal Council | C115: 0 | D115: 0 | E115: 3524.028 | F115: 0 | G115: 0 | H115: 276007.697 | I115: 538292.64 | J115: 0 | K115: 0 | L115: 0 | M115: 109967.052 | N115: 2067284.016 | O115: 1199408.628 | P115: 451880.608 | Q115: 35575.2 | R115: 0 | S115: 155139.544 | T115: 50001.51572 | U115: 0 | V115: 0 | W115: 485865 | X115: 2599.946976 | Y115: 5212.432197 | Z115: 11568.04365 | AA115: 16780.47584 | AB115: 0 | AC115: 9775.71473 | AD115: 4291.791367 | AE115: 5896.417856 | AF115: 19963.92395 | AG115: 9195.8333 | AH115: 0 | AI115: 658.6158241 | AJ115: 0 | AK115: 0 | AL115: 5458.227941 | AM115: 5458.227941 | AN115: 2371.559999 | AO115: 0 | AP115: 0 | AQ115: 55263.64662 | AR115: 4951.303758 | AS115: 8494.209972 | AT115: 8952.299987 | AU115: 17446.50996 | AV115: 0 | AW115: 0 | AX115: 0 | AY115: 0 | AZ115: 0 | BA115: 0 | BB115: 0 | BC115: 0 | BD115: 0 | BE115: 0 | BF115: 0 | BG115: 5507635.973 | BH115: 240132.0007 | BI115: 92528.99751 | BJ115: 332660.9983 | BK115: 0 | BL115: 0 | BM115: 0 | BN115: 0 | BP115: 554375.7588 | BQ115: 3782186.96 | BR115: 4336562.719 | BS115: 0 | BT115: 0 | BU115: 20589.44938 | BV115: 41341.19761 | BW115: 61930.64699 | BX115: 206736.9241 | BY115: 0 | BZ115: 0 | CA115: 43791.73421 | CB115: 250528.6584 | CC115: 0 | CD115: 94236.27392 | CE115: 94236.27392 | CF115: 5075919.296 | CG115: 10583555.27 | CI115: 4402408.144 | CJ115: 1105227.829 | CK115: 739356.5775 | CL115: 4336562.719
A116: 752 | B116: Entebbe Municipal Council | C116: 0 | D116: 0 | E116: 15202.332 | F116: 98291.28 | G116: 0 | H116: 328723.2134 | I116: 706843.44 | J116: 0 | K116: 0 | L116: 0 | M116: 7185.864 | N116: 1446201.432 | O116: 1253024.292 | P116: 1077023.7 | Q116: 15000 | R116: 0 | S116: 87726.10079 | T116: 56442.88742 | U116: 0 | V116: 0 | W116: 332220 | X116: 3157.307042 | Y116: 5212.432197 | Z116: 0 | AA116: 5212.432197 | AB116: 0 | AC116: 10694.67717 | AD116: 4217.092467 | AE116: 0 | AF116: 14911.76964 | AG116: 9195.8333 | AH116: 0 | AI116: 799.8056879 | AJ116: 0 | AK116: 0 | AL116: 0 | AM116: 0 | AN116: 2879.95992 | AO116: 0 | AP116: 34070.4 | AQ116: 72472.94008 | AR116: 6012.732708 | AS116: 8494.209972 | AT116: 8952.299987 | AU116: 17446.50996 | AV116: 0 | AW116: 0 | AX116: 0 | AY116: 0 | AZ116: 0 | BA116: 0 | BB116: 0 | BC116: 96000 | BD116: 0 | BE116: 0 | BF116: 0 | BG116: 5686044.232 | BH116: 243226.0008 | BI116: 0 | BJ116: 243226.0008 | BK116: 0 | BL116: 0 | BM116: 0 | BN116: 0 | BP116: 554375.7588 | BQ116: 3924791.029 | BR116: 4479166.788 | BS116: 0 | BT116: 0 | BU116: 14488.57752 | BV116: 0 | BW116: 14488.57752 | BX116: 206736.9241 | BY116: 0 | BZ116: 0 | CA116: 0 | CB116: 206736.9241 | CC116: 0 | CD116: 0 | CE116: 0 | CF116: 4943618.29 | CG116: 10629662.52 | CI116: 4539349.128 | CJ116: 1146695.104 | CK116: 464451.5024 | CL116: 4479166.788
A117: 753 | B117: Fort-Portal Municipal Council | C117: 0 | D117: 0 | E117: 33424.704 | F117: 91848.564 | G117: 0 | H117: 268648.6727 | I117: 682607.904 | J117: 0 | K117: 0 | L117: 0 | M117: 23206.032 | N117: 1728384.744 | O117: 1472474.304 | P117: 523608.467 | Q117: 29112.336 | R117: 0 | S117: 99824.44728 | T117: 45202.5182 | U117: 0 | V117: 0 | W117: 689016 | X117: 2742.118002 | Y117: 5212.432197 | Z117: 0 | AA117: 5212.432197 | AB117: 0 | AC117: 10782.9309 | AD117: 4183.138421 | AE117: 0 | AF117: 14966.06932 | AG117: 19015.62513 | AH117: 0 | AI117: 694.6304383 | AJ117: 0 | AK117: 0 | AL117: 0 | AM117: 0 | AN117: 2501.242304 | AO117: 0 | AP117: 34070.4 | AQ117: 75866.32189 | AR117: 5222.052331 | AS117: 7891.310353 | AT117: 8204.783007 | AU117: 16096.09336 | AV117: 0 | AW117: 0 | AX117: 0 | AY117: 0 | AZ117: 0 | BA117: 0 | BB117: 0 | BC117: 55800 | BD117: 0 | BE117: 0 | BF117: 0 | BG117: 5919545.678 | BH117: 147332.0005 | BI117: 0 | BJ117: 147332.0005 | BK117: 0 | BL117: 0 | BM117: 0 | BN117: 0 | BP117: 554375.7588 | BQ117: 2446564.176 | BR117: 3000939.935 | BS117: 0 | BT117: 0 | BU117: 14699.14642 | BV117: 0 | BW117: 14699.14642 | BX117: 206736.9241 | BY117: 0 | BZ117: 0 | CA117: 0 | CB117: 206736.9241 | CC117: 0 | CD117: 0 | CE117: 0 | CF117: 3369708.006 | CG117: 9289253.684 | CI117: 4493464.187 | CJ117: 1426081.491 | CK117: 368768.071 | CL117: 3000939.935
A118: 754 | B118: Gulu Municipal Council | C118: 0 | D118: 0 | E118: 21897.624 | F118: 0 | G118: 0 | H118: 410462.3937 | I118: 696469.368 | J118: 0 | K118: 0 | L118: 0 | M118: 286984.668 | N118: 4081229.34 | O118: 1642683.516 | P118: 502982.28 | Q118: 15000 | R118: 0 | S118: 260156.8889 | T118: 85935.063 | U118: 0 | V118: 0 | W118: 857772 | X118: 6167.12563 | Y118: 5212.432197 | Z118: 0 | AA118: 5212.432197 | AB118: 0 | AC118: 15361.9439 | AD118: 8318.741178 | AE118: 9038.539605 | AF118: 32719.22468 | AG118: 12000 | AH118: 0 | AI118: 1562.249756 | AJ118: 0 | AK118: 0 | AL118: 39347.08723 | AM118: 39347.08723 | AN118: 5625.387205 | AO118: 0 | AP118: 43617.6 | AQ118: 102407.4153 | AR118: 11744.5904 | AS118: 10001.45902 | AT118: 10821.09243 | AU118: 20822.55145 | AV118: 0 | AW118: 0 | AX118: 0 | AY118: 39347.08723 | AZ118: 39347.08723 | BA118: 0 | BB118: 0 | BC118: 77400 | BD118: 0 | BE118: 0 | BF118: 0 | BG118: 9259545.893 | BH118: 404245.0013 | BI118: 136030.0213 | BJ118: 540275.0225 | BK118: 0 | BL118: 0 | BM118: 0 | BN118: 0 | BP118: 554375.7588 | BQ118: 11569232.74 | BR118: 12123608.5 | BS118: 0 | BT118: 0 | BU118: 12211.15761 | BV118: 92134.22346 | BW118: 104345.3811 | BX118: 140285.77 | BY118: 0 | BZ118: 0 | CA118: 136030.0213 | CB118: 276315.7912 | CC118: 0 | CD118: 0 | CE118: 0 | CF118: 13044544.69 | CG118: 22304090.59 | CI118: 7268966.772 | CJ118: 1990579.121 | CK118: 920936.1948 | CL118: 12123608.5
A119: 755 | B119: Jinja Municipal Council | C119: 30000 | D119: 0 | E119: 46348.992 | F119: 0 | G119: 0 | H119: 686798.4352 | I119: 983093.148 | J119: 0 | K119: 0 | L119: 0 | M119: 451320.084 | N119: 2501072.688 | O119: 1969052.148 | P119: 1082271.516 | Q119: 15000 | R119: 0 | S119: 192280.9332 | T119: 60270.11825 | U119: 0 | V119: 0 | W119: 260028 | X119: 3906.395648 | Y119: 5212.432197 | Z119: 0 | AA119: 5212.432197 | AB119: 0 | AC119: 14513.37963 | AD119: 6193.217922 | AE119: 0 | AF119: 20706.59755 | AG119: 19015.62513 | AH119: 0 | AI119: 989.5640228 | AJ119: 0 | AK119: 0 | AL119: 0 | AM119: 0 | AN119: 3563.246383 | AO119: 0 | AP119: 55161.6 | AQ119: 72351.74787 | AR119: 7439.286888 | AS119: 7815.947901 | AT119: 8111.343385 | AU119: 15927.29129 | AV119: 0 | AW119: 0 | AX119: 0 | AY119: 0 | AZ119: 0 | BA119: 0 | BB119: 0 | BC119: 0 | BD119: 0 | BE119: 0 | BF119: 0 | BG119: 8481809.85 | BH119: 290555.0009 | BI119: 0 | BJ119: 290555.0009 | BK119: 0 | BL119: 0 | BM119: 0 | BN119: 0 | BP119: 554375.7588 | BQ119: 4650445.526 | BR119: 5204821.285 | BS119: 0 | BT119: 0 | BU119: 13246.69945 | BV119: 0 | BW119: 13246.69945 | BX119: 206736.9241 | BY119: 0 | BZ119: 306655.6109 | CA119: 0 | CB119: 513392.535 | CC119: 0 | CD119: 0 | CE119: 0 | CF119: 6022015.521 | CG119: 14503825.37 | CI119: 7056971.184 | CJ119: 1424838.666 | CK119: 817194.2354 | CL119: 5204821.285
A120: 757 | B120: Kabale Municipal Council | C120: 0 | D120: 0 | E120: 5748.672 | F120: 134684.954 | G120: 0 | H120: 219767.0954 | I120: 662314.239 | J120: 0 | K120: 0 | L120: 0 | M120: 412135.044 | N120: 1999893.396 | O120: 2059468.572 | P120: 382730.586 | Q120: 23681.568 | R120: 0 | S120: 104713.383 | T120: 44348.60642 | U120: 0 | V120: 0 | W120: 274938 | X120: 2692.472273 | Y120: 5212.432197 | Z120: 0 | AA120: 5212.432197 | AB120: 0 | AC120: 12066.65257 | AD120: 5914.794748 | AE120: 0 | AF120: 17981.44731 | AG120: 12000 | AH120: 0 | AI120: 682.0542347 | AJ120: 0 | AK120: 0 | AL120: 0 | AM120: 0 | AN120: 2455.957602 | AO120: 0 | AP120: 38937.6 | AQ120: 73442.47774 | AR120: 5127.507679 | AS120: 8946.384686 | AT120: 9512.937721 | AU120: 18459.32241 | AV120: 0 | AW120: 0 | AX120: 0 | AY120: 0 | AZ120: 0 | BA120: 0 | BB120: 0 | BC120: 0 | BD120: 0 | BE120: 134200 | BF120: 0 | BG120: 6635615.387 | BH120: 160063.0005 | BI120: 0 | BJ120: 160063.0005 | BK120: 0 | BL120: 0 | BM120: 0 | BN120: 0 | BP120: 554375.7588 | BQ120: 2270801.283 | BR120: 2825177.041 | BS120: 0 | BT120: 0 | BU120: 12418.78074 | BV120: 0 | BW120: 12418.78074 | BX120: 206736.9241 | BY120: 0 | BZ120: 0 | CA120: 0 | CB120: 206736.9241 | CC120: 0 | CD120: 0 | CE120: 0 | CF120: 3204395.747 | CG120: 9840011.134 | CI120: 5579161.005 | CJ120: 1056454.382 | CK120: 379218.7054 | CL120: 2825177.041
A121: 758 | B121: Lira Municipal Council | C121: 0 | D121: 0 | E121: 1555.44 | F121: 127253.652 | G121: 0 | H121: 393699.0642 | I121: 576381.024 | J121: 0 | K121: 0 | L121: 0 | M121: 125227.56 | N121: 2545813.812 | O121: 1019867.088 | P121: 309840.292 | Q121: 22500.804 | R121: 0 | S121: 171572.0004 | T121: 57426.01214 | U121: 0 | V121: 0 | W121: 743085 | X121: 4915.432368 | Y121: 5212.432197 | Z121: 0 | AA121: 5212.432197 | AB121: 0 | AC121: 11057.29507 | AD121: 5133.851698 | AE121: 9038.539605 | AF121: 25229.68637 | AG121: 12000 | AH121: 0 | AI121: 1245.17214 | AJ121: 0 | AK121: 0 | AL121: 4519.146749 | AM121: 4519.146749 | AN121: 4483.646355 | AO121: 0 | AP121: 43243.2 | AQ121: 155974.371 | AR121: 9360.882733 | AS121: 7740.585449 | AT121: 8017.903763 | AU121: 15758.48921 | AV121: 0 | AW121: 0 | AX121: 0 | AY121: 9038.546893 | AZ121: 9038.546893 | BA121: 0 | BB121: 0 | BC121: 0 | BD121: 0 | BE121: 0 | BF121: 0 | BG121: 6385202.755 | BH121: 328118.001 | BI121: 153655.6458 | BJ121: 481773.6468 | BK121: 0 | BL121: 0 | BM121: 0 | BN121: 0 | BP121: 554375.7588 | BQ121: 7183445.45 | BR121: 7737821.209 | BS121: 0 | BT121: 0 | BU121: 2897.084268 | BV121: 90385.47286 | BW121: 93282.55713 | BX121: 140285.77 | BY121: 0 | BZ121: 0 | CA121: 90385.47286 | CB121: 230671.2428 | CC121: 0 | CD121: 94904.15531 | CE121: 94904.15531 | CF121: 8638452.811 | CG121: 15023655.57 | CI121: 4642873.78 | CJ121: 1742328.975 | CK121: 900631.6021 | CL121: 7737821.209
A122: 759 | B122: Masaka Municipal Council | C122: 0 | D122: 0 | F122: 0 | G122: 0 | H122: 331576.259 | I122: 546460.812 | J122: 0 | K122: 0 | L122: 0 | M122: 334053.298 | N122: 1058557.8 | O122: 1718143.14 | P122: 226864.818 | Q122: 15000 | R122: 0 | S122: 80748.66844 | T122: 62448.51758 | U122: 0 | V122: 0 | W122: 706743 | X122: 3569.091507 | Y122: 5212.432197 | Z122: 0 | AA122: 5212.432197 | AB122: 0 | AC122: 9638.231667 | AD122: 3626.292073 | AE122: 0 | AF122: 13264.52374 | AG122: 12000 | AH122: 0 | AI122: 904.1184939 | AJ122: 0 | AK122: 0 | AL122: 0 | AM122: 0 | AN122: 3255.572028 | AO122: 0 | AP122: 30825.6 | AQ122: 67382.86737 | AR122: 6796.929458 | AS122: 9323.196947 | AT122: 9980.135833 | AU122: 19303.33278 | AV122: 0 | AW122: 0 | AX122: 0 | AY122: 0 | AZ122: 0 | BA122: 0 | BB122: 0 | BC122: 0 | BD122: 0 | BE122: 0 | BF122: 0 | BG122: 5243110.781 | BH122: 217637.0007 | BI122: 0 | BJ122: 217637.0007 | BK122: 0 | BL122: 0 | BM122: 0 | BN122: 0 | BP122: 554375.7588 | BQ122: 4445714.483 | BR122: 5000090.241 | BS122: 0 | BT122: 0 | BU122: 7037.309083 | BV122: 0 | BW122: 7037.309083 | BX122: 206736.9241 | BY122: 0 | BZ122: 0 | CA122: 0 | CB122: 206736.9241 | CC122: 0 | CD122: 0 | CE122: 0 | CF122: 5431501.475 | CG122: 10674612.26 | CI122: 3929905.468 | CJ122: 1313205.313 | CK122: 431411.2339 | CL122: 5000090.241
A123: 760 | B123: Mbale Municipal Council | C123: 0 | D123: 0 | E123: 9267.756 | F123: 155620.452 | G123: 0 | H123: 315746.946 | I123: 764611.776 | J123: 0 | K123: 0 | L123: 0 | M123: 204517.32 | N123: 2959234.008 | O123: 2415190.776 | P123: 892588.248 | Q123: 15000 | R123: 0 | S123: 226156.9705 | T123: 58981.06775 | U123: 0 | V123: 0 | W123: 1937805 | X123: 4130.859234 | Y123: 5212.432197 | Z123: 0 | AA123: 5212.432197 | AB123: 0 | AC123: 15456.63707 | AD123: 6804.390743 | AE123: 4325.356981 | AF123: 26586.38479 | AG123: 19015.62513 | AH123: 0 | AI123: 1046.424902 | AJ123: 0 | AK123: 0 | AL123: 0 | AM123: 0 | AN123: 3767.992429 | AO123: 0 | AP123: 38937.6 | AQ123: 80592.81798 | AR123: 7866.752298 | AS123: 9926.096565 | AT123: 10727.65281 | AU123: 20653.74938 | AV123: 0 | AW123: 0 | AX123: 0 | AY123: 0 | AZ123: 0 | BA123: 0 | BB123: 0 | BC123: 0 | BD123: 0 | BE123: 0 | BF123: 0 | BG123: 10162530.96 | BH123: 251112.0008 | BI123: 12116.73563 | BJ123: 263228.7364 | BK123: 0 | BL123: 0 | BM123: 0 | BN123: 0 | BP123: 554375.7588 | BQ123: 4214105.965 | BR123: 4768481.724 | BS123: 0 | BT123: 0 | BU123: 14488.57752 | BV123: 0 | BW123: 14488.57752 | BX123: 140285.77 | BY123: 0 | BZ123: 0 | CA123: 62088.12977 | CB123: 202373.8997 | CC123: 0 | CD123: 137737.6266 | CE123: 137737.6266 | CF123: 5386310.565 | CG123: 15548841.52 | CI123: 7290079.728 | CJ123: 2872451.231 | CK123: 617828.8403 | CL123: 4768481.724
A124: 761 | B124: Mbarara Municipal Council | C124: 0 | D124: 0 | E124: 0 | F124: 531169.213 | G124: 0 | H124: 1490317.682 | I124: 636426.144 | J124: 0 | K124: 0 | L124: 0 | M124: 352697.196 | N124: 2220721.02 | O124: 3197932.2 | P124: 517011.084 | Q124: 15000 | R124: 0 | S124: 283649.2767 | T124: 86841.35006 | U124: 0 | V124: 0 | W124: 474048 | X124: 3766.450214 | Y124: 5212.432197 | Z124: 0 | AA124: 5212.432197 | AB124: 0 | AC124: 13538.78957 | AD124: 5996.284457 | AE124: 0 | AF124: 19535.07403 | AG124: 12000 | AH124: 0 | AI124: 954.1131933 | AJ124: 0 | AK124: 0 | AL124: 0 | AM124: 0 | AN124: 3435.594167 | AO124: 0 | AP124: 38937.6 | AQ124: 98529.26469 | AR124: 7172.776703 | AS124: 13091.31956 | AT124: 14652.11695 | AU124: 27743.43651 | AV124: 0 | AW124: 0 | AX124: 0 | AY124: 0 | AZ124: 0 | BA124: 0 | BB124: 0 | BC124: 0 | BD124: 0 | BE124: 0 | BF124: 417628.1375 | BG124: 10440728.05 | BH124: 247031.0008 | BI124: 0 | BJ124: 247031.0008 | BK124: 0 | BL124: 0 | BM124: 0 | BN124: 0 | BP124: 554375.7588 | BQ124: 3938618.079 | BR124: 4492993.837 | BS124: 0 | BT124: 0 | BU124: 8072.207478 | BV124: 0 | BW124: 8072.207478 | BX124: 206736.9241 | BY124: 0 | BZ124: 0 | CA124: 0 | CB124: 206736.9241 | CC124: 0 | CD124: 0 | CE124: 0 | CF124: 4954833.97 | CG124: 15395562.02 | CI124: 6978725.244 | CJ124: 3462002.801 | CK124: 461840.1324 | CL124: 4492993.837
A125: 762 | B125: Moroto Municipal Council | C125: 0 | D125: 0 | E125: 0 | F125: 218745.532 | G125: 0 | H125: 79896.04378 | I125: 260140.428 | J125: 0 | K125: 0 | L125: 0 | M125: 255434.376 | N125: 268768.032 | O125: 240402.768 | P125: 149584.02 | Q125: 15000 | R125: 0 | S125: 22865.34477 | T125: 26130.54127 | U125: 0 | V125: 0 | W125: 163770 | X125: 1301.505448 | Y125: 5212.432197 | Z125: 0 | AA125: 5212.432197 | AB125: 0 | AC125: 4802.534481 | AD125: 1460.023962 | AE125: 9038.539605 | AF125: 15301.09805 | AG125: 12000 | AH125: 0 | AI125: 329.6959866 | AJ125: 0 | AK125: 0 | AL125: 12431.30615 | AM125: 12431.30615 | AN125: 1187.177388 | AO125: 0 | AP125: 34070.4 | AQ125: 25692.74799 | AR125: 2478.569323 | AS125: 5630.436784 | AT125: 5401.594336 | AU125: 11032.03112 | AV125: 0 | AW125: 0 | AX125: 0 | AY125: 31477.66979 | AZ125: 31477.66979 | BA125: 0 | BB125: 0 | BC125: 0 | BD125: 0 | BE125: 0 | BF125: 0 | BG125: 1853251.719 | BH125: 89476.00028 | BI125: 23608.25234 | BJ125: 113084.2526 | BK125: 0 | BL125: 39347.08723 | BM125: 39347.08723 | BN125: 0 | BP125: 554375.7588 | BQ125: 705586.1029 | BR125: 1259961.862 | BS125: 0 | BT125: 0 | BU125: 3134.713726 | BV125: 178635.776 | BW125: 181770.4898 | BX125: 73834.61577 | BY125: 0 | BZ125: 0 | CA125: 125910.6791 | CB125: 199745.2949 | CC125: 0 | CD125: 31477.66979 | CE125: 31477.66979 | CF125: 1825386.656 | CG125: 3678638.375 | CI125: 1223400.024 | CJ125: 629851.6953 | CK125: 565424.7943 | CL125: 1259961.862
A126: 763 | B126: Soroti Municipal Council | C126: 0 | D126: 0 | E126: 5193.432 | F126: 0 | G126: 0 | H126: 176154.1384 | I126: 608721.192 | J126: 0 | K126: 0 | L126: 0 | M126: 293752.824 | N126: 1978556.52 | O126: 1217642.376 | P126: 694335.768 | Q126: 15000 | R126: 0 | S126: 115325.6546 | T126: 44018.31472 | U126: 0 | V126: 0 | W126: 1020951 | X126: 3251.730118 | Y126: 5212.432197 | Z126: 0 | AA126: 5212.432197 | AB126: 0 | AC126: 11251.83914 | AD126: 4875.800952 | AE126: 5896.417856 | AF126: 22024.05795 | AG126: 12000 | AH126: 0 | AI126: 823.7248418 | AJ126: 0 | AK126: 0 | AL126: 9162.5154 | AM126: 9162.5154 | AN126: 2966.088596 | AO126: 0 | AP126: 38937.6 | AQ126: 73806.05436 | AR126: 6192.550733 | AS126: 8494.209972 | AT126: 8952.299987 | AU126: 17446.50996 | AV126: 0 | AW126: 0 | AX126: 0 | AY126: 29066.16629 | AZ126: 29066.16629 | BA126: 0 | BB126: 0 | BC126: 55800 | BD126: 0 | BE126: 0 | BF126: 0 | BG126: 6446340.65 | BH126: 208904.0006 | BI126: 76002.20414 | BJ126: 284906.2048 | BK126: 0 | BL126: 0 | BM126: 0 | BN126: 0 | BP126: 554375.7588 | BQ126: 3602764.605 | BR126: 4157140.363 | BS126: 0 | BT126: 0 | BU126: 20490.58223 | BV126: 58132.33179 | BW126: 78622.91402 | BX126: 206736.9241 | BY126: 0 | BZ126: 0 | CA126: 58428.92542 | CB126: 265165.8496 | CC126: 0 | CD126: 58132.33179 | CE126: 58132.33179 | CF126: 4843967.664 | CG126: 11290308.31 | CI126: 4846946.28 | CJ126: 1599394.37 | CK126: 686827.3002 | CL126: 4157140.363
A127: 764 | B127: Tororo Municipal Council | C127: 0 | D127: 0 | E127: 13479.9 | F127: 198585.786 | G127: 0 | H127: 154256.1066 | I127: 483767.736 | J127: 0 | K127: 0 | L127: 0 | M127: 64878.408 | N127: 1614680.304 | O127: 1704461.832 | P127: 420004.368 | Q127: 15000 | R127: 0 | S127: 129024.6313 | T127: 45485.19186 | U127: 0 | V127: 0 | W127: 108882 | X127: 2169.676879 | Y127: 5212.432197 | Z127: 7869.417446 | AA127: 13081.84964 | AB127: 0 | AC127: 9039.867476 | AD127: 4169.556803 | AE127: 4325.356981 | AF127: 17534.78126 | AG127: 9195.8333 | AH127: 0 | AI127: 549.6202573 | AJ127: 0 | AK127: 0 | AL127: 0 | AM127: 0 | AN127: 1979.086091 | AO127: 0 | AP127: 34070.4 | AQ127: 49688.80507 | AR127: 4131.903221 | AS127: 8192.760163 | AT127: 8578.541497 | AU127: 16771.30166 | AV127: 0 | AW127: 0 | AX127: 0 | AY127: 0 | AZ127: 0 | BA127: 0 | BB127: 0 | BC127: 0 | BD127: 0 | BE127: 0 | BF127: 0 | BG127: 5101679.521 | BH127: 223812.0007 | BI127: 125378.9001 | BJ127: 349190.9008 | BK127: 0 | BL127: 0 | BM127: 0 | BN127: 0 | BP127: 554375.7588 | BQ127: 2839720.224 | BR127: 3394095.983 | BS127: 0 | BT127: 0 | BU127: 17690.61847 | BV127: 39347.08723 | BW127: 57037.7057 | BX127: 103368.4621 | BY127: 0 | BZ127: 0 | CA127: 39347.08723 | CB127: 142715.5493 | CC127: 0 | CD127: 0 | CE127: 0 | CF127: 3943040.139 | CG127: 9044719.66 | CI127: 4336863.048 | CJ127: 764816.4731 | CK127: 548944.1558 | CL127: 3394095.983
A128: 770 | B128: Kasese Municipal Council | C128: 0 | D128: 0 | E128: 10248.924 | F128: 303909.015 | G128: 0 | H128: 280434.2677 | I128: 487574.52 | J128: 0 | K128: 0 | L128: 0 | M128: 47014.44 | N128: 2120858.88 | O128: 1135515.408 | P128: 1952236.308 | Q128: 15000 | R128: 0 | S128: 143954.0287 | T128: 58012.02261 | U128: 0 | V128: 0 | W128: 443961 | X128: 4864.791942 | Y128: 5212.432197 | Z128: 0 | AA128: 5212.432197 | AB128: 0 | AC128: 12719.76372 | AD128: 5106.688462 | AE128: 0 | AF128: 17826.45218 | AG128: 0 | AH128: 0 | AI128: 1232.343961 | AJ128: 0 | AK128: 0 | AL128: 0 | AM128: 0 | AN128: 4437.454332 | AO128: 0 | AP128: 38937.6 | AQ128: 124464.3971 | AR128: 9264.443792 | AS128: 11056.53335 | AT128: 12129.24715 | AU128: 23185.7805 | AV128: 0 | AW128: 0 | AX128: 0 | AY128: 0 | AZ128: 0 | BA128: 0 | BB128: 0 | BC128: 0 | BD128: 0 | BE128: 183880 | BF128: 0 | BG128: 7412024.51 | BH128: 313373.001 | BI128: 0 | BJ128: 313373.001 | BK128: 0 | BL128: 0 | BM128: 0 | BN128: 0 | BP128: 0 | BQ128: 0 | BR128: 0 | BS128: 0 | BT128: 0 | BU128: 4900.745251 | BV128: 0 | BW128: 4900.745251 | BX128: 273188.0783 | BY128: 272000 | BZ128: 0 | CA128: 0 | CB128: 545188.0783 | CC128: 0 | CD128: 0 | CE128: 0 | CF128: 863461.8246 | CG128: 8275486.335 | CI128: 5797137.156 | CJ128: 1614887.354 | CK128: 863461.8246 | CL128: 0
A129: 771 | B129: Hoima Municipal Council | C129: 30000 | D129: 0 | E129: 7004.148 | F129: 0 | G129: 0 | H129: 285603.497 | I129: 406141.38 | J129: 0 | K129: 0 | L129: 0 | M129: 433334.568 | N129: 1907833.668 | O129: 1197077.568 | P129: 287563.428 | Q129: 15000 | R129: 0 | S129: 136759.4458 | T129: 54425.7852 | U129: 0 | V129: 0 | W129: 1234983 | X129: 4664.251482 | Y129: 5212.432197 | Z129: 0 | AA129: 5212.432197 | AB129: 0 | AC129: 10671.84817 | AD129: 3992.995765 | AE129: 0 | AF129: 14664.84393 | AG129: 19015.62513 | AH129: 0 | AI129: 1181.543263 | AJ129: 0 | AK129: 0 | AL129: 0 | AM129: 0 | AN129: 4254.529935 | AO129: 0 | AP129: 43804.8 | AQ129: 100710.7244 | AR129: 8882.53726 | AS129: 12488.41994 | AT129: 13904.59997 | AU129: 26393.01992 | AV129: 0 | AW129: 0 | AX129: 0 | AY129: 0 | AZ129: 0 | BA129: 0 | BB129: 0 | BC129: 0 | BD129: 0 | BE129: 0 | BF129: 0 | BG129: 6224510.796 | BH129: 243708.0008 | BI129: 0 | BJ129: 243708.0008 | BK129: 0 | BL129: 0 | BM129: 0 | BN129: 0 | BP129: 554375.7588 | BQ129: 5084762.753 | BR129: 5639138.512 | BS129: 0 | BT129: 0 | BU129: 4366.320562 | BV129: 0 | BW129: 4366.320562 | BX129: 206736.9241 | BY129: 0 | BZ129: 0 | CA129: 0 | CB129: 206736.9241 | CC129: 0 | CD129: 0 | CE129: 0 | CF129: 6093949.758 | CG129: 12318460.55 | CI129: 4290755.412 | CJ129: 1933755.384 | CK129: 454811.2455 | CL129: 5639138.512
A130: 772 | B130: Mukono Municipal Council | C130: 30000 | D130: 0 | E130: 10743.78 | F130: 0 | G130: 0 | H130: 452434.7587 | I130: 497668.476 | J130: 0 | K130: 0 | L130: 0 | M130: 0 | N130: 2860761.264 | O130: 1778762.796 | P130: 678917.7 | Q130: 50101.584 | R130: 0 | S130: 190267.7659 | T130: 84495.4734 | U130: 0 | V130: 0 | W130: 534912 | X130: 4237.603797 | Y130: 5212.432197 | Z130: 0 | AA130: 5212.432197 | AB130: 0 | AC130: 13076.15429 | AD130: 5785.769374 | AE130: 0 | AF130: 18861.92367 | AG130: 0 | AH130: 0 | AI130: 1073.465322 | AJ130: 0 | AK130: 0 | AL130: 0 | AM130: 0 | AN130: 3865.360236 | AO130: 0 | AP130: 34070.4 | AQ130: 227962.5423 | AR130: 8070.035196 | AS130: 13015.95711 | AT130: 14558.67733 | AU130: 27574.63444 | AV130: 0 | AW130: 0 | AX130: 0 | AY130: 0 | AZ130: 0 | BA130: 0 | BB130: 0 | BC130: 0 | BD130: 0 | BE130: 0 | BF130: 0 | BG130: 7499993.995 | BH130: 300874.0009 | BI130: 0 | BJ130: 300874.0009 | BK130: 0 | BL130: 0 | BM130: 0 | BN130: 0 | BP130: 0 | BQ130: 0 | BR130: 0 | BS130: 0 | BT130: 0 | BU130: 5029.069494 | BV130: 0 | BW130: 5029.069494 | BX130: 273188.0783 | BY130: 0 | BZ130: 0 | CA130: 0 | CB130: 273188.0783 | CC130: 0 | CD130: 0 | CE130: 0 | CF130: 579091.1488 | CG130: 8079085.144 | CI130: 5900282.22 | CJ130: 1599711.775 | CK130: 579091.1488 | CL130: 0
A131: 773 | B131: Iganga Municipal Council | C131: 0 | D131: 0 | F131: 0 | G131: 0 | H131: 190515.2415 | I131: 437968.344 | J131: 0 | K131: 0 | L131: 0 | M131: 0 | N131: 1109369.112 | O131: 444133.26 | P131: 208852.752 | Q131: 15000 | R131: 0 | S131: 54931.25952 | T131: 33262.94948 | U131: 0 | V131: 0 | W131: 1029540 | X131: 2483.984436 | Y131: 5212.432197 | Z131: 0 | AA131: 5212.432197 | AB131: 0 | AC131: 9366.357352 | AD131: 1928.589791 | AE131: 0 | AF131: 11294.94714 | AG131: 0 | AH131: 0 | AI131: 629.2403159 | AJ131: 0 | AK131: 0 | AL131: 0 | AM131: 0 | AN131: 2265.783949 | AO131: 0 | AP131: 34070.4 | AQ131: 147369.7243 | AR131: 4730.46627 | AS131: 8871.022233 | AT131: 9419.498099 | AU131: 18290.52033 | AV131: 0 | AW131: 0 | AX131: 0 | AY131: 0 | AZ131: 0 | BA131: 0 | BB131: 0 | BC131: 0 | BD131: 0 | BE131: 0 | BF131: 0 | BG131: 3749920.417 | BH131: 141411.0004 | BI131: 0 | BJ131: 141411.0004 | BK131: 0 | BL131: 0 | BM131: 0 | BN131: 0 | BP131: 0 | BQ131: 0 | BR131: 0 | BS131: 0 | BT131: 0 | BU131: 7876.151632 | BV131: 0 | BW131: 7876.151632 | BX131: 273188.0783 | BY131: 0 | BZ131: 0 | CA131: 0 | CB131: 273188.0783 | CC131: 0 | CD131: 0 | CE131: 0 | CF131: 422475.2304 | CG131: 4172395.648 | CI131: 2249393.868 | CJ131: 1500526.549 | CK131: 422475.2304 | CL131: 0
A132: 774 | B132: Masindi Municipal Council | C132: 0 | D132: 0 | F132: 0 | G132: 0 | H132: 290798.783 | I132: 376776.432 | J132: 0 | K132: 0 | L132: 0 | M132: 161536.236 | N132: 2078928.276 | O132: 1041776.268 | P132: 367120.392 | Q132: 28074.396 | R132: 0 | S132: 146227.8638 | T132: 52128.17324 | U132: 0 | V132: 0 | W132: 886644 | X132: 4540.208658 | Y132: 5212.432197 | Z132: 0 | AA132: 5212.432197 | AB132: 0 | AC132: 10627.98582 | AD132: 4441.189168 | AE132: 5896.417856 | AF132: 20965.59284 | AG132: 12000 | AH132: 0 | AI132: 1150.120866 | AJ132: 0 | AK132: 0 | AL132: 11804.12617 | AM132: 11804.12617 | AN132: 4141.383397 | AO132: 0 | AP132: 43804.8 | AQ132: 68352.40503 | AR132: 8646.311789 | AS132: 10227.54637 | AT132: 11101.4113 | AU132: 21328.95768 | AV132: 0 | AW132: 0 | AX132: 0 | AY132: 0 | AZ132: 0 | BA132: 0 | BB132: 0 | BC132: 0 | BD132: 0 | BE132: 0 | BF132: 0 | BG132: 5631957.159 | BH132: 286906.0009 | BI132: 63072.19412 | BJ132: 349978.195 | BK132: 0 | BL132: 0 | BM132: 0 | BN132: 0 | BP132: 0 | BQ132: 0 | BR132: 0 | BS132: 0 | BT132: 0 | BU132: 8072.266766 | BV132: 94433.00936 | BW132: 102505.2761 | BX132: 273188.0783 | BY132: 272000 | BZ132: 0 | CA132: 40920.97072 | CB132: 586109.0491 | CC132: 0 | CD132: 78694.17446 | CE132: 78694.17446 | CF132: 1117286.695 | CG132: 6749243.853 | CI132: 4098016.8 | CJ132: 1533940.359 | CK132: 1117286.695 | CL132: 0
A133: 775 | B133: Ntungamo Municipal Council | C133: 0 | D133: 0 | F133: 0 | G133: 0 | H133: 691808.5312 | I133: 357058.416 | J133: 0 | K133: 0 | L133: 0 | M133: 0 | N133: 437575.5 | O133: 215970.768 | P133: 265401.948 | Q133: 20664.948 | R133: 0 | S133: 30395.21304 | T133: 29822.93036 | U133: 0 | V133: 0 | W133: 186492 | X133: 1907.757845 | Y133: 5212.432197 | Z133: 0 | AA133: =SUM(Y133:Z133) -> 5212.432197 | AB133: 0 | AC133: 4979.008614 | AD133: 1052.575414 | AE133: 0 | AF133: =SUM(AC133:AE133) -> 6031.584029 | AG133: 0 | AH133: 0 | AI133: 483.2712039 | AJ133: 0 | AK133: 0 | AL133: 0 | AM133: =SUM(AK133:AL133) -> 0 | AN133: 1740.174793 | AO133: 0 | AP133: 22713.6 | AQ133: 74775.59202 | AR133: 3633.108164 | AS133: 5931.886594 | AT133: 5775.352825 | AU133: =SUM(AS133:AT133) -> 11707.23942 | AV133: 0 | AW133: 0 | AX133: 0 | AY133: 0 | AZ133: =SUM(AV133:AY133) -> 0 | BA133: 0 | BB133: 0 | BC133: 0 | BD133: 0 | BE133: 0 | BF133: 0 | BG133: =SUM(C133:X133,AA133,AB133,AF133,AG133:AI133,AM133,AN133:AR133,AU133,AZ133,BA133:BF133) -> 2363395.014 | BH133: 56545.00018 | BI133: 0 | BJ133: =SUM(BH133:BI133) -> 56545.00018 | BK133: 0 | BL133: 0 | BM133: =SUM(BK133:BL133) -> 0 | BN133: 0 | BP133: 0 | BQ133: 0 | BR133: =SUM(BP133:BQ133) -> 0 | BS133: 0 | BT133: 0 | BU133: 8240.857406 | BV133: 0 | BW133: =SUM(BU133:BV133) -> 8240.857406 | BX133: 140285.77 | BY133: 0 | BZ133: 0 | CA133: 0 | CB133: =SUM(BX133:CA133) -> 140285.77 | CC133: 0 | CD133: 0 | CE133: =SUM(CC133:CD133) -> 0 | CF133: =SUM(BJ133,BM133,BN133:BO133,BR133,BS133:BT133,BW133,CB133,CE133) -> 205071.6275 | CG133: =BG133+CF133 -> 2568466.642 | CI133: =SUM(I133,J133,M133:R133,AP133) -> 1319385.18 | CJ133: =SUM(C133:H133,K133:L133,S133:X133,AA133,AB133,AF133,AG133:AI133,AM133,AN133:AO133,AQ133:AR133,AU133,AZ133,BA133:BF133) -> 1044009.834 | CK133: =SUM(BJ133,BM133,BN133:BO133,BT133,BW133,CB133,CE133) -> 205071.6275 | CL133: =SUM(BR133,BS133) -> 0
A134: 776 | B134: Busia Municipal Council | C134: 0 | D134: 0 | F134: 0 | G134: 0 | H134: 163029.5635 | I134: 449439.156 | J134: 0 | K134: 0 | L134: 0 | M134: 0 | N134: 1010299.116 | O134: 211206.852 | P134: 299488.14 | Q134: 24355.392 | R134: 0 | S134: 81463.96722 | T134: 35400.51153 | U134: 0 | V134: 0 | W134: 459102 | X134: 2320.736368 | Y134: 5212.432197 | Z134: 0 | AA134: 5212.432197 | AB134: 0 | AC134: 6787.297783 | AD134: 1962.543837 | AE134: 4325.356981 | AF134: 13075.1986 | AG134: 9195.8333 | AH134: 0 | AI134: 587.8864874 | AJ134: 0 | AK134: 0 | AL134: 0 | AM134: 0 | AN134: 2116.87607 | AO134: 0 | AP134: 34070.4 | AQ134: 48719.26741 | AR134: 4419.578862 | AS134: 6836.236021 | AT134: 6896.628294 | AU134: 13732.86432 | AV134: 0 | AW134: 0 | AX134: 0 | AY134: 0 | AZ134: 0 | BA134: 0 | BB134: 0 | BC134: 0 | BD134: 0 | BE134: 0 | BF134: 0 | BG134: 2867235.772 | BH134: 111916.0003 | BI134: 211942.492 | BJ134: 323858.4924 | BK134: 0 | BL134: 0 | BM134: 0 | BN134: 0 | BP134: 0 | BQ134: 0 | BR134: 0 | BS134: 0 | BT134: 0 | BU134: 6308.947593 | BV134: 0 | BW134: 6308.947593 | BX134: 339639.2325 | BY134: 0 | BZ134: 0 | CA134: 0 | CB134: 339639.2325 | CC134: 0 | CD134: 0 | CE134: 0 | CF134: 669806.6725 | CG134: 3537042.444 | CI134: 2028859.056 | CJ134: 838376.7159 | CK134: 669806.6725 | CL134: 0
A135: 777 | B135: Bushenyi - Ishaka Municipal Council | C135: 0 | D135: 0 | E135: 5379.636 | F135: 642525.283 | G135: 0 | H135: 364222.5424 | I135: 422433.048 | J135: 0 | K135: 0 | L135: 0 | M135: 377718.864 | N135: 1583382.684 | O135: 1368434.256 | P135: 392066.028 | Q135: 15000 | R135: 0 | S135: 95290.88271 | T135: 24642.17483 | U135: 0 | V135: 0 | W135: 199608 | X135: 2810.944696 | Y135: 5212.432197 | Z135: 0 | AA135: 5212.432197 | AB135: 0 | AC135: 8696.146499 | AD135: 3809.643919 | AE135: 0 | AF135: 12505.79042 | AG135: 0 | AH135: 0 | AI135: 712.0655438 | AJ135: 0 | AK135: 0 | AL135: 0 | AM135: 0 | AN135: 2564.023059 | AO135: 0 | AP135: 8112 | AQ135: 79865.66474 | AR135: 5353.124953 | AS135: 8042.035258 | AT135: 8391.662252 | AU135: 16433.69751 | AV135: 0 | AW135: 0 | AX135: 0 | AY135: 0 | AZ135: 0 | BA135: 0 | BB135: 0 | BC135: 0 | BD135: 0 | BE135: 0 | BF135: 0 | BG135: 5624273.142 | BH135: 139802.0004 | BI135: 0 | BJ135: 139802.0004 | BK135: 0 | BL135: 0 | BM135: 0 | BN135: 0 | BP135: 0 | BQ135: 0 | BR135: 0 | BS135: 0 | BT135: 0 | BU135: 12380.06368 | BV135: 0 | BW135: 12380.06368 | BX135: 140285.481 | BY135: 0 | BZ135: 0 | CA135: 0 | CB135: 140285.481 | CC135: 0 | CD135: 0 | CE135: 0 | CF135: 292467.5451 | CG135: 5916740.687 | CI135: 4167146.88 | CJ135: 1457126.262 | CK135: 292467.5451 | CL135: 0
A136: 778 | B136: Rukungiri Municipal Council | C136: 0 | D136: 0 | E136: 2151.996 | F136: 406572.892 | G136: 0 | H136: 171962.0193 | I136: 445269.228 | J136: 0 | K136: 0 | L136: 0 | M136: 0 | N136: 1114925.016 | O136: 1387691.556 | P136: 470739.672 | Q136: 15000 | R136: 0 | S136: 62243.02132 | T136: 22670.81114 | U136: 0 | V136: 0 | W136: 187605 | X136: 2587.242895 | Y136: 5212.432197 | Z136: 0 | AA136: 5212.432197 | AB136: 0 | AC136: 8352.191799 | AD136: 3470.103463 | AE136: 0 | AF136: 11822.29526 | AG136: 0 | AH136: 0 | AI136: 655.3976397 | AJ136: 0 | AK136: 0 | AL136: 0 | AM136: 0 | AN136: 2359.971882 | AO136: 0 | AP136: 38937.6 | AQ136: 88349.11926 | AR136: 4927.110278 | AS136: 5630.436784 | AT136: 5401.594336 | AU136: 11032.03112 | AV136: 0 | AW136: 0 | AX136: 0 | AY136: 0 | AZ136: 0 | BA136: 0 | BB136: 0 | BC136: 0 | BD136: 0 | BE136: 0 | BF136: 0 | BG136: 4452714.412 | BH136: 74428.00023 | BI136: 0 | BJ136: 74428.00023 | BK136: 0 | BL136: 0 | BM136: 0 | BN136: 0 | BP136: 0 | BQ136: 0 | BR136: 0 | BS136: 0 | BT136: 0 | BU136: 3954.84496 | BV136: 0 | BW136: 3954.84496 | BX136: 206736.9241 | BY136: 0 | BZ136: 0 | CA136: 0 | CB136: 206736.9241 | CC136: 0 | CD136: 0 | CE136: 0 | CF136: 285119.7693 | CG136: 4737834.182 | CI136: 3472563.072 | CJ136: 980151.3403 | CK136: 285119.7693 | CL136: 0
B137: GRAND TOTAL | C137: =SUM(C4:C136) -> 1337144 | D137: 200000 | E137: 51880361.05 | F137: 76050414.96 | G137: =SUM(G4:G136) -> 66650153.19 | H137: 21571144.55 | I137: 27960638.89 | J137: 135392096.3 | K137: =SUM(K4:K136) -> 600000 | L137: 2994159 | M137: 28548375.98 | N137: 779452698.2 | O137: 189530515.1 | P137: =SUM(P4:P136) -> 244516773.7 | Q137: =SUM(Q4:Q136) -> 16282016.8 | R137: 2701296 | S137: 67841607.86 | T137: 20538899.32 | U137: 5943067 | V137: 17194707.12 | W137: =SUM(W4:W136) -> 127052544.5 | X137: 1575310.526 | Y137: 3236052.684 | Z137: 1297162.448 | AA137: 4533215.133 | AB137: =SUM(AB4:AB136) -> 2503910 | AC137: 3820955.119 | AD137: 1380360.98 | AE137: 1477420.847 | AF137: 6678736.946 | AG137: 330000 | AH137: 4493638.978 | AI137: 799056 | AJ137: 0 | AK137: 1284999.847 | AL137: 2068215.153 | AM137: 3353215 | AN137: 1436930.624 | AO137: 4028423.693 | AP137: =SUM(AP4:AP136) -> 15232786.42 | AQ137: 15766795.9 | AR137: 3000000 | AS137: 2191566.654 | AT137: 2500000 | AU137: 4691566.654 | AV137: =SUM(AV4:AV136) -> 10019928.27 | AW137: =SUM(AW4:AW136) -> 41000 | AX137: =SUM(AX4:AX136) -> 108000 | AY137: =SUM(AY4:AY136) -> 4080746.528 | AZ137: 14249674.79 | BA137: 2000000 | BB137: 30443920 | BC137: 1875575 | BD137: 2909724.77 | BE137: =SUM(BE4:BE136) -> 11121427.8 | BF137: 11589929 | BG137: 2026852451 | BH137: 57476600.18 | BI137: 12531606.13 | BJ137: 70008206.31 | BK137: 52942995.3 | BL137: 7429438.697 | BM137: 60372434 | BN137: 8858000 | BO137: 6172455.181 | BP137: 7761260.624 | BQ137: 60658739.38 | BR137: 68420000 | BS137: 4678389 | BT137: 8200000 | BU137: 3174694.475 | BV137: 14908904.49 | BW137: 18083598.97 | BX137: 27068725.81 | BY137: 5440000 | BZ137: 4538673.093 | CA137: 17151439.65 | CB137: 54198838.55 | CC137: 22640248.6 | CD137: 12926108.4 | CE137: 35566357 | CF137: 334558279 | CG137: 2361410730 | CI137: =SUM(CI4:CI136) -> 1439617197 | CJ137: =SUM(CJ4:CJ136) -> 587235253.3 | CK137: =SUM(CK4:CK136) -> 261459890 | CL137: =SUM(CL4:CL136) -> 73098389
B139: Changes to health | T139: =BU139+T137+U137 -> 28656660.79 | U139: 0 | BT139: =BT137+1000000 -> 9200000 | BU139: =BU137-1000000 -> 2174694.475
V140: =SUM(T137:V137)+BU139 -> 45851367.91

Sheet ThisVsPublication
C2: This sheet compares the dataset on the Approved_budget sheet with the relevant publication
C3: The relevant publication is the 15/16 Approved Budget book vol 1
C4: http://budget.go.ug/budget/content/approved-budget-estimates-349
C5: The comparison between the data and publication yields: | H5: =IF(SUM(H11:H11)=0,"IDENTICAL","VARIANCE") -> IDENTICAL
C8: NOTE - this dataset is available in flat format, with additional fields on the dataportal:
C9: http://budget.go.ug/budget/sites/default/files/15_16_ApprovedBudget_LG.xlsx
C13: Row Labels | D13: Dataset Approved Budget | G13: Table 4a in book (pg xxii) | H13: Variance
C14: GoUDevelopment | D14: ='Approved LG IPFs'!CK137 -> 261459890 | G14: 261459890 | H14: =ROUND(D14,0)-G14 -> 0
C15: NonWageRecurrent | D15: ='Approved LG IPFs'!CJ137 -> 587235253.3 | G15: 587235253 | H15: =ROUND(D15,0)-G15 -> 0
C16: WageRecurrent | D16: ='Approved LG IPFs'!CI137 -> 1439617197 | G16: 1439617197 | H16: =ROUND(D16,0)-G16 -> 0
C17: Donor | D17: ='Approved LG IPFs'!CL137 -> 73098389 | G17: 73098389 | H17: =ROUND(D17,0)-G17 -> 0
C18: Grand Total | D18: 2.36141073e+12 | G18: 231410730 | H18: =SUM(H11:H17) -> 0
G21: *Note - grand total is hard coded from the book.

Sheet Metadata
B2: Content | C2: Intellectual Property | D2: Instantiation
B3: IPFs for LG 2015/16. Also available in flat format. | C3: Published with permission of the Ministry of Finance, Planning and Economic Development | D3: 2018-01-22
B4: Local budget breakdown to subgrant level | C4: Data provided by Ministry of Finance, Planning and Economic Development | D4: Published tables
B5: Excel file | C5: Created on behalf of the Overseas Development Institute by S.Cresswell (simon.cresswell@outlook.com) | D5: 15_16_ApprovedBudget_Vol2
B6: Source: OTIMS | C6: For public use and analysis | D6: English
B10: NOTE - this dataset is available in flat format, with additional fields on the dataportal:
B11: http://budget.go.ug/budget/sites/default/files/15_16_ApprovedBudget_LG.xlsx
